{"text_format":"1","workbook":"xlsx","n_sheets":1,"sheets":["GOV List Price"],"not_rendered":{"charts":0,"images":0,"macros":0,"external_links":0,"defined_names":1,"comments":0,"pivot_tables":0},"unopened":[],"bounds":{"document_bytes":16777216,"sheet_cells":100000,"rows_first":2000,"rows_last":500,"rows_between":2000,"halvings":0,"cell_chars":16384,"cell_head_chars":4096},"cells_cut":0,"cells_raw":0,"read":"whole","date_system":"1900"}

{"sheet":"GOV List Price","index":0,"n_rows":631,"n_cols":10,"rows_kept":631,"cut":false,"hidden":false,"merged":[]}
[null,null,null,null,null,null,null,0.41]
["Manufacturer Part #","MODEL","Product Description","Alpha Code","Product Type","Product Discount Code","GOV List Price","NASPO Discount","NASPO Net Price","Meets Buy America"]
["SPOA10","SPOA10N1400BL","Lift, 2-post 10,000 lb Asym 2-stage w/flip-up adapters","SPOA10","LIGHT DUTY","LS",8922,{"$f":"$H$1","v":0.41},{"$f":"Table8[[#This Row],[GOV List Price]]*(1-Table8[[#This Row],[NASPO Discount]])","v":5263.9800000000005},"Yes"]
["SPOA10 71\"","SPOA10N1405BL","Lift, 2-post 10,000 lb Asym 2-stage w/flip-up adapters, 71\" Rise","SPOA10","LIGHT DUTY","LS",9294,0.41,{"$f":"Table8[[#This Row],[GOV List Price]]*(1-Table8[[#This Row],[NASPO Discount]])","v":5483.4600000000009},"Yes"]
["SPOA10 EH2","SPOA10N1407BL","Lift, 2-post 10,000 lb Asym 2-stage w/flip-up adapters EH2","SPOA10","LIGHT DUTY","LS",10095,0.41,{"$f":"Table8[[#This Row],[GOV List Price]]*(1-Table8[[#This Row],[NASPO Discount]])","v":5956.0500000000011},"Yes"]
["SPOA10-RA","SPOA10N16G0BL","Lift, 2-post 10,000 lb Asym w/TRIO rubber adapters  (To use with framed vehicles, also order T100273.)","SPOA10","LIGHT DUTY","PS",11435,0.41,{"$f":"Table8[[#This Row],[GOV List Price]]*(1-Table8[[#This Row],[NASPO Discount]])","v":6746.6500000000005},"Yes"]
["SPOA10-RA 71\"","SPOA10N16G5BL","Lift, 2-post 10,000 lb Asym w/TRIO rubber adapters 71\" Rise","SPOA10","LIGHT DUTY","PS",11877,0.41,{"$f":"Table8[[#This Row],[GOV List Price]]*(1-Table8[[#This Row],[NASPO Discount]])","v":7007.4300000000012},"Yes"]
["SPOA10-RA EH2","SPOA10N16G7BL","Lift, 2-post 10,000 lb Asym w/TRIO rubber adapters EH2","SPOA10","LIGHT DUTY","PS",12816,0.41,{"$f":"Table8[[#This Row],[GOV List Price]]*(1-Table8[[#This Row],[NASPO Discount]])","v":7561.4400000000014},"Yes"]
["SPOA10-TA","SPOA10N16T0BL","Lift, 2-post 10,000 lb Asym w/TRIO truck adapters.  Includes (4) 3 1/2\" T130660 extensions and (4) 5\" T130661 extensions.","SPOA10","LIGHT DUTY","PS",11435,0.41,{"$f":"Table8[[#This Row],[GOV List Price]]*(1-Table8[[#This Row],[NASPO Discount]])","v":6746.6500000000005},"Yes"]
["SPOA10-TA 71\"","SPOA10N16T5BL","Lift, 2-post 10,000 lb Asym w/TRIO truck adapters 71\" Rise","SPOA10","LIGHT DUTY","PS",11877,0.41,{"$f":"Table8[[#This Row],[GOV List Price]]*(1-Table8[[#This Row],[NASPO Discount]])","v":7007.4300000000012},"Yes"]
["SPOA10-TA EH2","SPOA10N16T7BL","Lift, 2-post 10,000 lb Asym w/TRIO truck adapters EH2","SPOA10","LIGHT DUTY","PS",12816,0.41,{"$f":"Table8[[#This Row],[GOV List Price]]*(1-Table8[[#This Row],[NASPO Discount]])","v":7561.4400000000014},"Yes"]
["SPOA10-FA","SPOA10N1600BL","Lift, 2-post 10,000 lb Asym w/TRIO flip-up adapters","SPOA10","LIGHT DUTY","PS",11435,0.41,{"$f":"Table8[[#This Row],[GOV List Price]]*(1-Table8[[#This Row],[NASPO Discount]])","v":6746.6500000000005},"Yes"]
["SPOA10-FA 71\"","SPOA10N1605BL","Lift, 2-post 10,000 lb Asym w/TRIO flip-up adapters 71\" Rise","SPOA10","LIGHT DUTY","PS",11877,0.41,{"$f":"Table8[[#This Row],[GOV List Price]]*(1-Table8[[#This Row],[NASPO Discount]])","v":7007.4300000000012},"Yes"]
["SPOA10-FA EH2","SPOA10N1607BL","Lift, 2-post 10,000 lb Asym w/TRIO flip-up adapters EH2","SPOA10","LIGHT DUTY","PS",12816,0.41,{"$f":"Table8[[#This Row],[GOV List Price]]*(1-Table8[[#This Row],[NASPO Discount]])","v":7561.4400000000014},"Yes"]
["SPOA7-LP-A","SPOA7N5L0BL","Lift, 2-post 7000 lb Asym 2-stage low profile RA arms","SPOA7","LIGHT DUTY","LS",9877,0.41,{"$f":"Table8[[#This Row],[GOV List Price]]*(1-Table8[[#This Row],[NASPO Discount]])","v":5827.4300000000012},"Yes"]
["SPOA7-LPA 71\"","SPOA7N5L5BL","Lift, 2-post 7000 lb Asym 2-stage low profile RA arms 71\" Rise","SPOA7","LIGHT DUTY","LS",10256,0.41,{"$f":"Table8[[#This Row],[GOV List Price]]*(1-Table8[[#This Row],[NASPO Discount]])","v":6051.0400000000009},"Yes"]
["SPOA7-LPA EH2","SPOA7N5L7BL","Lift, 2-post 7000 lb Asym 2-stage low profile RA arms EH2","SPOA7",0,0,11067,0.41,{"$f":"Table8[[#This Row],[GOV List Price]]*(1-Table8[[#This Row],[NASPO Discount]])","v":6529.5300000000007},"Yes"]
["SPOA7-MP","SPOA7N13X0BL","Lift, 2-post 7000 lb Asym Movable Pad Drive Over.  Includes (4) FJ2428E spacer blocks and hinged approach ramps. Primarily used on unibody vehicles. ","SPOA7","LIGHT DUTY","PS",13347,0.41,{"$f":"Table8[[#This Row],[GOV List Price]]*(1-Table8[[#This Row],[NASPO Discount]])","v":7874.7300000000014},"Yes"]
["SPOA7-MP 71\"","SPOA7N13X5BL","Lift, 2-post 7000 lb Asym Movable Pad Drive Over 71\" Rise","SPOA7","LIGHT DUTY","PS",15884,0.41,{"$f":"Table8[[#This Row],[GOV List Price]]*(1-Table8[[#This Row],[NASPO Discount]])","v":9371.5600000000013},"Yes"]
["SPOA7-MP EH2","SPOA7N13X7BL","Lift, 2-post 7000 lb Asym Movable Pad Drive Over EH2","SPOA7","LIGHT DUTY","PS",14518,0.41,{"$f":"Table8[[#This Row],[GOV List Price]]*(1-Table8[[#This Row],[NASPO Discount]])","v":8565.6200000000008},"Yes"]
["SPO10","SPO10N1400BL","Lift, 2-post 10,000 lb Sym 2-stage w/flip-up adapters","SPO10","LIGHT DUTY","LS",8922,0.41,{"$f":"Table8[[#This Row],[GOV List Price]]*(1-Table8[[#This Row],[NASPO Discount]])","v":5263.9800000000005},"Yes"]
["SPO10 71\"","SPO10N1405BL","Lift, 2-post 10,000 lb Sym 2-stage w/flip-up adapters 71\" Rise","SPO10","LIGHT DUTY","LS",9294,0.41,{"$f":"Table8[[#This Row],[GOV List Price]]*(1-Table8[[#This Row],[NASPO Discount]])","v":5483.4600000000009},"Yes"]
["SPO10 EH2","SPO10N1407BL","Lift, 2-post 10,000 lb Sym 2-stage w/flip-up adapters EH2","SPO10","LIGHT DUTY","LS",10095,0.41,{"$f":"Table8[[#This Row],[GOV List Price]]*(1-Table8[[#This Row],[NASPO Discount]])","v":5956.0500000000011},"Yes"]
["SPO12-TA","SPO12N14T5BL","Lift, 2-post 12,000 lb Sym 3-stage.  Includes (4) 3 1/2\" FJ6171-1 extensions and (4) 5\" FJ6171-2 extensions.","SPO12","LIGHT DUTY","PS",14472,0.41,{"$f":"Table8[[#This Row],[GOV List Price]]*(1-Table8[[#This Row],[NASPO Discount]])","v":8538.4800000000014},"Yes"]
["SPO12-TA EH1","SPO12N14T6BL","Lift, 2-post 12,000 lb Sym 3-stage EH1","SPO12","LIGHT DUTY","PS",15663,0.41,{"$f":"Table8[[#This Row],[GOV List Price]]*(1-Table8[[#This Row],[NASPO Discount]])","v":9241.1700000000019},"Yes"]
["SPO12-TA EH2","SPO12N14T7BL","Lift, 2-post 12,000 lb Sym 3-stage EH2","SPO12","LIGHT DUTY","PS",16096,0.41,{"$f":"Table8[[#This Row],[GOV List Price]]*(1-Table8[[#This Row],[NASPO Discount]])","v":9496.6400000000012},"Yes"]
["SPO12-TA EH3","SPO12N14T8BL","Lift, 2-post 12,000 lb Sym 3-stage EH3","SPO12","LIGHT DUTY","PS",16910,0.41,{"$f":"Table8[[#This Row],[GOV List Price]]*(1-Table8[[#This Row],[NASPO Discount]])","v":9976.9000000000015},"Yes"]
["SPO12-TALC","SPO12N14TLBL","Lift, 2-post 12,000 lb Sym 3-stage low ceiling","SPO12","LIGHT DUTY","PS",15170,0.41,{"$f":"Table8[[#This Row],[GOV List Price]]*(1-Table8[[#This Row],[NASPO Discount]])","v":8950.3000000000011},"Yes"]
["SPO12-WIDE","SPO12N14W6BL","Lift, 2-post 12,000 lb Sym 3-stage wide","SPO12","LIGHT DUTY","PS",16217,0.41,{"$f":"Table8[[#This Row],[GOV List Price]]*(1-Table8[[#This Row],[NASPO Discount]])","v":9568.0300000000007},"Yes"]
["SPO12-WIDE-EH1","SPO12N14W7BL","Lift, 2-post 12,000 lb Sym 3-stage wide EH1","SPO12","LIGHT DUTY","PS",17012,0.41,{"$f":"Table8[[#This Row],[GOV List Price]]*(1-Table8[[#This Row],[NASPO Discount]])","v":10037.080000000002},"Yes"]
["FJ5115","FJ6115BK","Adapter kit, aircraft tug lift, 14,000 lb","FJ6115","ACC.","AC",723,0.25,{"$f":"Table8[[#This Row],[GOV List Price]]*(1-Table8[[#This Row],[NASPO Discount]])","v":542.25},"Yes"]
["SPO16","SPO16N1T0BL","Lift, 2-post 16,000 lb, Single Phase (no 3-phase) Frame Contact Lift. Clear Floor, All TRIO (TM) Arms, Electric-Hydraulic Operation. With Overhead Adjustments of 15 ft., 15 ft. 6 in., 16 ft. and 16 ft. 6 in.  Air Operated Single Point Release Locking Latches. Comes with Stack Adapters.","SPO16","CROSS-OVER","PC",36768,{"$f":"$H$1","v":0.41},{"$f":"Table8[[#This Row],[GOV List Price]]*(1-Table8[[#This Row],[NASPO Discount]])","v":21693.120000000003},"Yes"]
["SPO16CARGO","SPO16N1A0BL","Lift, 2-post 16,000 lb. 3 Stage Arms","SPO16","CROSS-OVER","PC",36768,0.41,{"$f":"Table8[[#This Row],[GOV List Price]]*(1-Table8[[#This Row],[NASPO Discount]])","v":21693.120000000003},"Yes"]
["SPO16-LC","SPO16N1TLBL","Lift, 2-post 16,000 lb. low ceiling with overhead adjustments of 13 ft. 6 in. and 14 ft. 6 in. ","SPO16","CROSS-OVER","PC",36768,0.41,{"$f":"Table8[[#This Row],[GOV List Price]]*(1-Table8[[#This Row],[NASPO Discount]])","v":21693.120000000003},"Yes"]
["SPO16CARGO-LC","SPO16N1ALBL","Lift, 2-post 16,000 lb. low ceiling with overhead adjustments of 13 ft. 6 in. and 14 ft. 6 in. 3 Stage Arms","SPO16","CROSS-OVER","PC",36768,0.41,{"$f":"Table8[[#This Row],[GOV List Price]]*(1-Table8[[#This Row],[NASPO Discount]])","v":21693.120000000003},"Yes"]
["SPO20","SPO20N1T0BL","Lift, 2-post 20,000 lb, Single Phase (no 3-phase) Frame Contact Lift. Clear Floor, All TRIO (TM) Arms, Electric-Hydraulic Operation. With Overhead Adjustments of 15 ft., 15 ft. 6 in., 16 ft. and 16 ft. 6 in.  Air Operated Single Point Release Locking Latches. Comes with Stack Adapters.  ","SPO20","CROSS-OVER","PC",45584,0.41,{"$f":"Table8[[#This Row],[GOV List Price]]*(1-Table8[[#This Row],[NASPO Discount]])","v":26894.560000000005},"Yes"]
["SPO20-LC","SPO20N1TLBL","Lift, 2-post 20,000 lb. low ceiling with overhead adjustments of 13 ft. 6 in. and 14 ft. 6 in.  ","SPO20","CROSS-OVER","PC",45584,0.41,{"$f":"Table8[[#This Row],[GOV List Price]]*(1-Table8[[#This Row],[NASPO Discount]])","v":26894.560000000005},"Yes"]
["SPOA10-RASW","SPOA10U16G5BL","Lift, 2-post 10,000 lb Asym w/TRIO rubber adapters, SW (To use with framed vehicles, also order T100273.)","SPOA10",0,0,15657,0.41,{"$f":"Table8[[#This Row],[GOV List Price]]*(1-Table8[[#This Row],[NASPO Discount]])","v":9237.630000000001},"Yes"]
["SPOA10-TASW EH2","SPOA10U16T7BL","Lift, 2-post 10,000 lb Asym w/TRIO truck adapters, SW EH2","SPOA10",0,0,17032,0.41,{"$f":"Table8[[#This Row],[GOV List Price]]*(1-Table8[[#This Row],[NASPO Discount]])","v":10048.880000000001},"Yes"]
["SPOA10-FASW","SPOA10U1605BL","Lift, 2-post 10,000 lb Asym w/TRIO flip-up adapters, SW","SPOA10",0,0,15657,0.41,{"$f":"Table8[[#This Row],[GOV List Price]]*(1-Table8[[#This Row],[NASPO Discount]])","v":9237.630000000001},"Yes"]
["SPOA7-MPSW","SPOA7U13X5BL","Lift, 2-post 7000 lb Asym w/movable pads, SW  Includes (4) FJ2428E spacer blocks and hinged approach ramps. Primarily used on unibody vehicles. ","SPOA7",0,0,18975,0.41,{"$f":"Table8[[#This Row],[GOV List Price]]*(1-Table8[[#This Row],[NASPO Discount]])","v":11195.250000000002},"Yes"]
["SPO12-SW","SPO12U14T5BL","Lift, 2-post 12,000 lb Sym 3-stage SW  Includes (4) 3 1/2\" FJ6171-1 extensions and (4) 5\" FJ6171-2 extensions.","SPO12",0,0,18090,0.41,{"$f":"Table8[[#This Row],[GOV List Price]]*(1-Table8[[#This Row],[NASPO Discount]])","v":10673.100000000002},"Yes"]
["SPO12-SW EH2","SPO12U14T7BL","Lift, 2-post 12,000 lb Sym 3-stage SW EH2","SPO12",0,0,19713,0.41,{"$f":"Table8[[#This Row],[GOV List Price]]*(1-Table8[[#This Row],[NASPO Discount]])","v":11630.670000000002},"Yes"]
["SPO16-SW","SPO16U1T0BL","Lift, 2-post 16,000 lb. Shockwave DC Controls & Power.  ","SPO16","CROSS-OVER","PC",42456,0.41,{"$f":"Table8[[#This Row],[GOV List Price]]*(1-Table8[[#This Row],[NASPO Discount]])","v":25049.040000000005},"Yes"]
["SPO20-SW","SPO20U1T0BL","Lift, 2-post 20,000 lb. Shockwave DC Controls & Power.  ","SPO20","CROSS-OVER","PC",50782,0.41,{"$f":"Table8[[#This Row],[GOV List Price]]*(1-Table8[[#This Row],[NASPO Discount]])","v":29961.380000000005},"Yes"]
["FJ7923","FJ7923","Latch cable, SS","FJ7923","ACC.","AC",102,0.25,{"$f":"Table8[[#This Row],[GOV List Price]]*(1-Table8[[#This Row],[NASPO Discount]])","v":76.5},"Yes"]
["FA595","FA595BL","Power unit splash guard","FA595","ACC.","AC",133,0.25,{"$f":"Table8[[#This Row],[GOV List Price]]*(1-Table8[[#This Row],[NASPO Discount]])","v":99.75},"Yes"]
["FA7129","FA7129BK","Power unit bracket extension","FA7129BK","ACC.","AC",87,0.25,{"$f":"Table8[[#This Row],[GOV List Price]]*(1-Table8[[#This Row],[NASPO Discount]])","v":65.25},"Yes"]
["FA5208","FA5208BK","• Seismic model of the DC(SW) SPOA10 Std. Hgt. lift with TA and RA arms","FA5208BK","ACC.","AC",568,0.25,{"$f":"Table8[[#This Row],[GOV List Price]]*(1-Table8[[#This Row],[NASPO Discount]])","v":426},"Yes"]
["N2244YL","N2244YL","Arm kit, 3-stage telescoping arm kit for SPOA9 and SPOA7 200-400 ","N2244","ACC.","AC",3202,0.25,{"$f":"Table8[[#This Row],[GOV List Price]]*(1-Table8[[#This Row],[NASPO Discount]])","v":2401.5},"Yes"]
["FJ6227","FJ6227BL","Retrofit kit, Movable pad for SPOA10-500 series and above.  Reduces lift capacity to 7,000 lbs.","FJ6227BL","ACC.","AC",8310,0.25,{"$f":"Table8[[#This Row],[GOV List Price]]*(1-Table8[[#This Row],[NASPO Discount]])","v":6232.5},"Yes"]
["SMO14L","SMO14N101YBL","Lift, 4-post 14,000 lb open front, 182\" max wheel base ","SMO14T",0,0,19573,{"$f":"$H$1","v":0.41},{"$f":"Table8[[#This Row],[GOV List Price]]*(1-Table8[[#This Row],[NASPO Discount]])","v":11548.070000000002},"No"]
["SMO14EL2","SMO14N102YBL","Lift, 4-post 14,000 lb open front, 215\" max wheel base","SMO14T","LIGHT DUTY","LS",20571,0.41,{"$f":"Table8[[#This Row],[GOV List Price]]*(1-Table8[[#This Row],[NASPO Discount]])","v":12136.890000000001},"No"]
["SM14L","SM14N101YBL","Lift, 4-post 14,000 lb, 182\" max wheel base","SM14T","LIGHT DUTY","LS",15052,0.41,{"$f":"Table8[[#This Row],[GOV List Price]]*(1-Table8[[#This Row],[NASPO Discount]])","v":8880.6800000000021},"No"]
["SM14EL2","SM14N102YBL","Lift, 4-post 14,000 lb, 215\" max wheel base","SM14T","LIGHT DUTY","LS",16023,0.41,{"$f":"Table8[[#This Row],[GOV List Price]]*(1-Table8[[#This Row],[NASPO Discount]])","v":9453.5700000000015},"No"]
["SM18","SM18N000BL","Lift, 4-post 18,000 lb, 194\" max wheel base","SM18","CROSS-OVER","CL",24847,0.41,{"$f":"Table8[[#This Row],[GOV List Price]]*(1-Table8[[#This Row],[NASPO Discount]])","v":14659.730000000001},"No"]
["SM18-EL2","SM18N001BL","Lift, 4-post 18,000 lb, 230\" max wheel base","SM18","CROSS-OVER","CL",27220,0.41,{"$f":"Table8[[#This Row],[GOV List Price]]*(1-Table8[[#This Row],[NASPO Discount]])","v":16059.800000000003},"No"]
["RFL25","RFL25N010BL","Lift, 4-post 25,000 lb, 163\" max wheel base,  Forklift Lift","RFL25","CROSS-OVER","CL",61684,0.41,{"$f":"Table8[[#This Row],[GOV List Price]]*(1-Table8[[#This Row],[NASPO Discount]])","v":36393.560000000005},"No"]
["SM30-S","SM30N010BL","Lift, 4-post 30,000 lb, 235\" max wheel base","SM30","CROSS-OVER","CL",46396,0.41,{"$f":"Table8[[#This Row],[GOV List Price]]*(1-Table8[[#This Row],[NASPO Discount]])","v":27373.640000000003},"No"]
["SM30-L","SM30N011BL","Lift, 4-post 30,000 lb, 271\" max wheel base","SM30","CROSS-OVER","CL",50617,0.41,{"$f":"Table8[[#This Row],[GOV List Price]]*(1-Table8[[#This Row],[NASPO Discount]])","v":29864.030000000002},"No"]
["SM30-EL3","SM30N012BL","Lift, 4-post 30,000 lb, 307\" max wheel base","SM30","CROSS-OVER","CL",54836,0.41,{"$f":"Table8[[#This Row],[GOV List Price]]*(1-Table8[[#This Row],[NASPO Discount]])","v":32353.240000000005},"No"]
["SMO14L-SW","SMO14U101TYBL","Lift, 4-post 14,000 lb open front, 182\" max wheel base SW","SMO14T",0,0,23427,0.41,{"$f":"Table8[[#This Row],[GOV List Price]]*(1-Table8[[#This Row],[NASPO Discount]])","v":13821.930000000002},"No"]
["SMO14EL2-SW","SMO14U102TYBL","Lift, 4-post 14,000 lb open front, 215\" max wheel base SW","SMO14T","LIGHT DUTY","PS",24426,0.41,{"$f":"Table8[[#This Row],[GOV List Price]]*(1-Table8[[#This Row],[NASPO Discount]])","v":14411.340000000002},"No"]
["SM14L-SW","SM14U101YBL","Lift, 4-post 14,000 lb, 182\" max wheel base SW","SM14T","LIGHT DUTY","PS",19109,0.41,{"$f":"Table8[[#This Row],[GOV List Price]]*(1-Table8[[#This Row],[NASPO Discount]])","v":11274.310000000001},"No"]
["SM14EL2-SW","SM14U102YBL","Lift, 4-post 14,000 lb, 215\" max wheel base SW","SM14T","LIGHT DUTY","PL",20077,0.41,{"$f":"Table8[[#This Row],[GOV List Price]]*(1-Table8[[#This Row],[NASPO Discount]])","v":11845.430000000002},"No"]
["X14","X14N0010BL","Surface mounted lift, 14,000 lb general service, 198\" max wheel base - Available in blue only",0,0,0,41106,0.41,{"$f":"Table8[[#This Row],[GOV List Price]]*(1-Table8[[#This Row],[NASPO Discount]])","v":24252.540000000005},"Yes"]
["X14-FM","X14N0011BL","Flush mount lift, 14,000 lb general service, 198\" max wheel base - Available in blue only ",0,0,0,41106,0.41,{"$f":"Table8[[#This Row],[GOV List Price]]*(1-Table8[[#This Row],[NASPO Discount]])","v":24252.540000000005},"Yes"]
["FC5974","FC5974BL","Filler plate, radius gauge, 17.5\" opening KIT OF TWO","FC5974BL","ACC.","AC",512,0.25,{"$f":"Table8[[#This Row],[GOV List Price]]*(1-Table8[[#This Row],[NASPO Discount]])","v":384},"Yes"]
["FC5102","FC5102BL","Filler plate, radius gauge, 18 5/16\" opening  KIT OF TWO","FC5102","ACC.","AC",431,0.25,{"$f":"Table8[[#This Row],[GOV List Price]]*(1-Table8[[#This Row],[NASPO Discount]])","v":323.25},"Yes"]
["RJ6000Y-R","RJ6100YM","Rolling Jack, 6000 lb.  SM121, SM/SMO122 and AR/ARO122 Prior to April 2000","RJ6100YM","ACC.","AC",6395,0.25,{"$f":"Table8[[#This Row],[GOV List Price]]*(1-Table8[[#This Row],[NASPO Discount]])","v":4796.25},"Yes"]
["RJ7000Y","RJ7100YM","Rolling Jack, 7000 lb. Includes rubber adapter blocks: (2) 1.5” tall FJ2427E and (2) 3” tall FJ2428E.","RJ7100YM","ACC.","AC",7047,0.25,{"$f":"Table8[[#This Row],[GOV List Price]]*(1-Table8[[#This Row],[NASPO Discount]])","v":5285.25},"Yes"]
["RJ9000YBK","RJ9100YM","Rolling Jack, 9000 lb.  For SM18, Includes rubber adapter blocks: (2) .5” tall SB700071Y, (2) 1.5” tall FJ2427E and (2) 3” tall FJ2428E.","RJ9100YM","ACC.","AC",8024,0.25,{"$f":"Table8[[#This Row],[GOV List Price]]*(1-Table8[[#This Row],[NASPO Discount]])","v":6018},"Yes"]
["RJ9000Y-1BK","RJ9000Y-1BK","Rolling Jack, 9000 lb.  For SM181 Only","RJ9000Y-1","ACC.","AC",7988,0.25,{"$f":"Table8[[#This Row],[GOV List Price]]*(1-Table8[[#This Row],[NASPO Discount]])","v":5991},"Yes"]
["RJ9000Y-2BK","RJ9000Y-2BK","Rolling Jack, 9000 lb.  For SM30 Lifts.  For Passenger Cars Trucks Only.","RJ9000Y-2","ACC.","AC",8907,0.25,{"$f":"Table8[[#This Row],[GOV List Price]]*(1-Table8[[#This Row],[NASPO Discount]])","v":6680.25},"Yes"]
["VSJ30PRU ","VSJ30PRU","Rolling Jack, 7,000 lb for X14 and XA14","VSJ30PRU","ACCS","WA",7194,0.25,{"$f":"Table8[[#This Row],[GOV List Price]]*(1-Table8[[#This Row],[NASPO Discount]])","v":5395.5},"Yes"]
["RJ152BK","RJ152BK","Heavy Duty Rolling Jack, 15,000 lb. For SM30, Series Lifts.  S/T RJ150 but with a lower profile top and drop in adapters.","RJ152BK","ACC.","AC",18464,0.25,{"$f":"Table8[[#This Row],[GOV List Price]]*(1-Table8[[#This Row],[NASPO Discount]])","v":13848},"Yes"]
["S100077Kit","S100077Kit","Efficiency package includes (2) RJ7000 and Airline Kit (uninstalled) for SM/SMO14.","S100077","ACC.","AC",14912,0.25,{"$f":"Table8[[#This Row],[GOV List Price]]*(1-Table8[[#This Row],[NASPO Discount]])","v":11184},"Yes"]
["S100016","S100016BL","Efficiency package, (2) RJ6000 Rolling Bridges, FA5501-1  Bolt-On Alignment Package","S100016","ACC.","AC",19323,0.25,{"$f":"Table8[[#This Row],[GOV List Price]]*(1-Table8[[#This Row],[NASPO Discount]])","v":14492.25},"Yes"]
["S100017","S100017BL","Efficiency package includes Two (2) RJ6000 Rolling Bridges, Airline Kit (uninstalled), bolt-on alignment package and stainless steel radius gauge for SM/SMO123.","S100017","ACC.","AC",21450,0.25,{"$f":"Table8[[#This Row],[GOV List Price]]*(1-Table8[[#This Row],[NASPO Discount]])","v":16087.5},"Yes"]
["SB700071Y","SB700071Y","Adapter, polymer,1/2\".  Included in FJ2498 kit.","SB700071Y","ACC.","AC",32,0.25,{"$f":"Table8[[#This Row],[GOV List Price]]*(1-Table8[[#This Row],[NASPO Discount]])","v":24},"Yes"]
["FJ2427","FJ2427","Adapter, polymer, 1-1/2\".  Included in FJ2439 kit.","FJ2427","ACC.","AC",40,0.25,{"$f":"Table8[[#This Row],[GOV List Price]]*(1-Table8[[#This Row],[NASPO Discount]])","v":30},"Yes"]
["FJ2428","FJ2428","Adapter, polymer, 3\".  Included in FJ2440 kit.","FJ2428","ACC.","AC",54,0.25,{"$f":"Table8[[#This Row],[GOV List Price]]*(1-Table8[[#This Row],[NASPO Discount]])","v":40.5},"Yes"]
["SB100040YL","SB100040YL","Adapter kit, extended height,  SUV straight axle.  Kit includes (2)  7” Adapters. For RJ9000Y.","SB100040YL","ACC.","AC",282,0.25,{"$f":"Table8[[#This Row],[GOV List Price]]*(1-Table8[[#This Row],[NASPO Discount]])","v":211.5},"Yes"]
["SB100017YL","SB100017YL","Adapter kit, extended height, SUV straight axle.  Kit includes (2) SB300055 7” Adapters. For RJ7000.","SB100017","ACC.","AC",282,0.25,{"$f":"Table8[[#This Row],[GOV List Price]]*(1-Table8[[#This Row],[NASPO Discount]])","v":211.5},"Yes"]
["SB100003YL","SB100003YL","Adapter kit, extended height, SUV straight axle.  Kit includes (2) SB300019 7” Adapters. For RJ6000.","SB100003","ACC.","AC",282,0.25,{"$f":"Table8[[#This Row],[GOV List Price]]*(1-Table8[[#This Row],[NASPO Discount]])","v":211.5},"Yes"]
["FJ6211BK","FJ6211BK","Adapters, extended, pad lifts.  Includes (4) FJ6205 7” truck adapters.","FJ6211","ACC.","AC",622,0.25,{"$f":"Table8[[#This Row],[GOV List Price]]*(1-Table8[[#This Row],[NASPO Discount]])","v":466.5},"Yes"]
["S100151","S100151BL","Ramp chock kit, drive-thru, SM/SMO/ARO14 -100 Series, SM101.  Includes Two (2) S110405Y Ramps (40-1/2”) and (2) Hinge Pins.","S100151BL","ACC.","AC",1238,0.25,{"$f":"Table8[[#This Row],[GOV List Price]]*(1-Table8[[#This Row],[NASPO Discount]])","v":928.5},"Yes"]
["S100152Y","S100152YBL","Ramp chock kit, extended, SM/SMO/ARO14 -100, SM101.  Includes Two (2) S110406Y Ramps (49-7/16”) and (2) Hinge Pins.  ($160 Adder Only When Substituted For Standard Length Ramps On New Lift Order.) ","S100152YBL","ACC.","AC",1274,0.25,{"$f":"Table8[[#This Row],[GOV List Price]]*(1-Table8[[#This Row],[NASPO Discount]])","v":955.5},"Yes"]
["S100013","S100013BL","Ramp chock kit, extended, SM/AR18.  Includes Two (2) S110085 Ramps and (2) Hinge Pins.  ($160 Adder Only When Substituted For Standard Length Ramps On New Lift Order.) ","S100013","ACC.","AC",1760,0.25,{"$f":"Table8[[#This Row],[GOV List Price]]*(1-Table8[[#This Row],[NASPO Discount]])","v":1320},"Yes"]
["FC5825BK","FC5825BK","Ramp chock Kit, drive-thru, SM18.  Includes Two (2) FC5810-43 Ramps and (2) Hinge Pins.","FC5825","ACC.","AC",1622,0.25,{"$f":"Table8[[#This Row],[GOV List Price]]*(1-Table8[[#This Row],[NASPO Discount]])","v":1216.5},"Yes"]
["FC5780-3","FC5780-3BL","Ramp chock, drive thru, SM300-200, SM30 Series Lifts QTY OF ONE","FC5780-3","ACC.","AC",996,0.25,{"$f":"Table8[[#This Row],[GOV List Price]]*(1-Table8[[#This Row],[NASPO Discount]])","v":747},"Yes"]
["FC5781-7","FC5781-7BL","Ramp chock, extended, SM300-200. QTY 1               $733 adder when ordered with lift ","FC5781-7","ACC.","AC",1609,0.25,{"$f":"Table8[[#This Row],[GOV List Price]]*(1-Table8[[#This Row],[NASPO Discount]])","v":1206.75},"Yes"]
["FC663BK","FC663BK","Jack tray, rolling SM/SMO122, SM/SMO123, SM/SM014.  (Bottle Jacks Are Not Included)","FC663","ACC.","AC",1178,0.25,{"$f":"Table8[[#This Row],[GOV List Price]]*(1-Table8[[#This Row],[NASPO Discount]])","v":883.5},"Yes"]
["FC613BK","FC613BK","Jack tray, rolling, SM30. (Bottle Jacks Not Included)","FC613","ACC.","AC",6121,0.25,{"$f":"Table8[[#This Row],[GOV List Price]]*(1-Table8[[#This Row],[NASPO Discount]])","v":4590.75},"Yes"]
["FC5378BK","FC5378BK","Work steps, bolt-on, 4-post","FC5378","ACC.","AC",1184,0.25,{"$f":"Table8[[#This Row],[GOV List Price]]*(1-Table8[[#This Row],[NASPO Discount]])","v":888},"Yes"]
["FC5967BK","FC5967BK","Drain pan, 30 Gallon rolling, low profile, QL4P, SM/SMO122, SM/SMO14, SM18, YA-12 at 43” setting","FC5967","ACC.","AC",1830,0.25,{"$f":"Table8[[#This Row],[GOV List Price]]*(1-Table8[[#This Row],[NASPO Discount]])","v":1372.5},"Yes"]
["FC5968BK","FC5968BK","Drain pan, 30 Gallon rolling, SM30 ","FC5968BK","ACC.","AC",2378,0.25,{"$f":"Table8[[#This Row],[GOV List Price]]*(1-Table8[[#This Row],[NASPO Discount]])","v":1783.5},"Yes"]
["FC5247","FC5247","Hose, 8 ft oil drain w/QD fitting","FC5247","ACC.","AC",234,0.25,{"$f":"Table8[[#This Row],[GOV List Price]]*(1-Table8[[#This Row],[NASPO Discount]])","v":175.5},"Yes"]
["FC5760-14","FC5760-14","Internal Air Line Kit (retrofit) for all SM/SMO14 Series, SM18, QL12 and Y-Lift","FC5760-14","ACC.","AC",879,0.25,{"$f":"Table8[[#This Row],[GOV List Price]]*(1-Table8[[#This Row],[NASPO Discount]])","v":659.25},"Yes"]
["FC7138","FC7138","Internal Air Line Kit (retrofit) for all X14 and XA14","FC7138","ACC.","AC",901,0.25,{"$f":"Table8[[#This Row],[GOV List Price]]*(1-Table8[[#This Row],[NASPO Discount]])","v":675.75},"Yes"]
["FC5393BK","FC5393KITBK","Shim kit, 1/4”, SM/SMO, AR/ARO123, QL Models, SM18, SM30    4\" OF SHIMS","FC5393","ACC.","AC",535,0.25,{"$f":"Table8[[#This Row],[GOV List Price]]*(1-Table8[[#This Row],[NASPO Discount]])","v":401.25},"Yes"]
["FC5414","FC5414BK","Shim kit, 1/4”, SM/SMO, AR/ARO123, QL Models, SM18, SM30    8\" OF SHIMS","FC5414","ACC.","AC",775,0.25,{"$f":"Table8[[#This Row],[GOV List Price]]*(1-Table8[[#This Row],[NASPO Discount]])","v":581.25},"Yes"]
["S100093","S100093BK","Shim kit, front Of SMO14/ARO14, (2) 1/4” & (4) 1/16” Shims.","S100093BK","ACC.","AC",431,0.25,{"$f":"Table8[[#This Row],[GOV List Price]]*(1-Table8[[#This Row],[NASPO Discount]])","v":323.25},"Yes"]
["FA5211","FA5211","Turntable, 7500 lb SS","FA5211","ACC.","AC",2615,0.25,{"$f":"Table8[[#This Row],[GOV List Price]]*(1-Table8[[#This Row],[NASPO Discount]])","v":1961.25},"Yes"]
["FA5211KIT","FA5211KIT","Turntable kit, 7500 lb","FA5211KIT","ACC.","AC",5101,0.25,{"$f":"Table8[[#This Row],[GOV List Price]]*(1-Table8[[#This Row],[NASPO Discount]])","v":3825.75},"Yes"]
["TT1001","TT1001KIT","Radius gauge kit, 3000 lb, SS.  Includes (2) FA5153 S/S radius gauges; and (4) Retaining Bars -- Part # FA5153-1. ","TT1001KIT","ACC.","AC",3363,0.25,{"$f":"Table8[[#This Row],[GOV List Price]]*(1-Table8[[#This Row],[NASPO Discount]])","v":2522.25},"Yes"]
["FA5155KIT","FA5155KIT","Radius gauge kit, 3000 lb. Includes (2) Standard Turning Radius Gauges--Part #FA5157; and (4) Retaining Bars--Part #FA5153-1. ","FA5155","ACC.","AC",2345,0.25,{"$f":"Table8[[#This Row],[GOV List Price]]*(1-Table8[[#This Row],[NASPO Discount]])","v":1758.75},"Yes"]
["S130205","S130205","Radius gauge, 4500 lb, no pointer, SS (2 required)","S130205","ACC.","AC",1421,0.25,{"$f":"Table8[[#This Row],[GOV List Price]]*(1-Table8[[#This Row],[NASPO Discount]])","v":1065.75},"Yes"]
["S130237","S130237","Radius gauge, AR18, no pointer, SS (2 required)","S130237","ACC.","AC",1670,0.25,{"$f":"Table8[[#This Row],[GOV List Price]]*(1-Table8[[#This Row],[NASPO Discount]])","v":1252.5},"Yes"]
["S100147","S100147","Shield kit, rear SS,  AR/ARO14 -100 Series","S100147","ACC.","AC",2652,0.25,{"$f":"Table8[[#This Row],[GOV List Price]]*(1-Table8[[#This Row],[NASPO Discount]])","v":1989},"Yes"]
["S100148","S100148","Shield kit, front SS, AR/ARO14 -100 Series","S100148","ACC.","AC",2380,0.25,{"$f":"Table8[[#This Row],[GOV List Price]]*(1-Table8[[#This Row],[NASPO Discount]])","v":1785},"Yes"]
["S100096","S100096","Shield kit, rear SS,  AR/ARO14","S100096","ACC.","AC",2652,0.25,{"$f":"Table8[[#This Row],[GOV List Price]]*(1-Table8[[#This Row],[NASPO Discount]])","v":1989},"Yes"]
["S100095","S100095","Shield kit, front SS, AR/ARO14","S100095","ACC.","AC",2380,0.25,{"$f":"Table8[[#This Row],[GOV List Price]]*(1-Table8[[#This Row],[NASPO Discount]])","v":1785},"Yes"]
["FC7118","FC7118","Shield kit, rear SS, AR/ARO12","FC7118","ACC.","AC",2071,0.25,{"$f":"Table8[[#This Row],[GOV List Price]]*(1-Table8[[#This Row],[NASPO Discount]])","v":1553.25},"Yes"]
["S100052","S100052","Shield kit, front SS AR/ARO12","S100052","ACC.","AC",2380,0.25,{"$f":"Table8[[#This Row],[GOV List Price]]*(1-Table8[[#This Row],[NASPO Discount]])","v":1785},"Yes"]
["FA647","FA647BL","Runway extension, 2 ft, SM/SMO 12,000 lb","FA647","ACC.","AC",1228,0.25,{"$f":"Table8[[#This Row],[GOV List Price]]*(1-Table8[[#This Row],[NASPO Discount]])","v":921},"Yes"]
["S100060","S100060BL","Runway extension, 2 ft, SM/SMO 14,000 lb. ","S100060","ACC.","AC",1638,0.25,{"$f":"Table8[[#This Row],[GOV List Price]]*(1-Table8[[#This Row],[NASPO Discount]])","v":1228.5},"Yes"]
["S100142YBL","S100142YBL","Runway extension, 2 ft for SM14-100","S100142YBL","ACC.","AC",1638,0.25,{"$f":"Table8[[#This Row],[GOV List Price]]*(1-Table8[[#This Row],[NASPO Discount]])","v":1228.5},"Yes"]
["S100012","S100012BL","Runway extension, 2 ft SM18/180","S100012","ACC.","AC",1638,0.25,{"$f":"Table8[[#This Row],[GOV List Price]]*(1-Table8[[#This Row],[NASPO Discount]])","v":1228.5},"Yes"]
["S100018","S100018BL","Runway extension, 3 ft SM300-200/300, SM30","S100018","ACC.","AC",3455,0.25,{"$f":"Table8[[#This Row],[GOV List Price]]*(1-Table8[[#This Row],[NASPO Discount]])","v":2591.25},"Yes"]
["FA641-18","FA641-18BL","Runway extension, 3 ft SM300-100","FA641-18","ACC.","AC",4670,0.25,{"$f":"Table8[[#This Row],[GOV List Price]]*(1-Table8[[#This Row],[NASPO Discount]])","v":3502.5},"Yes"]
["ARO14L","ARO14N101YBL","Lift, 4-post 14,000 lb alignment, open front, 182\" max wheel base ","ARO14T",0,0,46818,{"$f":"$H$1","v":0.41},{"$f":"Table8[[#This Row],[GOV List Price]]*(1-Table8[[#This Row],[NASPO Discount]])","v":27622.620000000003},"No"]
["ARO14-EL2","ARO14N102TYBL","Lift, 4-post 14,000 lb alignment, open front, 215\" max wheel base","ARO14T","LIGHT DUTY","LS",47641,0.41,{"$f":"Table8[[#This Row],[GOV List Price]]*(1-Table8[[#This Row],[NASPO Discount]])","v":28108.190000000002},"No"]
["AR18","AR18N110BL","Lift, 4-post 18,000 lb alignment, 194\" max wheel base","AR18","CROSS-OVER","CL",49770,0.41,{"$f":"Table8[[#This Row],[GOV List Price]]*(1-Table8[[#This Row],[NASPO Discount]])","v":29364.300000000003},"No"]
["AR18-EL","AR18N111BL","Lift, 4-post 18,000 lb alignment, 230 max wheel base","AR18","CROSS-OVER","CL",53494,0.41,{"$f":"Table8[[#This Row],[GOV List Price]]*(1-Table8[[#This Row],[NASPO Discount]])","v":31561.460000000003},"No"]
["ARO14L-SW","ARO14U101YBL","Lift, 4-post 14,000 lb alignment, open front SW, 182\" max wheel base SW","ARO14T",0,0,50163,0.41,{"$f":"Table8[[#This Row],[GOV List Price]]*(1-Table8[[#This Row],[NASPO Discount]])","v":29596.170000000006},"No"]
["ARO14-EL2-SW","ARO14U102TYBL","Lift, 4-post 14,000 lb alignment, open front SW, 215\" max wheel base SW","ARO14T","LIGHT DUTY","PS",50985,0.41,{"$f":"Table8[[#This Row],[GOV List Price]]*(1-Table8[[#This Row],[NASPO Discount]])","v":30081.150000000005},"No"]
["S100130-L","S100130MBL","Alignment kit, bolt-on SM/SMO14-100 Series w/SS radius gauges, slip plates 182\" WB","S100130MBL","ACC.","AC",12875,0.25,{"$f":"Table8[[#This Row],[GOV List Price]]*(1-Table8[[#This Row],[NASPO Discount]])","v":9656.25},"No"]
["S100131-EL2","S100131MBL","Alignment kit, bolt-on SM/SMO14-100 Series w/SS radius gauges, slip plates  215\" WB","S100131MBL","ACC.","AC",13715,0.25,{"$f":"Table8[[#This Row],[GOV List Price]]*(1-Table8[[#This Row],[NASPO Discount]])","v":10286.25},"No"]
["S100136-L","S100136MBL","Alignment kit, bolt-on SM/SMO14-100 Series w/slip plates  182\" WB","S100136MBL","ACC.","AC",6408,0.25,{"$f":"Table8[[#This Row],[GOV List Price]]*(1-Table8[[#This Row],[NASPO Discount]])","v":4806},"No"]
["S100171","S100171BL","Alignment Bolt On SM/SMO14 Series","S100171BL","ACC.","AC",16507,0.25,{"$f":"Table8[[#This Row],[GOV List Price]]*(1-Table8[[#This Row],[NASPO Discount]])","v":12380.25},"No"]
["S100137-EL2","S100137MBL","Alignment kit, bolt-on SM/SMO14-100 Series w/slip plates  215\" WB","S100137MBL","ACC.","AC",7265,0.25,{"$f":"Table8[[#This Row],[GOV List Price]]*(1-Table8[[#This Row],[NASPO Discount]])","v":5448.75},"No"]
["S100182","S100182BL","Alignment kit, bolt-on SM18 w/SS steel radius gauges, slip plates  194\" WB","S100182BL","ACC.","AC",11073,0.25,{"$f":"Table8[[#This Row],[GOV List Price]]*(1-Table8[[#This Row],[NASPO Discount]])","v":8304.75},"No"]
["S100181","S100181BL","Alignment kit, bolt-on SM18-EL2 w/SS steel radius gauges, slip plates  230\" WB","S100181BL","ACC.","AC",11256,0.25,{"$f":"Table8[[#This Row],[GOV List Price]]*(1-Table8[[#This Row],[NASPO Discount]])","v":8442},"No"]
["FA5501-1","FA5501-1BL","Alignment kit, Smart Lift DOR style lift.  Kit consists of Bolt-on Kit, front turning Stainless Steel Radius Gauge Kit, rear slip plate kit, leveling legs, and all necessary hardware (drilling and tapping required). Recommended for use with (2) Rolling Jacks for performing 4-Wheel Alignment. FC7117 kit.","FA5501-1","ACC.","AC",7877,0.25,{"$f":"Table8[[#This Row],[GOV List Price]]*(1-Table8[[#This Row],[NASPO Discount]])","v":5907.75},"No"]
["FC7125","FC7125BL","A Wheel Alignment w/ Rollback Conversion Package For SM30 Series Lifts Including: (1) FC5394 Heavy Duty Carbon Steel Turntables (Pair) And Guides; (2) Front/Rear Rollback Plates; (1) FC5395 Heavy Duty Bolt On Work Step Kit; Recoil Hose; Necessary Hardware And Instructions. (Drilling Required.)","FC7125BL","ACC.","AC",11517,0.25,{"$f":"Table8[[#This Row],[GOV List Price]]*(1-Table8[[#This Row],[NASPO Discount]])","v":8637.75},"No"]
["FC7117 Kit","PK304FC7117Y","Filler adapter kit, alignment rack","PK304FC711","ACC.","AC",95,0.25,{"$f":"Table8[[#This Row],[GOV List Price]]*(1-Table8[[#This Row],[NASPO Discount]])","v":71.25},"Yes"]
["R1070 Pro CCD","RWA7080WS","8-CCD sensor wheel alignment with infra-red transmission among measuring heads","RWA7080","CHANGER/BAL/ALIGNERS","WS",24906,{"$f":"$H$1","v":0.41},{"$f":"Table8[[#This Row],[GOV List Price]]*(1-Table8[[#This Row],[NASPO Discount]])","v":14694.540000000003},"Yes"]
["R1085","RWA3D1085","Portable 3D Wheel Aligner System","RWA1085","CHANGER/BAL/ALIGNERS","WS",33702,{"$f":"$H$1","v":0.41},{"$f":"Table8[[#This Row],[GOV List Price]]*(1-Table8[[#This Row],[NASPO Discount]])","v":19884.180000000004},"Yes"]
["R1090","RWA3D1090","Portable 3D Wheel Aligner System","RWA1090","CHANGER/BAL/ALIGNERS","WS",41474,0.41,{"$f":"Table8[[#This Row],[GOV List Price]]*(1-Table8[[#This Row],[NASPO Discount]])","v":24469.660000000003},"Yes"]
["R5000HD CTAPRO","RWA8060TWS","Commercial Truck Aligner","RWA8060TWS","CHANGER/BAL/ALIGNERS","WS",54671,0.41,{"$f":"Table8[[#This Row],[GOV List Price]]*(1-Table8[[#This Row],[NASPO Discount]])","v":32255.890000000003},"Yes"]
["STDA117","STDA117","Set of two sensor support kits for model R1080","STDA117","ACCS","WA",493,0.25,{"$f":"Table8[[#This Row],[GOV List Price]]*(1-Table8[[#This Row],[NASPO Discount]])","v":369.75},"Yes"]
["XA14","XA14N0110BL","Surface mounted lift, 14,000 lb alignment, 198\" max wheel base, air locking rear slip-plates, jacks and internal air included.",0,0,0,57141,{"$f":"$H$1","v":0.41},{"$f":"Table8[[#This Row],[GOV List Price]]*(1-Table8[[#This Row],[NASPO Discount]])","v":33713.19},"Yes"]
["XA14-FM","XA14N0111BL","Flush mount lift, 14,000 lb alignment, 198\" max wheel base, air locking rear slip-plates, jacks and internal air included.",0,0,0,57141,{"$f":"$H$1","v":0.41},{"$f":"Table8[[#This Row],[GOV List Price]]*(1-Table8[[#This Row],[NASPO Discount]])","v":33713.19},"Yes"]
["Z100006","Z100006BL","Ramps, rear, extended (add $160 when ordering with lift in place of standard ramps).","Z100006BL","ACC.","AC",1507,0.25,{"$f":"Table8[[#This Row],[GOV List Price]]*(1-Table8[[#This Row],[NASPO Discount]])","v":1130.25},"Yes"]
["Z100007","Z100007BL","Ramps, rear, flush (add $160 when ordering with lift in place of standard ramps).","Z100007BL","ACC.","AC",1507,0.25,{"$f":"Table8[[#This Row],[GOV List Price]]*(1-Table8[[#This Row],[NASPO Discount]])","v":1130.25},"Yes"]
["Z100008","Z100008BL","Ramps, front, standard drive thru, 54\"","Z100008BL","ACC.","AC",1479,0.25,{"$f":"Table8[[#This Row],[GOV List Price]]*(1-Table8[[#This Row],[NASPO Discount]])","v":1109.25},"Yes"]
["Z100009","Z100009BL","Ramps, front, extended drive thru, 70\"","Z100009BL","ACC.","AC",1538,0.25,{"$f":"Table8[[#This Row],[GOV List Price]]*(1-Table8[[#This Row],[NASPO Discount]])","v":1153.5},"Yes"]
["Z100010","Z100010BL","Ramps, flush front drive thru","Z100010BL","ACC.","AC",1538,0.25,{"$f":"Table8[[#This Row],[GOV List Price]]*(1-Table8[[#This Row],[NASPO Discount]])","v":1153.5},"Yes"]
["Z100011","Z100011BL","Slip plate refurbish kit, rear","Z100011BL","PARTS","AP",2652,0.25,{"$f":"Table8[[#This Row],[GOV List Price]]*(1-Table8[[#This Row],[NASPO Discount]])","v":1989},"Yes"]
["Z100012","Z100012BK","Shim kit, 2 1/4\" total","Z100012BK","ACC.","AC",702,0.25,{"$f":"Table8[[#This Row],[GOV List Price]]*(1-Table8[[#This Row],[NASPO Discount]])","v":526.5},"Yes"]
["Z100013","Z100013BK","Shim kit, 2\" total","Z100013BK","ACC.","AC",702,0.25,{"$f":"Table8[[#This Row],[GOV List Price]]*(1-Table8[[#This Row],[NASPO Discount]])","v":526.5},"Yes"]
["Z100014","Z100014","Slip plate base kit, rear, SS","Z100014","ACC.","AC",7042,0.25,{"$f":"Table8[[#This Row],[GOV List Price]]*(1-Table8[[#This Row],[NASPO Discount]])","v":5281.5},"Yes"]
["Z100017","Z100017KITYL","Hose relocate kit","Z100017KIT","ACC.","AC",771,0.25,{"$f":"Table8[[#This Row],[GOV List Price]]*(1-Table8[[#This Row],[NASPO Discount]])","v":578.25},"Yes"]
["Z100020","Z100020BK","Spacer tool","Z100020BK","ACC.","AC",210,0.25,{"$f":"Table8[[#This Row],[GOV List Price]]*(1-Table8[[#This Row],[NASPO Discount]])","v":157.5},"Yes"]
["FA5157","FA5157KIT","Radius gauge, carbon steel  QTY OF ONE","FA5157","ACC.","AC",1366,0.25,{"$f":"Table8[[#This Row],[GOV List Price]]*(1-Table8[[#This Row],[NASPO Discount]])","v":1024.5},"Yes"]
["Z100022","Z100022BL","Radius gauge filler kit, Y-Lift","Z100022BL","ACC.","AC",635,0.25,{"$f":"Table8[[#This Row],[GOV List Price]]*(1-Table8[[#This Row],[NASPO Discount]])","v":476.25},"Yes"]
["RLP77","RLP77N0000MBL","Lift, double scissor Fixed Pad.  Available in colors of blue, red and black.","RLP77","LIGHT DUTY","LS",24901,{"$f":"$H$1","v":0.41},{"$f":"Table8[[#This Row],[GOV List Price]]*(1-Table8[[#This Row],[NASPO Discount]])","v":14691.590000000002},"Yes"]
["XX100018","XX100018","Hose kit 4.5' extension (1.5mm).","XX100018","ACC.","AC",218,0.25,{"$f":"Table8[[#This Row],[GOV List Price]]*(1-Table8[[#This Row],[NASPO Discount]])","v":163.5},"Yes"]
["XX100019","XX100019","Hose kit 8' extension (2.5mm).","XX100019","ACC.","AC",259,0.25,{"$f":"Table8[[#This Row],[GOV List Price]]*(1-Table8[[#This Row],[NASPO Discount]])","v":194.25},"Yes"]
["XX100032","XX100032YL","Long Ramp Kit","XX100032YL","ACC.","AC",2113,0.25,{"$f":"Table8[[#This Row],[GOV List Price]]*(1-Table8[[#This Row],[NASPO Discount]])","v":1584.75},"Yes"]
["XX100003BK","XX100003BK","Flush mount kit.","XX100003BK","ACC.","AC",957,0.25,{"$f":"Table8[[#This Row],[GOV List Price]]*(1-Table8[[#This Row],[NASPO Discount]])","v":717.75},"Yes"]
["VLXS10","VLXS10000BL","Lift, 10,000 lb fixed pad low rise",0,0,0,9478,{"$f":"$H$1","v":0.41},{"$f":"Table8[[#This Row],[GOV List Price]]*(1-Table8[[#This Row],[NASPO Discount]])","v":5592.02},"Yes"]
["N257KITYL","N257KITYL","Arm kit, TL07-200/400 Series to flip-up style","N257","ACC.","AC",2964,0.25,{"$f":"Table8[[#This Row],[GOV List Price]]*(1-Table8[[#This Row],[NASPO Discount]])","v":2223},"Yes"]
["N2206YL","N2206YL","Arm kit, TL07-500 Series to flip-up style","N2206","ACC.","AC",2964,0.25,{"$f":"Table8[[#This Row],[GOV List Price]]*(1-Table8[[#This Row],[NASPO Discount]])","v":2223},"Yes"]
["FJ5123YL","FJ5123YL","Rail Bolster Kit for SPO9-200/400 Series, 7000 lbs","FJ5123","ACC.","AC",8538,0.25,{"$f":"Table8[[#This Row],[GOV List Price]]*(1-Table8[[#This Row],[NASPO Discount]])","v":6403.5},"Yes"]
["FJ5204YL","FJ5204YL","Rail Bolster Kit for SPO10-500 Series and about, 7000 lbs","FJ5204","ACC.","AC",8538,0.25,{"$f":"Table8[[#This Row],[GOV List Price]]*(1-Table8[[#This Row],[NASPO Discount]])","v":6403.5},"Yes"]
["MW-200","MW-200","Wheel lift, 200 lbs air operated. Includes air hose and auxiliary air tool connection.","MW-200","ACC.","AC",3556,0.25,{"$f":"Table8[[#This Row],[GOV List Price]]*(1-Table8[[#This Row],[NASPO Discount]])","v":2667},"Yes"]
["MW-500","MW-500","Wheel lift, 500 lbs air operated. Includes air hose and auxiliary air tool connection.","MW-500","ACC.","AC",5873,0.25,{"$f":"Table8[[#This Row],[GOV List Price]]*(1-Table8[[#This Row],[NASPO Discount]])","v":4404.75},"Yes"]
["FA5310","FA5310","Crossbeam Kit, Movable Pad Lifts.  Kit comes with (2) FA5306 Aluminum Crossbeams, (4) FJ2427E 1 1/2\" and (4) FJ2428E 3\" Rubber Pad Adapters and (4) FJ6211BK 7\" Extended Height Adapters.","FA5310","ACC.","AC",3638,0.25,{"$f":"Table8[[#This Row],[GOV List Price]]*(1-Table8[[#This Row],[NASPO Discount]])","v":2728.5},"Yes"]
["FJ2498","FJ2498","Adapter kit, polymer pad, 1/2\" .  Includes (4) SB700071Yspacer blocks.","FJ2498","ACC.","AC",106,0.25,{"$f":"Table8[[#This Row],[GOV List Price]]*(1-Table8[[#This Row],[NASPO Discount]])","v":79.5},"Yes"]
["FJ2439","FJ2439","Adapter kit, polymer pad, 1 1/2\".  (Kit Includes (4) FJ2427E Adapters.)","FJ2439","ACC.","AC",138,0.25,{"$f":"Table8[[#This Row],[GOV List Price]]*(1-Table8[[#This Row],[NASPO Discount]])","v":103.5},"Yes"]
["FJ2440","FJ2440","Adapter kit, polymer pad, 3\". Includes (4) FJ2428E spacer blocks.","FJ2440","ACC.","AC",197,0.25,{"$f":"Table8[[#This Row],[GOV List Price]]*(1-Table8[[#This Row],[NASPO Discount]])","v":147.75},"Yes"]
["S100046","S100046BK","Power unit bracket to move power unit to front of column ","S100046","ACC.","AC",69,0.25,{"$f":"Table8[[#This Row],[GOV List Price]]*(1-Table8[[#This Row],[NASPO Discount]])","v":51.75},"Yes"]
["S100130MBL","S100130MBL","Alignment bolt-on kit, RFP14-100 series","S100130MBL","ACC.","AC",12875,0.25,{"$f":"Table8[[#This Row],[GOV List Price]]*(1-Table8[[#This Row],[NASPO Discount]])","v":9656.25},"Yes"]
["S100150YBL","S100150YBL","Ramps, drive-thru,  RFP14","S100150YBL","ACC.","AC",1069,0.25,{"$f":"Table8[[#This Row],[GOV List Price]]*(1-Table8[[#This Row],[NASPO Discount]])","v":801.75},"Yes"]
["SH4D-5555","SH4D-5555","Drip tray, RFP9, (4) required for complete coverage","SH4D-5555","ACC.","AC",49,0.25,{"$f":"Table8[[#This Row],[GOV List Price]]*(1-Table8[[#This Row],[NASPO Discount]])","v":36.75},"Yes"]
["SH4D-6000G","SH4D-6000G","Ramp, drive-thru,  RFP9","SH4D-6000G","ACC.","AC",252,0.25,{"$f":"Table8[[#This Row],[GOV List Price]]*(1-Table8[[#This Row],[NASPO Discount]])","v":189},"Yes"]
["SH4D-8050","SH4D-8050","Jack tray, RFP9 ","SH4D-8050","ACC.","AC",328,0.25,{"$f":"Table8[[#This Row],[GOV List Price]]*(1-Table8[[#This Row],[NASPO Discount]])","v":246},"Yes"]
["SH4D-9000","SH4D-9000","Solid deck flooring panel, RFP9, requires (8) per lift","SH4D-9000","ACC.","AC",256,0.25,{"$f":"Table8[[#This Row],[GOV List Price]]*(1-Table8[[#This Row],[NASPO Discount]])","v":192},"Yes"]
["H4D-8000","H4D-8000","Solid deck flooring panel, RFP8, requires (8) per lift","H4D-8000","ACC.","AC",142,0.25,{"$f":"Table8[[#This Row],[GOV List Price]]*(1-Table8[[#This Row],[NASPO Discount]])","v":106.5},"Yes"]
["TPB10-D1","TPB10-D1","Door Bumper Kit includes (2) PV-3005 bumpers and hardware","TPB10-D1","ACC.","AC",104,0.25,{"$f":"Table8[[#This Row],[GOV List Price]]*(1-Table8[[#This Row],[NASPO Discount]])","v":78},"Yes"]
["T100285BK","T100285BK","Adapter kit, truck w/rack","T100285BK","ACC.","AC",753,0.25,{"$f":"Table8[[#This Row],[GOV List Price]]*(1-Table8[[#This Row],[NASPO Discount]])","v":564.75},"Yes"]
["FJ6257","FJ6257KIT","3-Stage or 2-Stage Adapter (2) for 2019 GM Trucks, Revolution R10/RTP10 400 Series, Revolution R12/RTP12 300 Series","FJ6257KIT","ACC.","AC",976,0.25,{"$f":"Table8[[#This Row],[GOV List Price]]*(1-Table8[[#This Row],[NASPO Discount]])","v":732},"Yes"]
["RJ35BK","RJ35BK","Rolling jack, 3500 lb","RJ35","ACC.","AC",1992,0.25,{"$f":"Table8[[#This Row],[GOV List Price]]*(1-Table8[[#This Row],[NASPO Discount]])","v":1494},"Yes"]
["RRJ45G","RRJ45G","Rolling jack, 4500 lb","RRJ45G","ACC.","AC",2810,0.25,{"$f":"Table8[[#This Row],[GOV List Price]]*(1-Table8[[#This Row],[NASPO Discount]])","v":2107.5},"Yes"]
["RRJ70GBK","RRJ71GBK","Rolling jack, 7000 lb","RRJ71GM",0,"DA",5359,{"$f":"$H$1","v":0.41},{"$f":"Table8[[#This Row],[GOV List Price]]*(1-Table8[[#This Row],[NASPO Discount]])","v":3161.8100000000004},"Yes"]
["M110108BK","M110108BK","Cart, fore and aft frame lifting kit for storage and moving.","M110108BK","ACC.","AC",1674,0.25,{"$f":"Table8[[#This Row],[GOV List Price]]*(1-Table8[[#This Row],[NASPO Discount]])","v":1255.5},"Yes"]
["M140148BK","M140148BK","Light, 24VDC LED service lamp kit (2 rectangular lamps), MCH13 ","M140148BK","ACC.","AC",1541,0.25,{"$f":"Table8[[#This Row],[GOV List Price]]*(1-Table8[[#This Row],[NASPO Discount]])","v":1155.75},"Yes"]
["M140014","M140014","Service Chip for standard MCH’s ONLY (required to program MCH's).","M140014","ACC.","AC",89,0.25,{"$f":"Table8[[#This Row],[GOV List Price]]*(1-Table8[[#This Row],[NASPO Discount]])","v":66.75},"Yes"]
["M120304BK","M120304BK","Large wheel adapter (per column). Raises vehicle for greater access by lift forks.","M120304BK","ACC.","AC",255,0.25,{"$f":"Table8[[#This Row],[GOV List Price]]*(1-Table8[[#This Row],[NASPO Discount]])","v":191.25},"Yes"]
["M140107","M140107","Analog Weight gauge for MCH13.","M140107","ACC.","AC",355,0.25,{"$f":"Table8[[#This Row],[GOV List Price]]*(1-Table8[[#This Row],[NASPO Discount]])","v":266.25},"Yes"]
["M140150","M140150BK","Pallet Jack Assembly for a MCH Column.  Black only.  Will fit 13k-19k columns.","M140150BK","ACC.","AC",694,0.25,{"$f":"Table8[[#This Row],[GOV List Price]]*(1-Table8[[#This Row],[NASPO Discount]])","v":520.5},"Yes"]
["SL210-MP8","SL210N8X0BL","Lift, 8000 lb SmartLift w/moveable pads   Includes (4) 3\" FJ2428E, (4) 1-1/2\" FJ2427E spacer blocks and the FJ2487E rubber pad kit.","SL210","LIGHT DUTY","PL",20319,{"$f":"$H$1","v":0.41},{"$f":"Table8[[#This Row],[GOV List Price]]*(1-Table8[[#This Row],[NASPO Discount]])","v":11988.210000000001},"Yes"]
["SL210-FA","SL210N10G0BL","Lift, 10,000 lb SmartLift w/flip-up adapters","SL210",0,0,20319,0.41,{"$f":"Table8[[#This Row],[GOV List Price]]*(1-Table8[[#This Row],[NASPO Discount]])","v":11988.210000000001},"Yes"]
["SL210-RA","SL210N10G0BL","Lift, 10,000 lb SmartLift w/rubber adapters  (To use with framed vehicles, also order T100273.)","SL210","LIGHT DUTY","PL",20319,0.41,{"$f":"Table8[[#This Row],[GOV List Price]]*(1-Table8[[#This Row],[NASPO Discount]])","v":11988.210000000001},"Yes"]
["SL210-TA","SL210N10T0BL","Lift, 10,000 lb SmartLift w/truck adapters  Includes (4) 3 1/2\" T130660 extensions and (4) 5\" T130661 extensions.","SL210","LIGHT DUTY","PL",20319,0.41,{"$f":"Table8[[#This Row],[GOV List Price]]*(1-Table8[[#This Row],[NASPO Discount]])","v":11988.210000000001},"Yes"]
["SL212-TA ","SL212N1010BL","Lift, 12,000 lb SmartLift w/truck adapters  Includes (4) 3 1/2\" T130660 extensions and (4) 5\" T130661 extensions.","SL212","LIGHT DUTY","PL",26262,0.41,{"$f":"Table8[[#This Row],[GOV List Price]]*(1-Table8[[#This Row],[NASPO Discount]])","v":15494.580000000002},"Yes"]
["SL210i-MP8","SL210IN8X0BL","Lift, 8000 lb SmartLift w/moveable pads, inbay","SL210I","LIGHT DUTY","PL",21162,0.41,{"$f":"Table8[[#This Row],[GOV List Price]]*(1-Table8[[#This Row],[NASPO Discount]])","v":12485.580000000002},"Yes"]
["SL210i-FA","SL210IN1000BL","Lift, 10,000 lb SmartLift w/flip-up adapters, inbay","SL210I","LIGHT DUTY","PL",18274,0.41,{"$f":"Table8[[#This Row],[GOV List Price]]*(1-Table8[[#This Row],[NASPO Discount]])","v":10781.660000000002},"Yes"]
["SL210i-RA","SL210IN10G0BL","Lift, 10,000 lb SmartLift w/rubber adapters, inbay  (To use with framed vehicles, also order T100273.)","SL210I","LIGHT DUTY","PL",21162,0.41,{"$f":"Table8[[#This Row],[GOV List Price]]*(1-Table8[[#This Row],[NASPO Discount]])","v":12485.580000000002},"Yes"]
["SL210i-TA ","SL210IN10T0BL","Lift, 10,000 lb SmartLift w/truck adapters, inbay  Includes (4) 3 1/2\" T130660 extensions and (4) 5\" T130661 extensions.","SL210I","LIGHT DUTY","PL",21162,0.41,{"$f":"Table8[[#This Row],[GOV List Price]]*(1-Table8[[#This Row],[NASPO Discount]])","v":12485.580000000002},"Yes"]
["SL212i-TA ","SL212IN1010BL","Lift, 12,000 lb SmartLift w/truck adapters, inbay  Includes (4) 3 1/2\" T130660 extensions and (4) 5\" T130661 extensions.","SL212I","LIGHT DUTY","PL",27151,0.41,{"$f":"Table8[[#This Row],[GOV List Price]]*(1-Table8[[#This Row],[NASPO Discount]])","v":16019.090000000002},"Yes"]
["T110577","T110577","Inbay parts box components. Includes power unit/inbay control box, hardware.","T110577","PARTS","BP",7035,0.25,{"$f":"Table8[[#This Row],[GOV List Price]]*(1-Table8[[#This Row],[NASPO Discount]])","v":5276.25},"Yes"]
["SL210-MP8SW","SL210U8X0BL","Lift, 8000 lb SmartLift w/movable pads, SW   Includes (4) 3\" FJ2428E, (4) 1-1/2\" FJ2427E spacer blocks and the FJ2487E rubber pad kit.","SL210",0,0,23729,{"$f":"$H$1","v":0.41},{"$f":"Table8[[#This Row],[GOV List Price]]*(1-Table8[[#This Row],[NASPO Discount]])","v":14000.110000000002},"Yes"]
["SL210-FASW","SL210U1000BL","Lift, 10,000 lb SmartLift w/TRIO flip-up adapters, SW","SL210",0,0,23729,0.41,{"$f":"Table8[[#This Row],[GOV List Price]]*(1-Table8[[#This Row],[NASPO Discount]])","v":14000.110000000002},"Yes"]
["SL210-RASW","SL210U10G0BL","Lift, 10,000 lb SmartLift w/TRIO rubber adapters, SW  (To use with framed vehicles, also order T100273.)","SL210",0,0,23729,0.41,{"$f":"Table8[[#This Row],[GOV List Price]]*(1-Table8[[#This Row],[NASPO Discount]])","v":14000.110000000002},"Yes"]
["SL210-TASW","SL210U10T0BL","Lift, 10,000 lb SmartLift w/TRIO truck adapters, SW  Includes (4) 3 1/2\" T130660 extensions and (4) 5\" T130661 extensions.","SL210",0,0,23729,0.41,{"$f":"Table8[[#This Row],[GOV List Price]]*(1-Table8[[#This Row],[NASPO Discount]])","v":14000.110000000002},"Yes"]
["SL212-TASW","SL212U1110BL","Lift, 12,000 lb SmartLift w/TRIO truck adapters, SW  Includes (4) 3 1/2\" T130660 extensions and (4) 5\" T130661 extensions.","SL212",0,0,29329,0.41,{"$f":"Table8[[#This Row],[GOV List Price]]*(1-Table8[[#This Row],[NASPO Discount]])","v":17304.11},"Yes"]
["T110555","T110555BK","Shockwave Inground Portion Only For Split SL Orders -- Both Conventional and LDS (Liquid Detection System) Versions.  LDS on workbench only.","T110555BK","LIGHT DUTY","PL",14680,0.41,{"$f":"Table8[[#This Row],[GOV List Price]]*(1-Table8[[#This Row],[NASPO Discount]])","v":8661.2000000000007},"Yes"]
["SL210-MP8SW finish","SL210U8X0FBL","Finish kit, 8000 lb SmartLift w/movable pads, SW, Includes (4) 1 1/2\" FJ2427E spacer blocks, (4) 3\" FJ2428E spacer blocks and mounting hardware. Also includes FJ2487E rubber pad kit.","SL210",0,0,9049,0.41,{"$f":"Table8[[#This Row],[GOV List Price]]*(1-Table8[[#This Row],[NASPO Discount]])","v":5338.9100000000008},"Yes"]
["SL210-FASW finish","SL210U1000FBL","Finish kit, 10,000 lb SmartLift w/TRIO flip-up adapters, SW","SL210",0,0,9049,0.41,{"$f":"Table8[[#This Row],[GOV List Price]]*(1-Table8[[#This Row],[NASPO Discount]])","v":5338.9100000000008},"Yes"]
["SL210-RASW finish","SL210U10G0FBL","Finish kit, 10,000 lb SmartLift w/TRIO rubber adapters, SW  (To use with framed vehicles, also order T100273.)","SL210",0,0,9049,0.41,{"$f":"Table8[[#This Row],[GOV List Price]]*(1-Table8[[#This Row],[NASPO Discount]])","v":5338.9100000000008},"Yes"]
["SL210-TASW finish","SL210U10T0FBL","Finish kit, 10,000 lb SmartLift w/TRIO truck adapters, SW, Includes (4) 3 1/2\" T130660 extensions and (4) 5\" T130661 extensions.","SL210",0,0,9049,0.41,{"$f":"Table8[[#This Row],[GOV List Price]]*(1-Table8[[#This Row],[NASPO Discount]])","v":5338.9100000000008},"Yes"]
["T100275","T100275BK","Completion kit, SL210 and SL212 SW, Contains 8 1/2\" plungers, equalizers, guide barrels, cylinders, hoses, lock components and hardware.  To make a complete lift also requires a future/relocation kit (T110177) and a finish kit.  No power unit included.","T100275BK","LIGHT DUTY","PL",11891,0.41,{"$f":"Table8[[#This Row],[GOV List Price]]*(1-Table8[[#This Row],[NASPO Discount]])","v":7015.6900000000005},"Yes"]
["T100276","T100276BK","Retrofit kit, SW for SL210 500 series and above, arm style","T100276","ACC.","AC",8082,0.25,{"$f":"Table8[[#This Row],[GOV List Price]]*(1-Table8[[#This Row],[NASPO Discount]])","v":6061.5},"Yes"]
["T100277","T100277BK","Retrofit kit, SW for SmartLifts, moveable pad style","T100277","ACC.","AC",8082,0.25,{"$f":"Table8[[#This Row],[GOV List Price]]*(1-Table8[[#This Row],[NASPO Discount]])","v":6061.5},"Yes"]
["T100281","T100281BK","Retrofit kit, SW bench controls for SmartLifts, arm style ","T100281BK","ACC.","AC",9666,0.25,{"$f":"Table8[[#This Row],[GOV List Price]]*(1-Table8[[#This Row],[NASPO Discount]])","v":7249.5},"Yes"]
["T100282","T100282BK","Retrofit kit, SW bench controls for SmartLifts, moveable pad style","T100282BK","ACC.","AC",9666,0.25,{"$f":"Table8[[#This Row],[GOV List Price]]*(1-Table8[[#This Row],[NASPO Discount]])","v":7249.5},"Yes"]
["T100290BK","T100290BK","Conversion kit, SL210 Shockwave bench control ","T100290BK","ACC.","AC",7497,0.25,{"$f":"Table8[[#This Row],[GOV List Price]]*(1-Table8[[#This Row],[NASPO Discount]])","v":5622.75},"Yes"]
["T100291BK","T100291BK","Conversion kit, SL212 Shockwave bench control ","T100291BK","ACC.","AC",7497,0.25,{"$f":"Table8[[#This Row],[GOV List Price]]*(1-Table8[[#This Row],[NASPO Discount]])","v":5622.75},"Yes"]
["T110606","T110606BK","Pedestal kit, SmartLift DC Control  (no cost if ordered with lift)","T110606BK","ACC.","AC",361,0.25,{"$f":"Table8[[#This Row],[GOV List Price]]*(1-Table8[[#This Row],[NASPO Discount]])","v":270.75},"Yes"]
["FJ864BK","FJ864BK","Power unit stand, low rise lifts","FJ864","ACC.","AC",190,0.25,{"$f":"Table8[[#This Row],[GOV List Price]]*(1-Table8[[#This Row],[NASPO Discount]])","v":142.5},"Yes"]
["T110280BK","T110280BK","Power unit stand, SmartLift, 1 phase","T110280","ACC.","AC",361,0.25,{"$f":"Table8[[#This Row],[GOV List Price]]*(1-Table8[[#This Row],[NASPO Discount]])","v":270.75},"Yes"]
["T110165BK","T110165BK","Power unit stand, 3 phase One Touch controls -- no cost when ordering a lift","T110165","ACC.","AC",489,0.25,{"$f":"Table8[[#This Row],[GOV List Price]]*(1-Table8[[#This Row],[NASPO Discount]])","v":366.75},"Yes"]
["T110425","T110425BK","Inground Portion Only For Split SL Orders,  Conventional and LDS ","T110425","LIGHT DUTY","PL",14273,{"$f":"$H$1","v":0.41},{"$f":"Table8[[#This Row],[GOV List Price]]*(1-Table8[[#This Row],[NASPO Discount]])","v":8421.0700000000015},"Yes"]
["SL210-MP8 finish","SL210N8X0FBL","Finish kit, 8000 lb SmartLift w/movable pads, Includes (4) FJ2427E 1-1/2\" spacer blocks, (4) FJ2428E 3\" spacer blocks, mounting hardware.","SL210F","LIGHT DUTY","PL",6046,0.41,{"$f":"Table8[[#This Row],[GOV List Price]]*(1-Table8[[#This Row],[NASPO Discount]])","v":3567.1400000000003},"Yes"]
["SL210-RA finish","SL210N10G0FBL","Finish kit, 10,000 lb SmartLift w/TRIO rubber adapters  (To use with framed vehicles, also order T100273.)","SL210F","LIGHT DUTY","PL",6046,0.41,{"$f":"Table8[[#This Row],[GOV List Price]]*(1-Table8[[#This Row],[NASPO Discount]])","v":3567.1400000000003},"Yes"]
["SL210-TA finish","SL210N10T0FBL","Finish kit, 10,000 lb SmartLift w/TRIO truck adapters  Includes (4) 3 1/2\" T130660 extensions and (4) 5\" T130661 extensions.","SL210F","LIGHT DUTY","PL",6046,0.41,{"$f":"Table8[[#This Row],[GOV List Price]]*(1-Table8[[#This Row],[NASPO Discount]])","v":3567.1400000000003},"Yes"]
["SL212-TA finish","SL212N1010FBL","Finish kit 12,000 lb SmartLift w/TRIO truck adapters  Includes (4) 3 1/2\" T130660 extensions and (4) 5\" T130661 extensions.","SL212F","LIGHT DUTY","PL",11652,0.41,{"$f":"Table8[[#This Row],[GOV List Price]]*(1-Table8[[#This Row],[NASPO Discount]])","v":6874.6800000000012},"Yes"]
["SL210i-MP8 finish","SL210IN8X0FBL","Finish kit, 8000 lb SmartLift w/movable pads, inbay, Includes (4) FJ2427E 1-1/2\" spacer blocks, (4) FJ2428E 3\" spacer blocks, mounting hardware and liquid detection system.","SL210IF","LIGHT DUTY","PL",6889,0.41,{"$f":"Table8[[#This Row],[GOV List Price]]*(1-Table8[[#This Row],[NASPO Discount]])","v":4064.5100000000007},"Yes"]
["SL210i-FA finish","SL210IN1000FBL","Finish kit, 10,000 lb SmartLift w/TRIO flip-up adapters, inbay","SL210IF","LIGHT DUTY","PL",5949,0.41,{"$f":"Table8[[#This Row],[GOV List Price]]*(1-Table8[[#This Row],[NASPO Discount]])","v":3509.9100000000003},"Yes"]
["SL210i-RA finish","SL210IN10G0FBL","Finish kit, 10,000 lb SmartLift w/TRIO rubber adapters, inbay  (To use with framed vehicles, also order T100273.)","SL210IF","LIGHT DUTY","PL",6889,0.41,{"$f":"Table8[[#This Row],[GOV List Price]]*(1-Table8[[#This Row],[NASPO Discount]])","v":4064.5100000000007},"Yes"]
["SL210i-TA finish","SL210IN10T0FBL","Finish kit, 10,000 lb SmartLift w/TRIO truck adapters, inbay  Includes (4) 3 1/2\" T130660 extensions and (4) 5\" T130661 extensions.","SL210IF","LIGHT DUTY","PL",6889,0.41,{"$f":"Table8[[#This Row],[GOV List Price]]*(1-Table8[[#This Row],[NASPO Discount]])","v":4064.5100000000007},"Yes"]
["SL212i-TA finish","SL212IN1010FBL","Finish kit 12,000 lb SmartLift w/TRIO truck adapters, inbay  Includes (4) 3 1/2\" T130660 extensions and (4) 5\" T130661 extensions.","SL212IF","LIGHT DUTY","PL",12776,0.41,{"$f":"Table8[[#This Row],[GOV List Price]]*(1-Table8[[#This Row],[NASPO Discount]])","v":7537.8400000000011},"Yes"]
["T100249","T100249BK","Superstructure kit, Moveable-pad for Smart lifts with 8 1/2\" piston diameter, Includes (4) FJ2427E 1-1/2\" spacer blocks, (4) FJ2428E 3\" spacer blocks, spotting dish, relief valve and mounting hardware.","T100249","ACC.","AC",4980,0.25,{"$f":"Table8[[#This Row],[GOV List Price]]*(1-Table8[[#This Row],[NASPO Discount]])","v":3735},"Yes"]
["T100270","T100270BK","Superstructure kit, TRIO FA  SL210-400 series and above, Includes adapters, spotting dish, arm pins and mounting hardware.","T100270BK","ACC.","AC",4980,0.25,{"$f":"Table8[[#This Row],[GOV List Price]]*(1-Table8[[#This Row],[NASPO Discount]])","v":3735},"Yes"]
["T100268","T100268BK","Superstructure kit, TRIO RA SL210-400 series and above, Includes adapters, spotting dish, arm pins and mounting hardware.","T100268BK","ACC.","AC",4980,0.25,{"$f":"Table8[[#This Row],[GOV List Price]]*(1-Table8[[#This Row],[NASPO Discount]])","v":3735},"Yes"]
["T100269","T100269BK","Superstructure kit, TRIO TA SL210-400 series and above, Includes adapters, spotting dish, arm pins and mounting hardware.","T100269BK","ACC.","AC",4980,0.25,{"$f":"Table8[[#This Row],[GOV List Price]]*(1-Table8[[#This Row],[NASPO Discount]])","v":3735},"Yes"]
["T100107","T100107BK","Superstructure kit, SL212, Includes adapters, spotting dish, arm pins and mounting hardware.","T100107BK","ACC.","AC",6920,0.25,{"$f":"Table8[[#This Row],[GOV List Price]]*(1-Table8[[#This Row],[NASPO Discount]])","v":5190},"Yes"]
["T100210","T100210BK","Superstructure kit, 3-stage SL29-300 series and below, Includes adapters, spotting dish, arm pins and mounting hardware.","T100210BK","ACC.","AC",4909,0.25,{"$f":"Table8[[#This Row],[GOV List Price]]*(1-Table8[[#This Row],[NASPO Discount]])","v":3681.75},"Yes"]
["T110177                              ","T110177BK","Future kit, SL210/212 500 series and later","T110177","LIGHT DUTY","LP",7360,{"$f":"$H$1","v":0.41},{"$f":"Table8[[#This Row],[GOV List Price]]*(1-Table8[[#This Row],[NASPO Discount]])","v":4342.4000000000005},"Yes"]
["T100094","T100094BK","Completion Kit for 6” plunger for T110126 Relocation Kit.  Does not include superstructure.","T100094","LIGHT DUTY","LL",12031,{"$f":"$H$1","v":0.41},{"$f":"Table8[[#This Row],[GOV List Price]]*(1-Table8[[#This Row],[NASPO Discount]])","v":7098.2900000000009},"Yes"]
["T100035","T100035BK","Superstructure kit for 6” plunger completion kits, includes 2 Yokes, 4 Swinging Arms, 4 Swivel Three-Position Frame Contact Adapters, Wheel Dish and Yoke Bolts.","T100035","ACC.","AC",3532,0.25,{"$f":"Table8[[#This Row],[GOV List Price]]*(1-Table8[[#This Row],[NASPO Discount]])","v":2649},"Yes"]
["T100239","T100239BK","Completion kit, SL210,  SL210i, SL212 and SL212i for T110177 future kit.  Contains 8 1/2” plungers, equalizers, guide barrels, cylinders, hoses, lock compoents, and hardware.  To make a complete lift this kit also requires a future/relocation kit and a finish/kit.  No power unit included.","T100239","LIGHT DUTY","LP",8586,{"$f":"$H$1","v":0.41},{"$f":"Table8[[#This Row],[GOV List Price]]*(1-Table8[[#This Row],[NASPO Discount]])","v":5065.7400000000007},"Yes"]
["T110270","T110270BK","Gasket and cover kit for 400 SL Models.  No charge when ordering with completion kit","T110270BK","ACC.","AC",850,0.25,{"$f":"Table8[[#This Row],[GOV List Price]]*(1-Table8[[#This Row],[NASPO Discount]])","v":637.5},"Yes"]
["T100236","T100236BK","Inbay liquid detection system - Conversion Kit for SL210, SL212 and SL29","T100236","ACC.","AC",2695,0.25,{"$f":"Table8[[#This Row],[GOV List Price]]*(1-Table8[[#This Row],[NASPO Discount]])","v":2021.25},"Yes"]
["T100011 Hose Kit","T100011","Hose kit, pre-cut  25' hydraulic hose, air regulator","T100011","ACC.","AC",503,0.25,{"$f":"Table8[[#This Row],[GOV List Price]]*(1-Table8[[#This Row],[NASPO Discount]])","v":377.25},"Yes"]
["T140072","T140072","Grease, Mobil 1 SHC1500 12.5 oz. cartridge ","T140072","ACC.","AC",46,0.25,{"$f":"Table8[[#This Row],[GOV List Price]]*(1-Table8[[#This Row],[NASPO Discount]])","v":34.5},"Yes"]
["FA5700","FA5700","Light kit, LED, Four 48\"  wands w/magnetic clips  ","FA5700","ACC.","AC",1665,0.25,{"$f":"Table8[[#This Row],[GOV List Price]]*(1-Table8[[#This Row],[NASPO Discount]])","v":1248.75},"Yes"]
["FA5701","FA5701","Light kit, Two 32\" wands w/magnetic clips ","FA5701","ACC.","AC",991,0.25,{"$f":"Table8[[#This Row],[GOV List Price]]*(1-Table8[[#This Row],[NASPO Discount]])","v":743.25},"Yes"]
["FA5702","FA5702","Light, Rechargeable LED handheld","FA5702","ACC.","AC",275,0.25,{"$f":"Table8[[#This Row],[GOV List Price]]*(1-Table8[[#This Row],[NASPO Discount]])","v":206.25},"Yes"]
["FA7815","FA7815","Retrofit kit, Spotline™ laser spotting ","FA7815","ACC.","AC",1095,0.25,{"$f":"Table8[[#This Row],[GOV List Price]]*(1-Table8[[#This Row],[NASPO Discount]])","v":821.25},"Yes"]
["FA834-KIT","FA834-KIT","Locklight kit, 110 volt.  Comes with indicator light assembly, pressure switch, mounting bracket and 10’ of electrical wire. 110V AC.","FA834-KIT","ACC.","AC",691,0.25,{"$f":"Table8[[#This Row],[GOV List Price]]*(1-Table8[[#This Row],[NASPO Discount]])","v":518.25},"Yes"]
["FA835-KIT","FA835-KIT","Locklight kit, 220 volt. Comes with indicator light assembly, pressure switch, mounting bracket and 10’ of electrical wire. 220V AC.","FA835-KIT","ACC.","AC",691,0.25,{"$f":"Table8[[#This Row],[GOV List Price]]*(1-Table8[[#This Row],[NASPO Discount]])","v":518.25},"Yes"]
["FJ6115BK","FJ6115BK","Adapter kit, extended height w/rack.  2,500 lb capacity maximum per adapter.  Includes (4) FJ696 Adapters and 2 Piece Column or Wall-Mounted Adapter Rack FJ6114.","FJ6115","ACC.","AC",723,0.25,{"$f":"Table8[[#This Row],[GOV List Price]]*(1-Table8[[#This Row],[NASPO Discount]])","v":542.25},"Yes"]
["FJ6212KITYL","FJ6212KITYL","Adapter kit, extended height w/rack.  2,500 lb. capacity per adapter.  Kit includes a set of (4) FJ6212 adapters and 2 piece column or wall mounted adapter rack FJ6114.","FJ6212","ACC.","AC",648,0.25,{"$f":"Table8[[#This Row],[GOV List Price]]*(1-Table8[[#This Row],[NASPO Discount]])","v":486},"Yes"]
["FJ6195YL","FJ6195YL","Adapter kit, extended height.  2,500 lb capacity per adapter.  Includes a set of (2) FJ6196 adapters.","FJ6195","ACC.","AC",483,0.25,{"$f":"Table8[[#This Row],[GOV List Price]]*(1-Table8[[#This Row],[NASPO Discount]])","v":362.25},"Yes"]
["FJ6133BK","FJ6133BK","Adapter kit, extended height w/rack. 2,500 lb maximum capacity per adapter.   Includes (4) FJ6101 Adapters and 2 Piece Column or Wall-Mounted Adapter Rack FJ6114.","FJ6133","ACC.","AC",764,0.25,{"$f":"Table8[[#This Row],[GOV List Price]]*(1-Table8[[#This Row],[NASPO Discount]])","v":573},"Yes"]
["FJ6137BK","FJ6137BK","Adapter kit, extended height polymer w/rack.  Includes (4) FJ7858  Adapters and 2 Piece Column or Wall-Mounted Adapter Rack FJ6114.","FJ6137","ACC.","AC",835,0.25,{"$f":"Table8[[#This Row],[GOV List Price]]*(1-Table8[[#This Row],[NASPO Discount]])","v":626.25},"Yes"]
["FJ6138BK","FJ6138BK","Adapter kit, 1/2\" polymer w/rack.  Includes (4) FJ697 Adapters, 2 Piece Column or Wall-Mounted Adapter Rack FJ6142.","FJ6138","ACC.","AC",446,0.25,{"$f":"Table8[[#This Row],[GOV List Price]]*(1-Table8[[#This Row],[NASPO Discount]])","v":334.5},"Yes"]
["FJ6190YL","FJ6190YL","Adapter kit, 1\" polymer w/rack.  Includes (4) FJ6189 Adapters, 2 Piece Column or Wall-Mounted Adapter Rack FJ6142.","FJ6190","ACC.","AC",469,0.25,{"$f":"Table8[[#This Row],[GOV List Price]]*(1-Table8[[#This Row],[NASPO Discount]])","v":351.75},"Yes"]
["FJ6139BK","FJ6139BK","Adapter kit, 2.5\" polymer w/rack.  Includes (4) FJ698 Adapters, 2 Piece Column or Wall-Mounted Adapter Rack FJ6142.","FJ6139","ACC.","AC",469,0.25,{"$f":"Table8[[#This Row],[GOV List Price]]*(1-Table8[[#This Row],[NASPO Discount]])","v":351.75},"Yes"]
["FJ6100BK","FJ6100BK","Adapter kit w/rack.  Includes (4) FJ696, (4) FJ697 And (4) FJ698 Plus 2 Piece Column or Wall-Mounted Adapter Organizer Rack Part #FJ6108.","FJ6100","ACC.","AC",1407,0.25,{"$f":"Table8[[#This Row],[GOV List Price]]*(1-Table8[[#This Row],[NASPO Discount]])","v":1055.25},"Yes"]
["FJ6104BK","FJ6104BK","Adapter kit w/rack.  Includes (4) FJ6101, (4) FJ697 And (4) FJ698 Plus 2 Piece Column or Wall-Mounted Adapter Organizer Rack Part #FJ6108.","FJ6104","ACC.","AC",1456,0.25,{"$f":"Table8[[#This Row],[GOV List Price]]*(1-Table8[[#This Row],[NASPO Discount]])","v":1092},"Yes"]
["FJ6105BK","FJ6105BK","Adapter kit w/rack. Includes (2) FJ696,  (2) FJ6101, (4) FJ697,  (4) FJ698 Plus 2 Piece Column or Wall-Mounted Adapter Organizer Rack Part #FJ6108.","FJ6105","ACC.","AC",1438,0.25,{"$f":"Table8[[#This Row],[GOV List Price]]*(1-Table8[[#This Row],[NASPO Discount]])","v":1078.5},"Yes"]
["FJ6117BK","FJ6117BK","Adapter kit w/rack. Includes (4) FJ7858, (4) FJ697, (4) FJ698 Plus 2 Piece Column Adapter Organizer Rack Part #FJ6108.","FJ6117","ACC.","AC",1480,0.25,{"$f":"Table8[[#This Row],[GOV List Price]]*(1-Table8[[#This Row],[NASPO Discount]])","v":1110},"Yes"]
["FJ6197","FJ6197","Adapter kit, (4) FJ6214, 3-stage arms","FJ6197","ACC.","AC",736,0.25,{"$f":"Table8[[#This Row],[GOV List Price]]*(1-Table8[[#This Row],[NASPO Discount]])","v":552},"Yes"]
["FJ6225","FJ6225","Adapter kit, (4) FJ6202, 3-stage arms","FJ6225","ACC.","AC",736,0.25,{"$f":"Table8[[#This Row],[GOV List Price]]*(1-Table8[[#This Row],[NASPO Discount]])","v":552},"Yes"]
["FJ71015-1kit","FJ71015-1kit","Passenger Vehicle Adapter kit, (4) low profile adapters for SPO16, CAPACITY 2,750 lbs. each","FJ71015-1K","ACC.","AC",915,0.25,{"$f":"Table8[[#This Row],[GOV List Price]]*(1-Table8[[#This Row],[NASPO Discount]])","v":686.25},"Yes"]
["FJ71016-1kit","FJ71016-1kit","Passenger Vehicle Adapter kit, (4) low profile adapters for SPO20, CAPACITY 2,750 lbs. each","FJ71016-1K","ACC.","AC",915,0.25,{"$f":"Table8[[#This Row],[GOV List Price]]*(1-Table8[[#This Row],[NASPO Discount]])","v":686.25},"Yes"]
["FJ7880BK","FJ7880BBK","Adapter kit, stackable pins w/rack, 3-stage arms.  Includes four (4) FJ6171-1 (3.5\" tall extension), four (4) FJ6171-2 (5\" tall extension) and FJ6127 rack kit with mounting hardware.","FJ7880BBK","ACC.","AC",557,0.25,{"$f":"Table8[[#This Row],[GOV List Price]]*(1-Table8[[#This Row],[NASPO Discount]])","v":417.75},"Yes"]
["FJ6200","FJ6200","Adapter kit, (4) FJ6201, SPO12-10, 300-500","FJ6200","ACC.","AC",937,0.25,{"$f":"Table8[[#This Row],[GOV List Price]]*(1-Table8[[#This Row],[NASPO Discount]])","v":702.75},"Yes"]
["FJ6258","FJ6258KIT","3-Stage Adapter (2) for 2019 GM Trucks, SPO10/SPOA10-RA/TA with 3-Stage arms, SPO12/500-700 Series, SL210-RA/TA with 3-Stage Arms, SL212/1000 Series","FJ6258KIT","ACC.","AC",976,0.25,{"$f":"Table8[[#This Row],[GOV List Price]]*(1-Table8[[#This Row],[NASPO Discount]])","v":732},"Yes"]
["FJ6259","FJ6259KIT","Flip-up Adapter for 2019 GM Trucks, SPOA10/SPO10, SL210-FA, any Rotary lifts with flip adapters","FJ6259KIT","ACC.","AC",1778,0.25,{"$f":"Table8[[#This Row],[GOV List Price]]*(1-Table8[[#This Row],[NASPO Discount]])","v":1333.5},"Yes"]
["T100271","T100271BK","Adapter kit, stackable pins for TRIO w/rack.  Includes four (4) T130660 (3.5\" tall extension) and four (4) T130661 (5\" tall extension) and (2) T130683 rack kit with mounting hardware.","T100271BK","ACC.","AC",570,0.25,{"$f":"Table8[[#This Row],[GOV List Price]]*(1-Table8[[#This Row],[NASPO Discount]])","v":427.5},"Yes"]
["T100272","T100272","Adapter kit, round rubber for the TRIO Superstructure.  Includes four (4) FJ6219 adapters.","T100272","ACC.","AC",753,0.25,{"$f":"Table8[[#This Row],[GOV List Price]]*(1-Table8[[#This Row],[NASPO Discount]])","v":564.75},"Yes"]
["T100273","T100273","Adapter kit,  truck for TRIO Superstructure.  Includes four (4) T110564 adapters.","T100273","ACC.","AC",753,0.25,{"$f":"Table8[[#This Row],[GOV List Price]]*(1-Table8[[#This Row],[NASPO Discount]])","v":564.75},"Yes"]
["T100274","T100274","Adapter kit, Flip-up for TRIO Superstructure (except SL212).  Includes components for four (4) arms.","T100274","ACC.","AC",753,0.25,{"$f":"Table8[[#This Row],[GOV List Price]]*(1-Table8[[#This Row],[NASPO Discount]])","v":564.75},"Yes"]
["N539","N539","Column base cover plate, SPOA7/A9 -200 plus, SPOA10","N539","ACC.","AC",92,0.25,{"$f":"Table8[[#This Row],[GOV List Price]]*(1-Table8[[#This Row],[NASPO Discount]])","v":69},"Yes"]
["FA5911BK","FA5911BK","Air/Electric utility box w/FRL, 2-post lifts","FA5911","ACC.","AC",995,0.25,{"$f":"Table8[[#This Row],[GOV List Price]]*(1-Table8[[#This Row],[NASPO Discount]])","v":746.25},"Yes"]
["FA5910BK","FA5910BK","Air/Electric utility box, 2-post lifts","FA5910","ACC.","AC",626,0.25,{"$f":"Table8[[#This Row],[GOV List Price]]*(1-Table8[[#This Row],[NASPO Discount]])","v":469.5},"Yes"]
["FA915","FA915","Air/Electric utility box w/FRL, 4-post lifts","FA915","ACC.","AC",996,0.25,{"$f":"Table8[[#This Row],[GOV List Price]]*(1-Table8[[#This Row],[NASPO Discount]])","v":747},"Yes"]
["FA916KIT","FA916KIT","Air/Electric utility box, 4-post lifts","FA916","ACC.","AC",621,0.25,{"$f":"Table8[[#This Row],[GOV List Price]]*(1-Table8[[#This Row],[NASPO Discount]])","v":465.75},"Yes"]
["FA2259BK","FA2259BK","Air/Electric utility box w/FRL, SM30","FA2259","ACC.","AC",996,0.25,{"$f":"Table8[[#This Row],[GOV List Price]]*(1-Table8[[#This Row],[NASPO Discount]])","v":747},"Yes"]
["FA2260BK","FA2260BK","Air/Electric utility box, SM30","FA2260","ACC.","AC",650,0.25,{"$f":"Table8[[#This Row],[GOV List Price]]*(1-Table8[[#This Row],[NASPO Discount]])","v":487.5},"Yes"]
["FA5202","FA5202","Air/Electric utility box, dual w/FRL, 1.6 inbay only","FA5202","ACC.","AC",1681,0.25,{"$f":"Table8[[#This Row],[GOV List Price]]*(1-Table8[[#This Row],[NASPO Discount]])","v":1260.75},"Yes"]
["FA5112","FA5112","Shim plate kit, 3/4\" total, 2-post & SMO123 front","FA5112","ACC.","AC",354,0.25,{"$f":"Table8[[#This Row],[GOV List Price]]*(1-Table8[[#This Row],[NASPO Discount]])","v":265.5},"Yes"]
["FA5221","FA5221","Shim plate kit, 3/4\" total, AT07","FA5221","ACC.","AC",296,0.25,{"$f":"Table8[[#This Row],[GOV List Price]]*(1-Table8[[#This Row],[NASPO Discount]])","v":222},"Yes"]
["FA7118","FA7118BK","Overhead Cutoff Switch Assembly, 1 phase","FA7118","ACC.","AC",557,0.25,{"$f":"Table8[[#This Row],[GOV List Price]]*(1-Table8[[#This Row],[NASPO Discount]])","v":417.75},"Yes"]
["FA7385","FA7385BK","Overhead Cutoff Switch Assembly, 3 phase","FA7385BK","ACC.","AC",683,0.25,{"$f":"Table8[[#This Row],[GOV List Price]]*(1-Table8[[#This Row],[NASPO Discount]])","v":512.25},"Yes"]
["N823","N823","Door Defender.  Includes 1 Door Defender, adhesive to attach to the lift and instructions.","N823","ACC.","AC",212,0.25,{"$f":"Table8[[#This Row],[GOV List Price]]*(1-Table8[[#This Row],[NASPO Discount]])","v":159},"Yes"]
["FA5191E","FA5191EBK","Tool Holder","FA5191EBK","ACC.","AC",164,0.25,{"$f":"Table8[[#This Row],[GOV List Price]]*(1-Table8[[#This Row],[NASPO Discount]])","v":123},"Yes"]
["FA5974","FA5974","WheelWingTM kit.  Includes (set of 2) 2 dishes, shims, adjustable to fit various lifts.  100 lb. capacity per WheelWingTM.","FA5974","ACC.","AC",402,0.25,{"$f":"Table8[[#This Row],[GOV List Price]]*(1-Table8[[#This Row],[NASPO Discount]])","v":301.5},"Yes"]
["FA5900BK","FA5900BK","WheelWing 2 Post Column Mounting Kit.  Mount Wheel Wing on Column Instead of Front Arm on Asymmetrical Lifts.","FA5900BK","ACC.","AC",63,0.25,{"$f":"Table8[[#This Row],[GOV List Price]]*(1-Table8[[#This Row],[NASPO Discount]])","v":47.25},"Yes"]
["LP20041","LP20041","Warranty, extended 3 year parts for light duty","LP20041","ACC.","AC",244,0.25,{"$f":"Table8[[#This Row],[GOV List Price]]*(1-Table8[[#This Row],[NASPO Discount]])","v":183},"Yes"]
["SV0060","SV0060","Warranty, extended 2 year parts for Parallelogram, HDC, VR, VREX","SV0060","ACC.","AC",4073,0.25,{"$f":"Table8[[#This Row],[GOV List Price]]*(1-Table8[[#This Row],[NASPO Discount]])","v":3054.75},"Yes"]
["SV0061","SV0061","Warranty, extended 4 year parts for Parallelogram, HDC, VR, VREX","SV0061","ACC.","AC",8145,0.25,{"$f":"Table8[[#This Row],[GOV List Price]]*(1-Table8[[#This Row],[NASPO Discount]])","v":6108.75},"Yes"]
["SV0062","SV0062","Warranty, extended 2 year parts for Mobile Columns, per pair","SV0062","ACC.","AC",408,0.25,{"$f":"Table8[[#This Row],[GOV List Price]]*(1-Table8[[#This Row],[NASPO Discount]])","v":306},"Yes"]
["SV0063","SV0063","Warranty, extended 4 year parts for Mobile Columns, per pair","SV0063","ACC.","AC",816,0.25,{"$f":"Table8[[#This Row],[GOV List Price]]*(1-Table8[[#This Row],[NASPO Discount]])","v":612},"Yes"]
["FA845-MCH","FA845-MCH-KIT","Additional remote control for Flex lifts.  Includes charger and stand.   (Works on FLEX™)  Programming remote requires Rotary Tool laptop programmer.","FA845-MCH-","ACC.","AC",2633,0.25,{"$f":"Table8[[#This Row],[GOV List Price]]*(1-Table8[[#This Row],[NASPO Discount]])","v":1974.75},"Yes"]
["FLEX MAX™           214 ","MCHM214U100BKYL","14k Lb. per column capacity portable lift.  Same system as FLEX™ but upgraded operation at column and remote","MCHM214","MOBILE COLUMN","M3",39352,{"$f":"$H$1","v":0.41},{"$f":"Table8[[#This Row],[GOV List Price]]*(1-Table8[[#This Row],[NASPO Discount]])","v":23217.680000000004},"No"]
["FLEX MAX™           414","MCHM414U100BKYL","14k Lb. per column capacity portable lift.  Same system as FLEX™ but upgraded operation at column and remote","MCHM414","MOBILE COLUMN","M3",76561,0.41,{"$f":"Table8[[#This Row],[GOV List Price]]*(1-Table8[[#This Row],[NASPO Discount]])","v":45170.990000000005},"No"]
["FLEX MAX™           614","MCHM614U100BKYL","14k Lb. per column capacity portable lift.  Same system as FLEX™ but upgraded operation at column and remote","MCHM614","MOBILE COLUMN","M3",115911,0.41,{"$f":"Table8[[#This Row],[GOV List Price]]*(1-Table8[[#This Row],[NASPO Discount]])","v":68387.490000000005},"No"]
["FLEX MAX™           814","MCHM814U100BKYL","14k Lb. per column capacity portable lift.  Same system as FLEX™ but upgraded operation at column and remote","MCHM814","MOBILE COLUMN","M3",153121,0.41,{"$f":"Table8[[#This Row],[GOV List Price]]*(1-Table8[[#This Row],[NASPO Discount]])","v":90341.390000000014},"No"]
["FLEX MAX™           219","MCHM219U100BK","18.8k Lb. per column capacity portable lift.  Same system as FLEX™ but upgraded operation at column and remote.","MCHM219","MOBILE COLUMN","M8",48913,0.41,{"$f":"Table8[[#This Row],[GOV List Price]]*(1-Table8[[#This Row],[NASPO Discount]])","v":28858.670000000006},"Yes"]
["FLEX MAX™           419","MCHM419U100BK","18.8k Lb. per column capacity portable lift.  Same system as FLEX™ but upgraded operation at column and remote.","MCHM419","MOBILE COLUMN","M8",89035,0.41,{"$f":"Table8[[#This Row],[GOV List Price]]*(1-Table8[[#This Row],[NASPO Discount]])","v":52530.650000000009},"Yes"]
["FLEX MAX™           619","MCHM619U100BK","18.8k Lb. per column capacity portable lift.  Same system as FLEX™ but upgraded operation at column and remote.","MCHM619","MOBILE COLUMN","M8",134796,0.41,{"$f":"Table8[[#This Row],[GOV List Price]]*(1-Table8[[#This Row],[NASPO Discount]])","v":79529.640000000014},"Yes"]
["FLEX MAX™           819","MCHM819U100BK","18.8k Lb. per column capacity portable lift.  Same system as FLEX™ but upgraded operation at column and remote.","MCHM819","MOBILE COLUMN","M8",178067,0.41,{"$f":"Table8[[#This Row],[GOV List Price]]*(1-Table8[[#This Row],[NASPO Discount]])","v":105059.53000000001},"Yes"]
["MCHW218","MCHW218U100RD","18K Lb. Per Column Capacity Portable Lift. Electro-Hydraulic System with Adjustable Forks. 24VDC Battery Operated with 110 V Charging System.  Sold in Groups of 2 with Wireless Communication.","MCHW218","MOBILE COLUMN","M8",44204,0.41,{"$f":"Table8[[#This Row],[GOV List Price]]*(1-Table8[[#This Row],[NASPO Discount]])","v":26080.360000000004},"Yes"]
["MCHW418","MCHW418U100RD","18K Lb. Per Column Capacity Portable Lift. Electro-Hydraulic System with Adjustable Forks. 24VDC Battery Operated with 110 V Charging System.  Sold in Groups of 4 with Wireless Communication.","MCHW418","MOBILE COLUMN","M8",88405,0.41,{"$f":"Table8[[#This Row],[GOV List Price]]*(1-Table8[[#This Row],[NASPO Discount]])","v":52158.950000000004},"Yes"]
["MCHW618","MCHW618U100RD","18K Lb. Per Column Capacity Portable Lift. Electro-Hydraulic System with Adjustable Forks. 24VDC Battery Operated with 110 V Charging System.  Sold in Groups of 6 with Wireless Communication.","MCHW618","MOBILE COLUMN","M8",132608,0.41,{"$f":"Table8[[#This Row],[GOV List Price]]*(1-Table8[[#This Row],[NASPO Discount]])","v":78238.720000000016},"Yes"]
["FA8137","FA8137","Upgrade a single FLEX™  Column with new display membrane to a FLEX MAX™ - Additional board and remote software update included.  Programming remote requires Rotary Tool laptop programmer.  This is for older FLEX units without a group button.","FA8137","PARTS","BP",883,0.25,{"$f":"Table8[[#This Row],[GOV List Price]]*(1-Table8[[#This Row],[NASPO Discount]])","v":662.25},"Yes"]
["FA8136","FA8136","Upgrade a single FLEX™  Column without new display membrane to a FLEX MAX™ - Additional board and remote software update included.   Programming remote requires Rotary Tool laptop programmer.              ","FA8136","PARTS","BP",883,0.25,{"$f":"Table8[[#This Row],[GOV List Price]]*(1-Table8[[#This Row],[NASPO Discount]])","v":662.25},"Yes"]
["M140112","M140112","Locklight™ MCH kit compatible/retrofittable with DC versions of MCH13 and MCH18 columns.","M140112","ACC.","AC",811,0.25,{"$f":"Table8[[#This Row],[GOV List Price]]*(1-Table8[[#This Row],[NASPO Discount]])","v":608.25},"Yes"]
["M140115","M140115","Locklight™ MCH kit for AC mobile columns and MCH columns with pressure gauges already installed.\nIncludes all parts for M140112 and necessary adapter hoses/fitting.","M140115","ACC.","AC",1081,0.25,{"$f":"Table8[[#This Row],[GOV List Price]]*(1-Table8[[#This Row],[NASPO Discount]])","v":810.75},"Yes"]
["ML41YL","ML41YL","Saddle Cross Beam With Two (2) Support Blocks For Frame Pick-Up. For HP, MCH18 and Flex Models ONLY.\n32,000 lbs Capacity at 72” adapter spread. 24,000 lbs. Capacity at 49” adapter spread.","ML41","ACC.","AC",3903,0.25,{"$f":"Table8[[#This Row],[GOV List Price]]*(1-Table8[[#This Row],[NASPO Discount]])","v":2927.25},"Yes"]
["M140070YL ","M140070YL","Low Profile Cross Beam With Two (2) Support Blocks For Frame Pick-Up. For HP, MCH18 and Flex Models ONLY. 30,000 lbs Capacity at 49” adapter spread. 21,000 lbs. Capacity at 25” adapter spread.","M140070YL","ACC.","AC",8796,0.25,{"$f":"Table8[[#This Row],[GOV List Price]]*(1-Table8[[#This Row],[NASPO Discount]])","v":6597},"Yes"]
["FD2353KITYL","FD2353KITYL","Ramp style cross beam with (2) ramps for RV pick-up. Capacity 22,000 lbs. For HP, MCH18 and Flex Models ONLY.","FD2353","ACC.","AC",4509,0.25,{"$f":"Table8[[#This Row],[GOV List Price]]*(1-Table8[[#This Row],[NASPO Discount]])","v":3381.75},"Yes"]
["FD2448KITYL","FD2448KITYL","Extra wide ramp style cross beam with (2) ramps for WingPlows. Cap. 28,000 lbs.  MCH18 and Flex 19 Models ONLY.","FD2448KIT","ACC.","AC",8609,0.25,{"$f":"Table8[[#This Row],[GOV List Price]]*(1-Table8[[#This Row],[NASPO Discount]])","v":6456.75},"Yes"]
["M140004RD","M140004RD","Forklift Ramp Kit used with the MCH418 series to utilize two MCH columns to service forklifts. Easily\nattaches to the base of the column and provides clearance needed to raise 4-wheeled forklifts with a weight\nof 10,000 lbs. (NOTE: Most 6,000 lb. capacity trucks weigh 10,000 lbs. or less; however, the truck weight\nshould be verified before being lifted.) For Drive-on/Back-off operation. For Class II Forklifts Only.","M140004RD","ACC.","AC",6163,0.25,{"$f":"Table8[[#This Row],[GOV List Price]]*(1-Table8[[#This Row],[NASPO Discount]])","v":4622.25},"Yes"]
["M140124RD","M140124RD","Forklift Ramp Kit used with the MCH418 Flex 419 series to utilize two MCH columns to service forklifts.  Easily attaches to the base of the column and provides clearance needed to raise 4-wheeled forklifts with a weight of 18,000 lbs. (NOTE:  Most 10,000 lb. capacity trucks weigh 18,000 lbs. or less; however, the truck weight should be verified before being lifted.)  For Drive-on/Back-off operation.  ","M140124RD","ACC.","AC",6163,0.25,{"$f":"Table8[[#This Row],[GOV List Price]]*(1-Table8[[#This Row],[NASPO Discount]])","v":4622.25},"Yes"]
["M110175","M110175RD","Forklift cart for easy mobility of Forklift kits.","M110175RD","ACC.","AC",2196,0.25,{"$f":"Table8[[#This Row],[GOV List Price]]*(1-Table8[[#This Row],[NASPO Discount]])","v":1647},"Yes"]
["M140012RD","M140012RD","Forklift Ramp Kit","M140012","ACC.","AC",6163,0.25,{"$f":"Table8[[#This Row],[GOV List Price]]*(1-Table8[[#This Row],[NASPO Discount]])","v":4622.25},"Yes"]
["M140001RD","M140001RD","Long Fork Kit. Each kit includes two 22” forks (8” longer than standard) and two 8” leg extensions. Reduces capacity of column to 12,000 lbs. FOR MCH and Flex MODELS ONLY. 18,000/19,000 lb. columns only.  Price shown is for 1 column.","M140001RD","ACC.","AC",1832,0.25,{"$f":"Table8[[#This Row],[GOV List Price]]*(1-Table8[[#This Row],[NASPO Discount]])","v":1374},"Yes"]
["M140041RD","M140041RD","Long Fork Kit. Each kit includes two 20” forks (6” longer than standard) and two 8” leg extensions. Reduces capacity of column to 14,500 lbs. FOR MCH and Flex MODELS ONLY. 18,000/19,000 lb. columns only. IMPROVED DESIGN.  Price shown is for 1 column.","M140041RD","ACC.","AC",1832,0.25,{"$f":"Table8[[#This Row],[GOV List Price]]*(1-Table8[[#This Row],[NASPO Discount]])","v":1374},"Yes"]
["M140015RD","M140015KITRD","Drive-on runway assembly for use with MCH418 and Flex Mobile Columns. 60,000 lbs. capacity. Mac wheel base 33'. (MCH418+) RJ25001LBK can be used with these runways. Includes airline kit.","M140015K","ACC.","AC",70757,0.25,{"$f":"Table8[[#This Row],[GOV List Price]]*(1-Table8[[#This Row],[NASPO Discount]])","v":53067.75},"Yes"]
["M140129CG","M140129CG","Drive-on runway assembly for use with MCH413 and Flex Mobile Columns. 36,000 lbs. capacity. Length 30 feet. (MCH413+) . Includes airline kit.","M140129CG","ACC.","AC",30256,0.25,{"$f":"Table8[[#This Row],[GOV List Price]]*(1-Table8[[#This Row],[NASPO Discount]])","v":22692},"Yes"]
["M140003","M140003","Pendant for MCH Mobile Column Lift System with 33’ cable.","M140003","ACC.","AC",14452,0.25,{"$f":"Table8[[#This Row],[GOV List Price]]*(1-Table8[[#This Row],[NASPO Discount]])","v":10839},"Yes"]
["M140144","M140144","Service Chip for FLEX columns only.","M140144","PARTS","BP",80,0.25,{"$f":"Table8[[#This Row],[GOV List Price]]*(1-Table8[[#This Row],[NASPO Discount]])","v":60},"Yes"]
["AC100005","AC100005","Rotary programming tool for heavy duty lifts.  Software for laptop running \nWindows XP/7/8/10.  (Laptop not included.)","AC100005","ACC.","AC",1814,0.25,{"$f":"Table8[[#This Row],[GOV List Price]]*(1-Table8[[#This Row],[NASPO Discount]])","v":1360.5},"Yes"]
["M140157","M140157RD","Analog Gauge Kit for MCH/RCH Series","M140157RD","ACC.","AC",604,0.25,{"$f":"Table8[[#This Row],[GOV List Price]]*(1-Table8[[#This Row],[NASPO Discount]])","v":453},"Yes"]
["S100166","S100166BL","SM18 -- Bolt-On Alignment Kit converts SM18/SM18EL lifts to alignment racks. Kits include stainless steel radius gauges, slip plates and ramp modifications and necessary mounting hardware. Rolling jacks are sold separately. 194\" WB","S100166BL","ACC.","AC",11073,0.25,{"$f":"Table8[[#This Row],[GOV List Price]]*(1-Table8[[#This Row],[NASPO Discount]])","v":8304.75},"Yes"]
["S100128","S100128BL","SM18 -- Bolt-On Alignment Kit converts SM18/SM18EL lifts to alignment racks. Kits include stainless steel radius gauges, slip plates and ramp modifications and necessary mounting hardware. Rolling jacks are sold separately. 230\" WB","S100128BL","ACC.","AC",11256,0.25,{"$f":"Table8[[#This Row],[GOV List Price]]*(1-Table8[[#This Row],[NASPO Discount]])","v":8442},"Yes"]
["Moveable Jack-Non Recessed","Moveable Jack-Non Recessed","25,000lb Capacity 17\" Frame 10.6\" Piston",0,0,0,0,{"$f":"$H$1","v":0.41},{"$f":"Table8[[#This Row],[GOV List Price]]*(1-Table8[[#This Row],[NASPO Discount]])","v":0},"Yes"]
["Moveable Jack-Recessed W/Pocket","Moveable Jack-Recessed W/Pocket","25,000lb Capacity 17\" Frame 10.6\" Piston Standard Cover Plates",0,0,0,0,0.41,{"$f":"Table8[[#This Row],[GOV List Price]]*(1-Table8[[#This Row],[NASPO Discount]])","v":0},"Yes"]
["Moveable Jack-Recessed W/Pocket & Automatic Shutter Plates","Moveable Jack-Recessed W/Pocket & Automatic Shutter Plates","25,000lb Capacity 17\" Frame 10.6\" Piston Shutter Plates",0,0,0,0,0.41,{"$f":"Table8[[#This Row],[GOV List Price]]*(1-Table8[[#This Row],[NASPO Discount]])","v":0},"Yes"]
["Stationary Post 12,000lb","Stationary Post 12,000lb","12,000lb Capacity 10.6\" Single Piston 48\" Pocket",0,0,0,0,0.41,{"$f":"Table8[[#This Row],[GOV List Price]]*(1-Table8[[#This Row],[NASPO Discount]])","v":0},"Yes"]
["Stationary Post 18,000lb","Stationary Post 18,000lb","18,000lb Capacity 10.6\" Single Piston 48\" Pocket",0,0,0,0,0.41,{"$f":"Table8[[#This Row],[GOV List Price]]*(1-Table8[[#This Row],[NASPO Discount]])","v":0},"Yes"]
["Stationary Post 25,000lb","Stationary Post 25,000lb","25,000lb Capacity 10.6\" Single Piston 48\" Pocket",0,0,0,0,0.41,{"$f":"Table8[[#This Row],[GOV List Price]]*(1-Table8[[#This Row],[NASPO Discount]])","v":0},"Yes"]
["Dual Jack Frame (Side by Side)","Dual Jack Frame (Side by Side)","50,000lb Capacity Dual 10.6\" Pistons 48\" Pocket",0,0,0,0,0.41,{"$f":"Table8[[#This Row],[GOV List Price]]*(1-Table8[[#This Row],[NASPO Discount]])","v":0},"Yes"]
["M140168YL","M140168YL","Fore and Aft Frame Kit","M140168YL","ACC.","AC",5692,0.25,{"$f":"Table8[[#This Row],[GOV List Price]]*(1-Table8[[#This Row],[NASPO Discount]])","v":4269},"Yes"]
["RS20SYL","RS20SYL","Screw Type Adjustable 56.1\"-82.3\"","RS20SYL","ACC.","AC",1829,0.25,{"$f":"Table8[[#This Row],[GOV List Price]]*(1-Table8[[#This Row],[NASPO Discount]])","v":1371.75},"Yes"]
["RS2052SYL","RS2052SYL","Screw Type Adjustable 34.3\"-55.5\"","RS2052SYL","ACC.","AC",1629,0.25,{"$f":"Table8[[#This Row],[GOV List Price]]*(1-Table8[[#This Row],[NASPO Discount]])","v":1221.75},"Yes"]
["RS20-VAYL","RS20-VAYL","V Shaped Adapter for Rotary Jack Stand 15K to 20K (1) Per Stand","RS20-VAYL","PARTS","BP",189,0.25,{"$f":"Table8[[#This Row],[GOV List Price]]*(1-Table8[[#This Row],[NASPO Discount]])","v":141.75},"Yes"]
["ARO22N000","ARO22N000BL","4 Post Alignment 22,000lb Capacity 194\" Wheelbase",0,0,0,70143,{"$f":"$H$1","v":0.41},{"$f":"Table8[[#This Row],[GOV List Price]]*(1-Table8[[#This Row],[NASPO Discount]])","v":41384.370000000003},"Yes"]
["ARO22N000ZP","ARO22N000ZPBL","4 Post Alignment 22,000lb Capacity 194\" Wheelbase Zinc Primed",0,0,0,73062,{"$f":"$H$1","v":0.41},{"$f":"Table8[[#This Row],[GOV List Price]]*(1-Table8[[#This Row],[NASPO Discount]])","v":43106.580000000009},"Yes"]
["ARO22N001","ARO22N001BL","4 Post Alignment 22,000lb Capacity 230\" Wheelbase",0,0,0,73791,{"$f":"$H$1","v":0.41},{"$f":"Table8[[#This Row],[GOV List Price]]*(1-Table8[[#This Row],[NASPO Discount]])","v":43536.69},"Yes"]
["ARO22N001ZP","ARO22N001ZPBL","4 Post Alignment 22,000lb Capacity 230\" Wheelbase Zinc Primed",0,0,0,76710,{"$f":"$H$1","v":0.41},{"$f":"Table8[[#This Row],[GOV List Price]]*(1-Table8[[#This Row],[NASPO Discount]])","v":45258.900000000009},"Yes"]
["M140180YL","M140180YL","Cab Off Adapter for M140168 Fore and Aft Kit","M140180YL","ACC.","AC",1199,0.25,{"$f":"Table8[[#This Row],[GOV List Price]]*(1-Table8[[#This Row],[NASPO Discount]])","v":899.25},"Yes"]
["M120651YL","M120651YL","Wide Center Adapter for Use With M140168YL ONLY","M120651YL","ACC.","AC",315,0.25,{"$f":"Table8[[#This Row],[GOV List Price]]*(1-Table8[[#This Row],[NASPO Discount]])","v":236.25},"Yes"]
["M140171BK","M140171BK","24VDC LED Service Lamp Kit","M140171BK","ACC.","AC",1497,0.25,{"$f":"Table8[[#This Row],[GOV List Price]]*(1-Table8[[#This Row],[NASPO Discount]])","v":1122.75},"Yes"]
["M140181","M140181","Forklift Ramp Carriage","M140181","ACC.","AC",10251,0.25,{"$f":"Table8[[#This Row],[GOV List Price]]*(1-Table8[[#This Row],[NASPO Discount]])","v":7688.25},"Yes"]
["M140182","M140182","Forklift Ramp Carriage For Double or Triple Pallet Truck","M140182","ACC.","AC",10331,0.25,{"$f":"Table8[[#This Row],[GOV List Price]]*(1-Table8[[#This Row],[NASPO Discount]])","v":7748.25},"Yes"]
["M140153RD","M140153RD","3 Wheel Forklift Kit","M140153RD","ACC.","AC",6527,0.25,{"$f":"Table8[[#This Row],[GOV List Price]]*(1-Table8[[#This Row],[NASPO Discount]])","v":4895.25},"Yes"]
["RJ9100YM","RJ9100YM","9,000lb Capacity Rolling Jack","RJ9100YM","ACC.","AC",8024,0.25,{"$f":"Table8[[#This Row],[GOV List Price]]*(1-Table8[[#This Row],[NASPO Discount]])","v":6018},"Yes"]
["RJ9100YM-1","RJ9100YM-1","9,000lb Capacity Rolling Jack SM181 Only Welded Tracks","RJ9100YM-1","ACC.","AC",6929,0.25,{"$f":"Table8[[#This Row],[GOV List Price]]*(1-Table8[[#This Row],[NASPO Discount]])","v":5196.75},"Yes"]
["RJ9100YM-2","RJ9100YM-2","9,000lb Capacity Rolling Jack SM30 Series","RJ9100YM-2","ACC.","AC",7691,0.25,{"$f":"Table8[[#This Row],[GOV List Price]]*(1-Table8[[#This Row],[NASPO Discount]])","v":5768.25},"Yes"]
["RJ15BK","RJ15BK","15,000lb Capacity Rolling Jack for ARO22","RJ15BK","ACC.","AC",20492,0.25,{"$f":"Table8[[#This Row],[GOV List Price]]*(1-Table8[[#This Row],[NASPO Discount]])","v":15369},"Yes"]
["RJ14BK","RJ14BK","14,000lb Capacity Rolling Jack ","RJ14BK","ACC.","AC",23809,0.25,{"$f":"Table8[[#This Row],[GOV List Price]]*(1-Table8[[#This Row],[NASPO Discount]])","v":17856.75},"Yes"]
["RJ30BK","RJ30BK","30,000lb Capacity Rolling Jack ","RJ30BK","ACC.","AC",24407,0.25,{"$f":"Table8[[#This Row],[GOV List Price]]*(1-Table8[[#This Row],[NASPO Discount]])","v":18305.25},"Yes"]
["M140099RD","M140099RD","Drive-Thru Ramp Kit for All HDC 50 and 60 Models.","M140099RD","ACC.","AC",3156,0.25,{"$f":"Table8[[#This Row],[GOV List Price]]*(1-Table8[[#This Row],[NASPO Discount]])","v":2367},"Yes"]
["M140133RD","M140133RD","Drive-Thru Ramp Kit for All HDC 36 Models.","M140133RD","ACC.","AC",2046,0.25,{"$f":"Table8[[#This Row],[GOV List Price]]*(1-Table8[[#This Row],[NASPO Discount]])","v":1534.5},"Yes"]
["M140111RD","M140111RD","HDC Column Mobility Kit. (Adds Wheels and Steering to HDC Columns for Mobile Use.) HDC 50 & 60 Models","M140111RD","ACC.","AC",5873,0.25,{"$f":"Table8[[#This Row],[GOV List Price]]*(1-Table8[[#This Row],[NASPO Discount]])","v":4404.75},"Yes"]
["M140125RD","M140125RD","HDC Column Mobility Kit. (Adds Wheels and Steering to HDC Columns for Mobile Use.) HDC 36 Models","M140125RD","ACC.","AC",5873,0.25,{"$f":"Table8[[#This Row],[GOV List Price]]*(1-Table8[[#This Row],[NASPO Discount]])","v":4404.75},"Yes"]
["M140105","M140105","2” Shim Kit for HDC 36K, 50K, or 60K lifts.  Kit is sized for single column.","M140105","PARTS","BP",1909,0.25,{"$f":"Table8[[#This Row],[GOV List Price]]*(1-Table8[[#This Row],[NASPO Discount]])","v":1431.75},"Yes"]
["M140106","M140106","1” Shim Kit for HDC (Two 1/2, Two 1/4, Two 1/8, Two 1/16) 36K, 50K, or 60K lifts.  Kit is sized for single column. ","M140106","PARTS","BP",859,0.25,{"$f":"Table8[[#This Row],[GOV List Price]]*(1-Table8[[#This Row],[NASPO Discount]])","v":644.25},"Yes"]
["RJ22BK","RJ22BK","22,000lb Rolling Jack","RJ22BK","ACC.","AC",25058,0.25,{"$f":"Table8[[#This Row],[GOV List Price]]*(1-Table8[[#This Row],[NASPO Discount]])","v":18793.5},"Yes"]
["RJ25BK","RJ25BK","25,000lb Rolling Jack","RJ25BK","ACC.","AC",25058,0.25,{"$f":"Table8[[#This Row],[GOV List Price]]*(1-Table8[[#This Row],[NASPO Discount]])","v":18793.5},"Yes"]
["RJ32BK","RJ32BK","32,000lb Rolling Jack","RJ32BK","ACC.","AC",25439,0.25,{"$f":"Table8[[#This Row],[GOV List Price]]*(1-Table8[[#This Row],[NASPO Discount]])","v":19079.25},"Yes"]
["RJ42BK","RJ42BK","42,000lb Rolling Jack","RJ42BK","ACC.","AC",26127,0.25,{"$f":"Table8[[#This Row],[GOV List Price]]*(1-Table8[[#This Row],[NASPO Discount]])","v":19595.25},"Yes"]
["MOD35M-10","MOD35M-10","Modular Movable Jack Unit With 10’ Long Track.  Use for Tandem rear applications. (*not equipped with adapter kits)",0,0,0,121035,{"$f":"$H$1","v":0.41},{"$f":"Table8[[#This Row],[GOV List Price]]*(1-Table8[[#This Row],[NASPO Discount]])","v":71410.650000000009},"Yes"]
["MOD35M-18","MOD35M-18","Modular Movable Jack Unit With **18’ Long Track. (*not equipped with adapter kits)",0,0,0,121035,0.41,{"$f":"Table8[[#This Row],[GOV List Price]]*(1-Table8[[#This Row],[NASPO Discount]])","v":71410.650000000009},"Yes"]
["MOD35M-21","MOD35M-21","Modular Movable Jack Unit With** 21’ Long Track. (*not equipped with adapter kits)",0,0,0,121035,0.41,{"$f":"Table8[[#This Row],[GOV List Price]]*(1-Table8[[#This Row],[NASPO Discount]])","v":71410.650000000009},"Yes"]
["MOD35M-24","MOD35M-24","Modular Movable Jack Unit With ** 24' Long Track (*not equipped with adapter kits)",0,0,0,121035,0.41,{"$f":"Table8[[#This Row],[GOV List Price]]*(1-Table8[[#This Row],[NASPO Discount]])","v":71410.650000000009},"Yes"]
["For MOD35M frame only.  Any length.","For MOD35M frame only.  Any length.",null,0,0,0,82304,0.41,{"$f":"Table8[[#This Row],[GOV List Price]]*(1-Table8[[#This Row],[NASPO Discount]])","v":48559.360000000008},"Yes"]
["MOD35S","MOD35S","Modular Stationary Jack Unit (*not equipped with adapter kits)",0,0,0,72946,0.41,{"$f":"Table8[[#This Row],[GOV List Price]]*(1-Table8[[#This Row],[NASPO Discount]])","v":43038.140000000007},"Yes"]
["AK-SBA70-2PK","AK-SBA70-2PK","Adapter kit for most School Bus applications. For use on (2-Post lift configuration).","AK-SBA70-2","HEAVY DUTY","HL",13431,0.41,{"$f":"Table8[[#This Row],[GOV List Price]]*(1-Table8[[#This Row],[NASPO Discount]])","v":7924.2900000000009},"Yes"]
["AK-HTA70-2PK","AK-HTA70-2PK","Adapter kit for most Heavy Duty Truck applications. For use on (2-Post lift configuration).","AK-HTA70-2","HEAVY DUTY","HL",13431,0.41,{"$f":"Table8[[#This Row],[GOV List Price]]*(1-Table8[[#This Row],[NASPO Discount]])","v":7924.2900000000009},"Yes"]
["AK-ULP70-2PK","AK-ULP70-2PK","Adapter kit for most Low Profile Transit Bus operations. For use on (2-Post lift configuration).","AK-ULP70-2","HEAVY DUTY","HL",15881,0.41,{"$f":"Table8[[#This Row],[GOV List Price]]*(1-Table8[[#This Row],[NASPO Discount]])","v":9369.7900000000009},"Yes"]
["AK-ULP105-3PK","AK-ULP105-3PK","Adapter kit for most Transit Bus applications. For use on (3-Post lift configuration).","AK-ULP105-","HEAVY DUTY","HL",20304,0.41,{"$f":"Table8[[#This Row],[GOV List Price]]*(1-Table8[[#This Row],[NASPO Discount]])","v":11979.360000000002},"Yes"]
["AK-HTA105-3PK","AK-HTA105-3PK","Adapter kit for most Heavy Duty Truck applications. For use on (3-Post lift configuration).","AK-HTA105-","HEAVY DUTY","HL",19229,0.41,{"$f":"Table8[[#This Row],[GOV List Price]]*(1-Table8[[#This Row],[NASPO Discount]])","v":11345.110000000002},"Yes"]
["FD2361BK","FD2361BK","Universal Adapter Stand Kit.","FD2361","ACC.","AC",406,0.25,{"$f":"Table8[[#This Row],[GOV List Price]]*(1-Table8[[#This Row],[NASPO Discount]])","v":304.5},"Yes"]
["FD2438BK","FD2438BK","Mobile Adapter Cart.","FD2438BK","ACC.","AC",1817,0.25,{"$f":"Table8[[#This Row],[GOV List Price]]*(1-Table8[[#This Row],[NASPO Discount]])","v":1362.75},"Yes"]
["FD2356ECYL","FD2356ECYL","Low Profile Saddle (no adatpers) (flat plate)","FD2356","ACC.","AC",3312,0.25,{"$f":"Table8[[#This Row],[GOV List Price]]*(1-Table8[[#This Row],[NASPO Discount]])","v":2484},"Yes"]
["FD2408ECYL","FD2408ECYL","Ultra Flat Low Profile Saddle with 2 sets of inserts included (choose 2 part #s FD2379, FD2380, FD2381, FD2363, FD2384, FD2385). See adapter guide for description.  Compatible with older MOD30s. ","FD2408ECYL","ACC.","AC",7357,0.25,{"$f":"Table8[[#This Row],[GOV List Price]]*(1-Table8[[#This Row],[NASPO Discount]])","v":5517.75},"Yes"]
["FD2382ECYL","FD2382ECYL","3 Hole Sliding Adapter for FD2347 Saddle - must order 2. ","FD2382","ACC.","AC",788,0.25,{"$f":"Table8[[#This Row],[GOV List Price]]*(1-Table8[[#This Row],[NASPO Discount]])","v":591},"Yes"]
["FD6798","FD6798","Preconfigured #5 rebar mat (price is per each 3' x 4' section) for ease of installation. ","FD6798","ACC.","AC",370,0.25,{"$f":"Table8[[#This Row],[GOV List Price]]*(1-Table8[[#This Row],[NASPO Discount]])","v":277.5},"Yes"]
["MC100045BK","MC100045BK","Liquid Evacuation Kit for 2-Post MOD35.","MC100045BK","ACC.","AC",5614,0.25,{"$f":"Table8[[#This Row],[GOV List Price]]*(1-Table8[[#This Row],[NASPO Discount]])","v":4210.5},"Yes"]
["MC100046BK","MC100046BK","Liquid Evacuation Kit for 3-Post MOD35.","MC100046BK","ACC.","AC",7654,0.25,{"$f":"Table8[[#This Row],[GOV List Price]]*(1-Table8[[#This Row],[NASPO Discount]])","v":5740.5},"Yes"]
["MC100039RD","MC100039RD","Pedestal Kit.","MC100039RD","ACC.","AC",544,0.25,{"$f":"Table8[[#This Row],[GOV List Price]]*(1-Table8[[#This Row],[NASPO Discount]])","v":408},"Yes"]
["MC100040","MC100040","Cord Reel -- No Festoon Special Low Voltage, Clutch Contacts.  For Pendant only operation.","MC100040","ACC.","AC",6405,0.25,{"$f":"Table8[[#This Row],[GOV List Price]]*(1-Table8[[#This Row],[NASPO Discount]])","v":4803.75},"Yes"]
["MC100050","MC100050","MOD35 FLEX™ Remote Control Kit - 2 Post","MC100050","ACC.","AC",9982,0.25,{"$f":"Table8[[#This Row],[GOV List Price]]*(1-Table8[[#This Row],[NASPO Discount]])","v":7486.5},"Yes"]
["MC100049","MC100049","MOD35 FLEX™ Remote Control Kit - 3 Post & Tandem","MC100049","ACC.","AC",10887,0.25,{"$f":"Table8[[#This Row],[GOV List Price]]*(1-Table8[[#This Row],[NASPO Discount]])","v":8165.25},"Yes"]
["MC100052","MC100052","MOD30 FLEX™ Remote Control Kit - 2 Post (Converts JT14 cylinders only)","MC100052","ACC.","AC",12490,0.25,{"$f":"Table8[[#This Row],[GOV List Price]]*(1-Table8[[#This Row],[NASPO Discount]])","v":9367.5},"Yes"]
["MC100051","MC100051","MOD30 FLEX™ Remote Control Kit  - 3 Post & Tandem (Converts JT14 cylinders only)","MC100051","ACC.","AC",13136,0.25,{"$f":"Table8[[#This Row],[GOV List Price]]*(1-Table8[[#This Row],[NASPO Discount]])","v":9852},"Yes"]
["AK-SBA60-2PK","AK-SBA60-2PK","Adapter kit for most School Bus applications. For use on (2-Post lift configuration).","AK-SBA60-2","HEAVY DUTY","HL",13431,{"$f":"$H$1","v":0.41},{"$f":"Table8[[#This Row],[GOV List Price]]*(1-Table8[[#This Row],[NASPO Discount]])","v":7924.2900000000009},"Yes"]
["AK-HTA60-2PK","AK-HTA60-2PK","Adapter kit for most Heavy Duty Truck applications. For use on (2-Post lift configuration).","AK-HTA60-2","HEAVY DUTY","HL",13431,{"$f":"$H$1","v":0.41},{"$f":"Table8[[#This Row],[GOV List Price]]*(1-Table8[[#This Row],[NASPO Discount]])","v":7924.2900000000009},"Yes"]
["AK-TRLP60-2PK","AK-TRLP60-2PK","Adapter kit for most Low Profile Transit Bus operations. For use on (2-Post lift configuration).","AK-TRLP60-","HEAVY DUTY","HL",15881,{"$f":"$H$1","v":0.41},{"$f":"Table8[[#This Row],[GOV List Price]]*(1-Table8[[#This Row],[NASPO Discount]])","v":9369.7900000000009},"Yes"]
["AK-HTA90-3PK","AK-HTA90-3PK","Adapter kit for most Heavy Duty Truck applications. For use on (3-Post lift configuration).","AK-HTA90-3","HEAVY DUTY","HL",21684,{"$f":"$H$1","v":0.41},{"$f":"Table8[[#This Row],[GOV List Price]]*(1-Table8[[#This Row],[NASPO Discount]])","v":12793.560000000001},"Yes"]
["AK-TRLP90-3PK","AK-TRLP90-3PK","Adapter kit for most Low Profile Transit Bus operations. For use on (3-Post lift configuration).","AK-TRLP90-","HEAVY DUTY","HL",19229,{"$f":"$H$1","v":0.41},{"$f":"Table8[[#This Row],[GOV List Price]]*(1-Table8[[#This Row],[NASPO Discount]])","v":11345.110000000002},"Yes"]
["EFX1712165000","EFX1712165000","2 Scissor Pendant - hand held. No Festoon.","EFX1712165","ACC.","AC",13480,0.25,{"$f":"Table8[[#This Row],[GOV List Price]]*(1-Table8[[#This Row],[NASPO Discount]])","v":10110},"Yes"]
["EFX1712165100","EFX1712165100","3 Scissor Pendant - hand held. No Festoon.","EFX1712165","PARTS","BP",17652,0.25,{"$f":"Table8[[#This Row],[GOV List Price]]*(1-Table8[[#This Row],[NASPO Discount]])","v":13239},"Yes"]
["EFX0906211002","EFX0906211002BK","Shims available in 1/8” thickness.","EFX0906211","ACC.","AC",19,0.25,{"$f":"Table8[[#This Row],[GOV List Price]]*(1-Table8[[#This Row],[NASPO Discount]])","v":14.25},"Yes"]
["EFX0906211003","EFX0906211003BK","Shims available in 1/4” thickness.","EFX0906211","ACC.","AC",20,0.25,{"$f":"Table8[[#This Row],[GOV List Price]]*(1-Table8[[#This Row],[NASPO Discount]])","v":15},"Yes"]
["EFX0906211004","EFX0906211004BK","Shims available in 1/2” thickness.","EFX0906211","ACC.","AC",20,0.25,{"$f":"Table8[[#This Row],[GOV List Price]]*(1-Table8[[#This Row],[NASPO Discount]])","v":15},"Yes"]
["EFX1401031200","EFX1401031200YL","Three (3) Hole Sliding Adapter for Rear EFX.","EFX1401031","ACC.","AC",5619,0.25,{"$f":"Table8[[#This Row],[GOV List Price]]*(1-Table8[[#This Row],[NASPO Discount]])","v":4214.25},"Yes"]
["EFX0809511200","EFX0809511200BL","6\" cover for 48\" wide pit","EFX0809511","PARTS","BP",546,0.25,{"$f":"Table8[[#This Row],[GOV List Price]]*(1-Table8[[#This Row],[NASPO Discount]])","v":409.5},"Yes"]
["EFX0809531200","EFX0809531200BL","12\" cover for 48\" wide pit","EFX0809531","PARTS","BP",556,0.25,{"$f":"Table8[[#This Row],[GOV List Price]]*(1-Table8[[#This Row],[NASPO Discount]])","v":417},"Yes"]
["EFX0809471200","EFX0809471200BL","24\" cover for 48\" wide pit","EFX0809471","PARTS","BP",944,0.25,{"$f":"Table8[[#This Row],[GOV List Price]]*(1-Table8[[#This Row],[NASPO Discount]])","v":708},"Yes"]
["EFX1207511200","EFX1207511200BL","6\" cover for 50\" wide pit (Tandem)","EFX1207511","PARTS","BP",618,0.25,{"$f":"Table8[[#This Row],[GOV List Price]]*(1-Table8[[#This Row],[NASPO Discount]])","v":463.5},"Yes"]
["EFX1207521200","EFX1207521200BL","12\" cover for 50\" wide pit (Tandem)","EFX1207521","PARTS","BP",900,0.25,{"$f":"Table8[[#This Row],[GOV List Price]]*(1-Table8[[#This Row],[NASPO Discount]])","v":675},"Yes"]
["EFX1207531200","EFX1207531200BL","24\" cover for 50\" wide pit (Tandem)","EFX1207531","PARTS","BP",1284,0.25,{"$f":"Table8[[#This Row],[GOV List Price]]*(1-Table8[[#This Row],[NASPO Discount]])","v":963},"Yes"]
["EFX1601100012","EFX1601100012","17' Nosing Kit","EFX1601100","ACC.","AC",3989,0.25,{"$f":"Table8[[#This Row],[GOV List Price]]*(1-Table8[[#This Row],[NASPO Discount]])","v":2991.75},"Yes"]
["EFX1601200012","EFX1601200012","13' Nosing Kit","EFX1601200","ACC.","AC",3478,0.25,{"$f":"Table8[[#This Row],[GOV List Price]]*(1-Table8[[#This Row],[NASPO Discount]])","v":2608.5},"Yes"]
["EFX1601300012","EFX1601300012","10' Nosing Kit","EFX1601300","ACC.","AC",2966,0.25,{"$f":"Table8[[#This Row],[GOV List Price]]*(1-Table8[[#This Row],[NASPO Discount]])","v":2224.5},"Yes"]
["EFX1601400012","EFX1601400012","Stationary Nosing Kit","EFX1601400","ACC.","AC",1266,0.25,{"$f":"Table8[[#This Row],[GOV List Price]]*(1-Table8[[#This Row],[NASPO Discount]])","v":949.5},"Yes"]
["EFX1601500012","EFX1601500012","Tandem Nosing Kit","EFX1601500","ACC.","AC",2966,0.25,{"$f":"Table8[[#This Row],[GOV List Price]]*(1-Table8[[#This Row],[NASPO Discount]])","v":2224.5},"Yes"]
["P5117","P5117-200VBK","(2) 10.6\" piston, all electric,  350 PSI,  25000 lbs of capacity per piston.","P5117-200V","HEAVY DUTY","HL",24149,{"$f":"$H$1","v":0.41},{"$f":"Table8[[#This Row],[GOV List Price]]*(1-Table8[[#This Row],[NASPO Discount]])","v":14247.910000000002},"Yes"]
["P5118","P5118-200VBK","(3) 10.6\" piston, all electric,  350 PSI, 25000 lbs of capacity per piston","P5118-200","HEAVY DUTY","HL",24149,0.41,{"$f":"Table8[[#This Row],[GOV List Price]]*(1-Table8[[#This Row],[NASPO Discount]])","v":14247.910000000002},"Yes"]
["P5122","P5122-200VBK","(2) 10.6\" piston, all electric,  350 PSI, 25000 lbs of capacity per piston","P5122-200","HEAVY DUTY","HL",31725,0.41,{"$f":"Table8[[#This Row],[GOV List Price]]*(1-Table8[[#This Row],[NASPO Discount]])","v":18717.750000000004},"Yes"]
["P863","P863-200VBK","(2) 10.6\" piston, all electric,  350 PSI, In Pit and Equalized, 25000 lbs of capacity per piston.","P863-200","HEAVY DUTY","HL",41434,0.41,{"$f":"Table8[[#This Row],[GOV List Price]]*(1-Table8[[#This Row],[NASPO Discount]])","v":24446.060000000005},"Yes"]
["P862","P862-200VBK","(3) 10.6\" piston, all electric,  350 PSI, In Pit and Equalized, 25000 lbs of capacity per piston.","P862-200","HEAVY DUTY","HL",53823,0.41,{"$f":"Table8[[#This Row],[GOV List Price]]*(1-Table8[[#This Row],[NASPO Discount]])","v":31755.570000000003},"Yes"]
["AK-SBA50-2PK","AK-SBA50-2PK","Adapter Kit for MOST school bus applications.  For use on a 2 piston configuration.","AK-SBA50-2","HEAVY DUTY","HL",11682,0.41,{"$f":"Table8[[#This Row],[GOV List Price]]*(1-Table8[[#This Row],[NASPO Discount]])","v":6892.380000000001},"Yes"]
["AK-HTA50-2PK","AK-HTA50-2PK","Adapter Kit for MOST heavy truck applications.  For use on a 2 piston configuration.","AK-HTA50-2","HEAVY DUTY","HL",11682,0.41,{"$f":"Table8[[#This Row],[GOV List Price]]*(1-Table8[[#This Row],[NASPO Discount]])","v":6892.380000000001},"Yes"]
["AK-HTA75-DUAL","AK-HTA75-DUAL","Adapter Kit for MOST heavy truck applications.  For use on a 3 piston configuration.","AK-HTA75","HEAVY DUTY","HL",11682,0.41,{"$f":"Table8[[#This Row],[GOV List Price]]*(1-Table8[[#This Row],[NASPO Discount]])","v":6892.380000000001},"Yes"]
["AK-ULP50-2PK","AK-ULP50-2PK","Adapter Kit for MOST transit applications.  For use on a 2 piston configuration.","AK-ULP50-2","HEAVY DUTY","HL",15881,0.41,{"$f":"Table8[[#This Row],[GOV List Price]]*(1-Table8[[#This Row],[NASPO Discount]])","v":9369.7900000000009},"Yes"]
["AK-ULP75-3PK","AK-ULP75-3PK","Adapter Kit for MOST transit applications.  For use on a 3 piston configuration.","AK-ULP75-3","HEAVY DUTY","HL",19510,0.41,{"$f":"Table8[[#This Row],[GOV List Price]]*(1-Table8[[#This Row],[NASPO Discount]])","v":11510.900000000001},"Yes"]
["FD2361","FD2361BK","Universal Adapter Stand Kit","FD2361","ACC.","AC",406,0.25,{"$f":"Table8[[#This Row],[GOV List Price]]*(1-Table8[[#This Row],[NASPO Discount]])","v":304.5},"Yes"]
["FD2438","FD2438BK","Mobile Car for Universal Adapters","FD2438BK","ACC.","AC",1817,0.25,{"$f":"Table8[[#This Row],[GOV List Price]]*(1-Table8[[#This Row],[NASPO Discount]])","v":1362.75},"Yes"]
["FA75","FA75","Remote Push button starter. For use as a remote switch on multi-lift installations.  Consult factory for power unit.  For surface mounted power units only.","FA75","ACC.","AC",409,0.25,{"$f":"Table8[[#This Row],[GOV List Price]]*(1-Table8[[#This Row],[NASPO Discount]])","v":306.75},"Yes"]
["V44-28 S","VRX44-28LS00RD","4-Leg Surface Mounted Clear Floor Open Base Vertical Rise Lift 300\" Wb 44,000lb Capacity 28\"","V44-28 S","HEAVY DUTY","HL",186700,{"$f":"$H$1","v":0.41},{"$f":"Table8[[#This Row],[GOV List Price]]*(1-Table8[[#This Row],[NASPO Discount]])","v":110153.00000000001},"Yes"]
["V44-30 S","VRX44-30LS00RD","4-Leg Surface Mounted Clear Floor Open Base Vertical Rise Lift 324\" Wb 44,000lb Capacity 30\"","V44-30 S","HEAVY DUTY","HL",191265,0.41,{"$f":"Table8[[#This Row],[GOV List Price]]*(1-Table8[[#This Row],[NASPO Discount]])","v":112846.35000000002},"Yes"]
["V44-32 S","VRX44-32LS00RD","4-Leg Surface Mounted Clear Floor Open Base Vertical Rise Lift 348\" Wb 44,000lb Capacity 32'","V44-32 S","HEAVY DUTY","HL",195570,0.41,{"$f":"Table8[[#This Row],[GOV List Price]]*(1-Table8[[#This Row],[NASPO Discount]])","v":115386.30000000002},"Yes"]
["V44-36 S","VRX44-36LS00RD","4-Leg Surface Mounted Clear Floor Open Base Vertical Rise Lift 396\" Wb 44,000lb Capacity 36'","V44-36 S","HEAVY DUTY","HL",207684,0.41,{"$f":"Table8[[#This Row],[GOV List Price]]*(1-Table8[[#This Row],[NASPO Discount]])","v":122533.56000000001},"Yes"]
["V64-28 S","VRX64-28LS00RD","4-Leg Surface Mounted Clear Floor Open Base Vertical Rise Lift 300\" Wb 64,000lb Capacity 28\"","V64-28 S","HEAVY DUTY","HL",191914,0.41,{"$f":"Table8[[#This Row],[GOV List Price]]*(1-Table8[[#This Row],[NASPO Discount]])","v":113229.26000000001},"Yes"]
["V64-30 S","VRX64-30LS00RD","4-Leg Surface Mounted Clear Floor Open Base Vertical Rise Lift 324\" Wb 64,000lb Capacity 30\"","V64-30 S","HEAVY DUTY","HL",196483,0.41,{"$f":"Table8[[#This Row],[GOV List Price]]*(1-Table8[[#This Row],[NASPO Discount]])","v":115924.97000000002},"Yes"]
["V64-32 S","VRX64-32LS00RD","4-Leg Surface Mounted Clear Floor Open Base Vertical Rise Lift 348\" Wb 64,000lb Capacity 32'","V64-32 S","HEAVY DUTY","HL",201039,0.41,{"$f":"Table8[[#This Row],[GOV List Price]]*(1-Table8[[#This Row],[NASPO Discount]])","v":118613.01000000001},"Yes"]
["V64-36 S","VRX64-36LS00RD","4-Leg Surface Mounted Clear Floor Open Base Vertical Rise Lift 396\" Wb 64,000lb Capacity 36'","V64-36 S","HEAVY DUTY","HL",214151,0.41,{"$f":"Table8[[#This Row],[GOV List Price]]*(1-Table8[[#This Row],[NASPO Discount]])","v":126349.09000000001},"Yes"]
["V64-48 S","VRX64-48LS00RD","4-Leg Surface Mounted Clear Floor Open Base Vertical Rise Lift 540\" Wb 64,000lb Capacity 48'","V64-48 S","HEAVY DUTY","HL",234318,0.41,{"$f":"Table8[[#This Row],[GOV List Price]]*(1-Table8[[#This Row],[NASPO Discount]])","v":138247.62000000002},"Yes"]
["V80-28 S","VRX80-28LS00RD","4-Leg Surface Mounted Clear Floor Open Base Vertical Rise Lift 300\" Wb 80,000lb Capacity 28'","V80-28 S","HEAVY DUTY","HL",206761,0.41,{"$f":"Table8[[#This Row],[GOV List Price]]*(1-Table8[[#This Row],[NASPO Discount]])","v":121988.99000000002},"Yes"]
["V80-28 F","VRX80-28LF00RD","4-Leg Flush Mounted Clear Floor Open Base Vertical Rise Lift 300\" Wb 80,000lb Capacity 28'","V80-28 F","HEAVY DUTY","HL",196580,0.41,{"$f":"Table8[[#This Row],[GOV List Price]]*(1-Table8[[#This Row],[NASPO Discount]])","v":115982.20000000001},"Yes"]
["V80-30 S","VRX80-30LS00RD","4-Leg Surface Mounted Clear Floor Open Base Vertical Rise Lift 324\" Wb 80,000lb Capacity 30'","V80-30 S","HEAVY DUTY","HL",209024,0.41,{"$f":"Table8[[#This Row],[GOV List Price]]*(1-Table8[[#This Row],[NASPO Discount]])","v":123324.16000000002},"Yes"]
["V80-30 F","VRX80-30LF00RD","4-Leg Flush Mounted Clear Floor Open Base Vertical Rise Lift 324\" Wb 80,000lb Capacity 30'","V80-30 F","HEAVY DUTY","HL",198843,0.41,{"$f":"Table8[[#This Row],[GOV List Price]]*(1-Table8[[#This Row],[NASPO Discount]])","v":117317.37000000001},"Yes"]
["V80-32 S","VRX80-32LS00RD","4-Leg Surface Mounted Clear Floor Open Base Vertical Rise Lift 348\" Wb 80,000lb Capacity 32'","V80-32 S","HEAVY DUTY","HL",215101,0.41,{"$f":"Table8[[#This Row],[GOV List Price]]*(1-Table8[[#This Row],[NASPO Discount]])","v":126909.59000000001},"Yes"]
["V80-32 F","VRX80-32LF00RD","4-Leg Flush Mounted Clear Floor Open Base Vertical Rise Lift 348\" Wb 80,000lb Capacity 32'","V80-32 F","HEAVY DUTY","HL",204919,0.41,{"$f":"Table8[[#This Row],[GOV List Price]]*(1-Table8[[#This Row],[NASPO Discount]])","v":120902.21000000002},"Yes"]
["V80-48 S","VRX80-48LS00RD","4-Leg Surface Mounted Clear Floor Open Base Vertical Rise Lift 540\" Wb 80,000lb Capacity 48'","V80-48 S","HEAVY DUTY","HL",245610,0.41,{"$f":"Table8[[#This Row],[GOV List Price]]*(1-Table8[[#This Row],[NASPO Discount]])","v":144909.90000000002},"Yes"]
["V80-48 F","VRX80-48LF00RD","4-Leg Flush Mounted Clear Floor Open Base Vertical Rise Lift 540\" Wb 80,000lb Capacity 48'","V80-48 F","HEAVY DUTY","HL",235429,0.41,{"$f":"Table8[[#This Row],[GOV List Price]]*(1-Table8[[#This Row],[NASPO Discount]])","v":138903.11000000002},"Yes"]
["V40006","V40006","Built-in Air","V40006","ACC.","AC",6169,0.25,{"$f":"Table8[[#This Row],[GOV List Price]]*(1-Table8[[#This Row],[NASPO Discount]])","v":4626.75},"Yes"]
["V40007","V40007BL","8 ft. (2.4m) Drive-thru ramp kit.","V40007BL","ACC.","AC",10649,0.25,{"$f":"Table8[[#This Row],[GOV List Price]]*(1-Table8[[#This Row],[NASPO Discount]])","v":7986.75},"Yes"]
["V40008","V40008BL","10 ft. (3m) Drive-thru ramp kit","V40008BL","ACC.","AC",12639,0.25,{"$f":"Table8[[#This Row],[GOV List Price]]*(1-Table8[[#This Row],[NASPO Discount]])","v":9479.25},"Yes"]
["V40009","V40009BL","12 ft. (3.7m) Drive-thru ramp kit.","V40009BL","ACC.","AC",14633,0.25,{"$f":"Table8[[#This Row],[GOV List Price]]*(1-Table8[[#This Row],[NASPO Discount]])","v":10974.75},"Yes"]
["V40034","V40034","Light Kit (pair) Kits required: 28’-30’=3 kits; 32’-36’=4 kits; 48’=5 kits.  50' cords","V40034","ACC.","AC",2402,0.25,{"$f":"Table8[[#This Row],[GOV List Price]]*(1-Table8[[#This Row],[NASPO Discount]])","v":1801.5},"Yes"]
["APAUXHT","APAUXHT","Height Limiter included on all VRX models.  It is turned on with Rotary Programming Tool.","APAUXHT","ACC.","AC",991,0.25,{"$f":"Table8[[#This Row],[GOV List Price]]*(1-Table8[[#This Row],[NASPO Discount]])","v":743.25},"Yes"]
["AB100004RD","AB100004RD","Retractable Wheel Kit for Rolling Jack","AB100004","ACC.","AC",7180,0.25,{"$f":"Table8[[#This Row],[GOV List Price]]*(1-Table8[[#This Row],[NASPO Discount]])","v":5385},"Yes"]
["VREX 28' PIT COVERS","V40033WG","Pit Covers for VREX Lifts  (28' & 30' Runway Version, kit is for both runways)","V40033WG","ACC.","AC",39407,0.25,{"$f":"Table8[[#This Row],[GOV List Price]]*(1-Table8[[#This Row],[NASPO Discount]])","v":29555.25},"Yes"]
["VREX  32' PIT COVERS","V40033WG","Pit Covers for VREX Lifts  (32' Runway Version, kit is for both runways)","V40033WG","ACC.","AC",39407,0.25,{"$f":"Table8[[#This Row],[GOV List Price]]*(1-Table8[[#This Row],[NASPO Discount]])","v":29555.25},"Yes"]
["VREX 36' PIT COVERS","V40035WG","Pit Covers for VREX Lifts  (36' Runway Version, kit is for both runways)","V40035WG","ACC.","AC",53797,0.25,{"$f":"Table8[[#This Row],[GOV List Price]]*(1-Table8[[#This Row],[NASPO Discount]])","v":40347.75},"Yes"]
["VREX 48' PIT COVERS","V40038WG","Pit Covers for VREX Lifts  (48' Runway Version, kit is for both runways)","V40038WG","ACC.","AC",68241,0.25,{"$f":"Table8[[#This Row],[GOV List Price]]*(1-Table8[[#This Row],[NASPO Discount]])","v":51180.75},"Yes"]
["V30100","V30100","Laptop Programmer Cord for vertical rise (VRX) only. ","V30100","ACC.","AC",710,0.25,{"$f":"Table8[[#This Row],[GOV List Price]]*(1-Table8[[#This Row],[NASPO Discount]])","v":532.5},"Yes"]
["Cord Reel","V40036","VRX Cord Reel for the Pendant (sold seperately)","V40036","ACC.","AC",5266,0.25,{"$f":"Table8[[#This Row],[GOV List Price]]*(1-Table8[[#This Row],[NASPO Discount]])","v":3949.5},"Yes"]
["V40010","V40010","VRX Pendant","V40010","ACC.","AC",4177,0.25,{"$f":"Table8[[#This Row],[GOV List Price]]*(1-Table8[[#This Row],[NASPO Discount]])","v":3132.75},"Yes"]
["V40011","V40011","Stainless Steel remote panel for controlling washbay units.","V40011","ACC.","AC",8280,0.25,{"$f":"Table8[[#This Row],[GOV List Price]]*(1-Table8[[#This Row],[NASPO Discount]])","v":6210},"Yes"]
["AP00405","AP00405","1/16\" x 4\" x 4\" Finger Shims (1.53mm x 101.6mm x 101.6mm)","AP00405","PARTS","BP",17,0.25,{"$f":"Table8[[#This Row],[GOV List Price]]*(1-Table8[[#This Row],[NASPO Discount]])","v":12.75},"Yes"]
["AP00406","AP00406","1/8\" x 4\" x 4\" Finger Shims (2.54mm x 101.6mm x 101.6mm)","AP00406","PARTS","BP",19,0.25,{"$f":"Table8[[#This Row],[GOV List Price]]*(1-Table8[[#This Row],[NASPO Discount]])","v":14.25},"Yes"]
["AP00407","AP00407","1/4\" x 4\" x 4\" Finger Shims (6.35mm x 101.6mm x 101.6mm)","AP00407","PARTS","BP",20,0.25,{"$f":"Table8[[#This Row],[GOV List Price]]*(1-Table8[[#This Row],[NASPO Discount]])","v":15},"Yes"]
["AC100003","AC100003","Laptop Programmer Cord for parallelogram only. ","AC100003","PARTS","BP",710,0.25,{"$f":"Table8[[#This Row],[GOV List Price]]*(1-Table8[[#This Row],[NASPO Discount]])","v":532.5},"Yes"]
["AC300016","AC300016","Stainless Steel remote panel for controlling washbay units. ","AC300016","ACC.","AC",8046,0.25,{"$f":"Table8[[#This Row],[GOV List Price]]*(1-Table8[[#This Row],[NASPO Discount]])","v":6034.5},"Yes"]
["Junior-Jack2","Junior-Jack2","Portable high rise jack assembly for removal and transportation of fuel tanks, transmissions, transfer cases and other items. With air assist and foot pedal adjustment for ease in raising and lowering components, swivel caster wheels and patented corrosion protection on the cylinder piston assembly.","JUNIOR-JAC","ACC.","AC",6277,0.25,{"$f":"Table8[[#This Row],[GOV List Price]]*(1-Table8[[#This Row],[NASPO Discount]])","v":4707.75},"Yes"]
["GA4","GA4","Flat style transmission and accessory table with large rubber supports, two straps and a 12 degree tilt. Easily mounts to any pit lift. (4,400 lb. capacity)","BLITZ","ACC.","AC",1654,0.25,{"$f":"Table8[[#This Row],[GOV List Price]]*(1-Table8[[#This Row],[NASPO Discount]])","v":1240.5},"No"]
["R12","R12","Rear of AT1012, AT1212","R12","ACC.","AC",1684,0.25,{"$f":"Table8[[#This Row],[GOV List Price]]*(1-Table8[[#This Row],[NASPO Discount]])","v":1263},"No"]
["FD6690EGBK","FD6690EGBK","Totally contained steel enclosure and protected with Enviroguard inside and outside","FD6690","ACC.","AC",21593,0.25,{"$f":"Table8[[#This Row],[GOV List Price]]*(1-Table8[[#This Row],[NASPO Discount]])","v":16194.75},"No"]
["R1150","RWC1150.30IB","Premium Leverless Center Post Clamping Tire Changer","RWC1150.30","CHANGER/BAL/ALIGNERS","WS",23252,{"$f":"$H$1","v":0.41},{"$f":"Table8[[#This Row],[GOV List Price]]*(1-Table8[[#This Row],[NASPO Discount]])","v":13718.680000000002},"No"]
["R247D.CL","RWC247D.CLIB","Center Post Swing Arm","RWC247","CHANGER/BAL/ALIGNERS","WS",16889,0.41,{"$f":"Table8[[#This Row],[GOV List Price]]*(1-Table8[[#This Row],[NASPO Discount]])","v":9964.510000000002},"No"]
["R145D","RWC645D.26IHRB","Tilt Back High Performance Tire Changer","RWC645","CHANGER/BAL/ALIGNERS","WS",16455,0.41,{"$f":"Table8[[#This Row],[GOV List Price]]*(1-Table8[[#This Row],[NASPO Discount]])","v":9708.4500000000007},"No"]
["R148 Pro 2D","RWB348DB","Pro 2D Collets Computer Balancer With Self Calibration and Self Diagnostics","RWB348DB","CHANGER/BAL/ALIGNERS","WS",8780,0.41,{"$f":"Table8[[#This Row],[GOV List Price]]*(1-Table8[[#This Row],[NASPO Discount]])","v":5180.2000000000007},"No"]
["R146R","RWC246.26IRB","Swing Arm Pro High Performance Tire Changer","RWC246","CHANGER/BAL/ALIGNERS","WS",9657,0.41,{"$f":"Table8[[#This Row],[GOV List Price]]*(1-Table8[[#This Row],[NASPO Discount]])","v":5697.630000000001},"No"]
["R146RP","RWC246.26IRP","Swing Arm Pro High Performance Tire Changer With Helper Arm","RW246","CHANGER/BAL/ALIGNERS","WS",12850,0.41,{"$f":"Table8[[#This Row],[GOV List Price]]*(1-Table8[[#This Row],[NASPO Discount]])","v":7581.5000000000009},"No"]
["R140i","RWC240.22IB","Swing Arm Pro","RWC240.22I","CHANGER/BAL/ALIGNERS","WS",7221,0.41,{"$f":"Table8[[#This Row],[GOV List Price]]*(1-Table8[[#This Row],[NASPO Discount]])","v":4260.3900000000003},"No"]
["PLUS91N","PLUS91N","Air-Driven Helper With Following Arm and Lower Bead Roller for Model R140i Swing Arm Changer","PLUS91N","ACCS","WA",3000,0.25,{"$f":"Table8[[#This Row],[GOV List Price]]*(1-Table8[[#This Row],[NASPO Discount]])","v":2250},"No"]
["R511","RWC11EISB","Heavy Duty Truck Tire Changer Leverless HD","RWC11EISB","CHANGER/BAL/ALIGNERS","WS",24182,{"$f":"$H$1","v":0.41},{"$f":"Table8[[#This Row],[GOV List Price]]*(1-Table8[[#This Row],[NASPO Discount]])","v":14267.380000000003},"No"]
["R501N","RWC101B","Heavy Duty Truck Tire Changer Speed Changer HD","RWC101B","CHANGER/BAL/ALIGNERS","WS",36358,0.41,{"$f":"Table8[[#This Row],[GOV List Price]]*(1-Table8[[#This Row],[NASPO Discount]])","v":21451.22},"No"]
["R560","RWC26HWSB","Heavy Duty Truck Tire Changer Mobile HD","RWC26","CHANGER/BAL/ALIGNERS","WS",19633,0.41,{"$f":"Table8[[#This Row],[GOV List Price]]*(1-Table8[[#This Row],[NASPO Discount]])","v":11583.470000000001},"No"]
["VSG1000A102","VSG1000A102","5 Stud Kit 110mm Long for Reverse Rims Used on VSG1000A87","VSG1000A10","ACCS","WA",194,0.25,{"$f":"Table8[[#This Row],[GOV List Price]]*(1-Table8[[#This Row],[NASPO Discount]])","v":145.5},"No"]
["VSG1000A86","VSG1000A86","Mirror for R1150","VSG1000A86","ACCS","WA",252,0.25,{"$f":"Table8[[#This Row],[GOV List Price]]*(1-Table8[[#This Row],[NASPO Discount]])","v":189},"No"]
["VSG1000A118","VSG1000A118","Match Mounting Roller for R1150","VSG1000A11","ACCS","WA",372,0.25,{"$f":"Table8[[#This Row],[GOV List Price]]*(1-Table8[[#This Row],[NASPO Discount]])","v":279},"No"]
["VSG800A35","VSG800A35","Pneumatic Wheel Lift for Tire Changers","VSG800A35","ACCS","WA",2044,0.25,{"$f":"Table8[[#This Row],[GOV List Price]]*(1-Table8[[#This Row],[NASPO Discount]])","v":1533},"No"]
["PLUS91SA","PLUS91SA","Air Driven Helper With Following Arm and Lower Bead Roller for Model R146 Swing Arm Changer","PLUS91SA","ACCS","WA",3222,0.25,{"$f":"Table8[[#This Row],[GOV List Price]]*(1-Table8[[#This Row],[NASPO Discount]])","v":2416.5},"No"]
["VSG800A69","VSG800A69","Wheel Lift Attachment That Works With PLUS91SA Helper","VSG800A69","ACCS","WA",944,0.25,{"$f":"Table8[[#This Row],[GOV List Price]]*(1-Table8[[#This Row],[NASPO Discount]])","v":708},"No"]
["VSG800A58","VSG800A58","Traction Point for PLUS91SA and PLUS91N Helper Arms","VSG800A58","ACCS","WA",401,0.25,{"$f":"Table8[[#This Row],[GOV List Price]]*(1-Table8[[#This Row],[NASPO Discount]])","v":300.75},"No"]
["VSG800A77","VSG800A77","Storage Tray for R145D, R145 and R146","VSG800A77","ACCS","WA",321,0.25,{"$f":"Table8[[#This Row],[GOV List Price]]*(1-Table8[[#This Row],[NASPO Discount]])","v":240.75},"No"]
["VSG800A18","VSG800A18","Bead Pushing Roller for R145D, R145, R146 and R140i","VSG800A18","ACCS","WA",332,0.25,{"$f":"Table8[[#This Row],[GOV List Price]]*(1-Table8[[#This Row],[NASPO Discount]])","v":249},"No"]
["VSG1000A11 ","VSG1000A11","Half Moon Bead Lever Performance Tire Lever","VSG1000A11","ACCS","WA",143,0.25,{"$f":"Table8[[#This Row],[GOV List Price]]*(1-Table8[[#This Row],[NASPO Discount]])","v":107.25},"No"]
["VSG800A126","VSG800A126","Plastic Tool Head W/Support for Tilt Back Units Included With Tilt Back Tire Changer","VSG800A126","ACCS","WA",225,0.25,{"$f":"Table8[[#This Row],[GOV List Price]]*(1-Table8[[#This Row],[NASPO Discount]])","v":168.75},"No"]
["VSG800A60","VSG800A60","Plastic Tool Head W/Support for Swing Arm Units Included With All Swing Arm Tire Changers","VSG800A60","ACCS","WA",225,0.25,{"$f":"Table8[[#This Row],[GOV List Price]]*(1-Table8[[#This Row],[NASPO Discount]])","v":168.75},"No"]
["VSG800A99","VSG800A99","Motorcycle Adapters for 20-22\" Tables","VSG800A99","ACCS","WA",576,0.25,{"$f":"Table8[[#This Row],[GOV List Price]]*(1-Table8[[#This Row],[NASPO Discount]])","v":432},"No"]
["VSG800A107","VSG800A107","Motorcycle Adapters for 24-26\" Tables","VSG800A107","ACCS","WA",974,0.25,{"$f":"Table8[[#This Row],[GOV List Price]]*(1-Table8[[#This Row],[NASPO Discount]])","v":730.5},"No"]
["VSG800A111","VSG800A111KIT","Reducing Clamp to 8\" Requires VSG800A107 or VSG800A99","VSG800A111","ACCS","WA",803,0.25,{"$f":"Table8[[#This Row],[GOV List Price]]*(1-Table8[[#This Row],[NASPO Discount]])","v":602.25},"No"]
["VSG108A25","VSG108A25","OptionaL Clamp for Earth Moving Wheels for All Heavy Duty Tire Changers","VSG108A25","ACCS","WA",246,0.25,{"$f":"Table8[[#This Row],[GOV List Price]]*(1-Table8[[#This Row],[NASPO Discount]])","v":184.5},"No"]
["VSG90A6","VSG90A6","Optional Aluminum Rim Clamp for All Heavy Duty Tire Changers","VSG90A6","ACCS","WA",380,0.25,{"$f":"Table8[[#This Row],[GOV List Price]]*(1-Table8[[#This Row],[NASPO Discount]])","v":285},"No"]
["VSG108A22","VSG108A22","Disc for Wheels With Lock Ring for Model R560","VSG108A22","ACCS","WA",1308,0.25,{"$f":"Table8[[#This Row],[GOV List Price]]*(1-Table8[[#This Row],[NASPO Discount]])","v":981},"No"]
["VSG108A24","VSG108A24","Disc for Wheels With Lock Ring and Agricultural Wheel for Model R501N","VSG108A24","ACCS","WA",1323,0.25,{"$f":"Table8[[#This Row],[GOV List Price]]*(1-Table8[[#This Row],[NASPO Discount]])","v":992.25},"No"]
["VSG800A117KIT","VSG800A117KIT","Tool Protection Kit for Models R145, R145D, R146 and R140 ","VSG800A117","PARTS","WP",26,0.25,{"$f":"Table8[[#This Row],[GOV List Price]]*(1-Table8[[#This Row],[NASPO Discount]])","v":19.5},"No"]
["VSG800A11","VSG800A11","Bead Breaker Protection for Models R145/D, R146 & R140i","VSG800A11","PARTS","WP",24,0.25,{"$f":"Table8[[#This Row],[GOV List Price]]*(1-Table8[[#This Row],[NASPO Discount]])","v":18},"No"]
["VSG800A6KIT","VSG800A6KIT","Replacement 4 Clamp Protectors for Models R145, R145D and R146","VSG800A6KI","PARTS","WP",49,0.25,{"$f":"Table8[[#This Row],[GOV List Price]]*(1-Table8[[#This Row],[NASPO Discount]])","v":36.75},"No"]
["VSG800A98","VSG800A98","Replacement 4 Clamp Protector for Models R140 and R140i.","VSG800A98","PARTS","WP",61,0.25,{"$f":"Table8[[#This Row],[GOV List Price]]*(1-Table8[[#This Row],[NASPO Discount]])","v":45.75},"No"]
["VSG1000A117","VSG1000A117","Replacement Upper Tool Used On R1150 Leverless ","VSG1000A11","PARTS","WP",61,0.25,{"$f":"Table8[[#This Row],[GOV List Price]]*(1-Table8[[#This Row],[NASPO Discount]])","v":45.75},"No"]
["VSG1000A117K","VSG1000A117K","Replacement Upper Tool Used On R1150 Leverless ","VSG1000A11","ACCS","WA",932,0.25,{"$f":"Table8[[#This Row],[GOV List Price]]*(1-Table8[[#This Row],[NASPO Discount]])","v":699},"No"]
["VS710013421","VS710013421","Replacement Hook","VS71001342","PARTS","WP",43,0.25,{"$f":"Table8[[#This Row],[GOV List Price]]*(1-Table8[[#This Row],[NASPO Discount]])","v":32.25},"No"]
["VSG108A9","VSG108A9","Replacement Plastic Tool Protection for R501 Tire Changer","VSG108A9","ACCS","WA",27,0.25,{"$f":"Table8[[#This Row],[GOV List Price]]*(1-Table8[[#This Row],[NASPO Discount]])","v":20.25},"No"]
["VS770011650","VS770011650","Replacement Plastic Tool for VSG800A60 Swing Arm Units","VS77001165","ACCS","WA",38,0.25,{"$f":"Table8[[#This Row],[GOV List Price]]*(1-Table8[[#This Row],[NASPO Discount]])","v":28.5},"No"]
["VSG800A37","VSG800A37","Tire Paste for Tire Changers","VSG800A37","PARTS","WP",41,0.25,{"$f":"Table8[[#This Row],[GOV List Price]]*(1-Table8[[#This Row],[NASPO Discount]])","v":30.75},"No"]
["R180","RWB380.3DTECB","Pro 3D Auto Wheel Balancer","RWB380","CHANGER/BAL/ALIGNERS","WS",16502,{"$f":"$H$1","v":0.41},{"$f":"Table8[[#This Row],[GOV List Price]]*(1-Table8[[#This Row],[NASPO Discount]])","v":9736.1800000000021},"No"]
["R155","RWB355SB","Pro 3D Wheel Balancer","RWB355","CHANGER/BAL/ALIGNERS","WS",12024,0.41,{"$f":"Table8[[#This Row],[GOV List Price]]*(1-Table8[[#This Row],[NASPO Discount]])","v":7094.1600000000008},"No"]
["R138","RWB338FMDB","Pro 2D Wheel Balancer","RWB338","CHANGER/BAL/ALIGNERS","WS",5466,0.41,{"$f":"Table8[[#This Row],[GOV List Price]]*(1-Table8[[#This Row],[NASPO Discount]])","v":3224.9400000000005},"No"]
["R544","RWB280PLUSB","Pro Truck 2D Wheel Balancer","RWB280PLUS","CHANGER/BAL/ALIGNERS","WS",21792,0.41,{"$f":"Table8[[#This Row],[GOV List Price]]*(1-Table8[[#This Row],[NASPO Discount]])","v":12857.280000000002},"No"]
["GAR345","GAR345","Large Quick Nut Replacement For GAR101","GAR345","ACCS","WA",424,0.25,{"$f":"Table8[[#This Row],[GOV List Price]]*(1-Table8[[#This Row],[NASPO Discount]])","v":318},"No"]
["GAR324","GAR324","Wheel Lift With Automatic Compensation of Wheel Weight","GAR324","ACCS","WA",4129,0.25,{"$f":"Table8[[#This Row],[GOV List Price]]*(1-Table8[[#This Row],[NASPO Discount]])","v":3096.75},"No"]
["GAR325","GAR325","Wheel Lift Standard Version","GAR325","ACCS","WA",3767,0.25,{"$f":"Table8[[#This Row],[GOV List Price]]*(1-Table8[[#This Row],[NASPO Discount]])","v":2825.25},"No"]
["VS129580500","VS129580500","Rubber Protection","VS12958050","PARTS","WP",28,0.25,{"$f":"Table8[[#This Row],[GOV List Price]]*(1-Table8[[#This Row],[NASPO Discount]])","v":21},"No"]
["VS129580191","VS129580191","Pressure Cap","VS12958019","PARTS","WP",64,0.25,{"$f":"Table8[[#This Row],[GOV List Price]]*(1-Table8[[#This Row],[NASPO Discount]])","v":48},"No"]
["GAR102","GAR102","Handwheel Quick Fit Nut Optional Accessory for R122","GAR102","ACCS","WA",365,0.25,{"$f":"Table8[[#This Row],[GOV List Price]]*(1-Table8[[#This Row],[NASPO Discount]])","v":273.75},"No"]
["GAR351","GAR351","Standard Air Lock for Model R544","GAR351","ACCS","WA",202,0.25,{"$f":"Table8[[#This Row],[GOV List Price]]*(1-Table8[[#This Row],[NASPO Discount]])","v":151.5},"No"]
["GAR111","GAR111","Optional Passenger Cone Kit for R544","GAR111","ACCS","WA",413,0.25,{"$f":"Table8[[#This Row],[GOV List Price]]*(1-Table8[[#This Row],[NASPO Discount]])","v":309.75},"No"]
["GAR112","GAR112","Optional Small Light Truck Cone for R544","GAR112","ACCS","WA",190,0.25,{"$f":"Table8[[#This Row],[GOV List Price]]*(1-Table8[[#This Row],[NASPO Discount]])","v":142.5},"No"]
["GAR113","GAR113","Optional for All Wheel Balancers Dually Kit Double Sided Cone With Metal Backing Plate for Vans and Light Trucks","GAR113","ACCS","WA",626,0.25,{"$f":"Table8[[#This Row],[GOV List Price]]*(1-Table8[[#This Row],[NASPO Discount]])","v":469.5},"No"]
["GAR124","GAR124","Spacer for All Balancers","GAR124","ACCS","WA",467,0.25,{"$f":"Table8[[#This Row],[GOV List Price]]*(1-Table8[[#This Row],[NASPO Discount]])","v":350.25},"No"]
["HW190E400045","HW190E400045","Distance Spacer Donut 40mm","HW190E4000","ACCS","WA",41,0.25,{"$f":"Table8[[#This Row],[GOV List Price]]*(1-Table8[[#This Row],[NASPO Discount]])","v":30.75},"No"]
["HW150400110","HW150400110","Pro Collet Kit 40mm","HW15040011","ACCS","WA",1590,0.25,{"$f":"Table8[[#This Row],[GOV List Price]]*(1-Table8[[#This Row],[NASPO Discount]])","v":1192.5},"No"]
["HW150400123","HW150400123","Low Taper Collect #10 40mm","HW15040012","ACCS","WA",369,0.25,{"$f":"Table8[[#This Row],[GOV List Price]]*(1-Table8[[#This Row],[NASPO Discount]])","v":276.75},"No"]
["HW150400139","HW150400139","Low Taper Collet #11 40mm","HW15040013","ACCS","WA",452,0.25,{"$f":"Table8[[#This Row],[GOV List Price]]*(1-Table8[[#This Row],[NASPO Discount]])","v":339},"No"]
["HW210400002","HW210400002","Series IV Quick Plate Kit 40mm","HW21040000","ACCS","WA",6461,0.25,{"$f":"Table8[[#This Row],[GOV List Price]]*(1-Table8[[#This Row],[NASPO Discount]])","v":4845.75},"No"]
["HW200299409","HW200299409","North American Flange Plate Kit 40mm","HW20029940","ACCS","WA",2669,0.25,{"$f":"Table8[[#This Row],[GOV List Price]]*(1-Table8[[#This Row],[NASPO Discount]])","v":2001.75},"No"]
["HW280400172","HW280400172","Pro Centering System","HW28040017","ACCS","WA",7877,0.25,{"$f":"Table8[[#This Row],[GOV List Price]]*(1-Table8[[#This Row],[NASPO Discount]])","v":5907.75},"No"]
["HW900008205","HW900008205","Adapter Tree","HW90000820","ACCS","WA",428,0.25,{"$f":"Table8[[#This Row],[GOV List Price]]*(1-Table8[[#This Row],[NASPO Discount]])","v":321},"No"]
["GAR346","GAR346","Laser Calibration Device","GAR346","ACCS","WA",406,0.25,{"$f":"Table8[[#This Row],[GOV List Price]]*(1-Table8[[#This Row],[NASPO Discount]])","v":304.5},"No"]
["VS129580160","VS129580160","Pressure Ring","VS12958016","PARTS","WP",38,0.25,{"$f":"Table8[[#This Row],[GOV List Price]]*(1-Table8[[#This Row],[NASPO Discount]])","v":28.5},"No"]
["GAR122","GAR122","Truck Spacer Standard With R544","GAR122","ACCS","WA",937,0.25,{"$f":"Table8[[#This Row],[GOV List Price]]*(1-Table8[[#This Row],[NASPO Discount]])","v":702.75},"No"]
["GAR114","GAR114","GAR114 Cones (2) (7.9\"-8.7\"-11\")","GAR114","ACCS","WA",940,0.25,{"$f":"Table8[[#This Row],[GOV List Price]]*(1-Table8[[#This Row],[NASPO Discount]])","v":705},"No"]
["GAR172","GAR172","Four Finger Adapter","GAR172","ACCS","WA",688,0.25,{"$f":"Table8[[#This Row],[GOV List Price]]*(1-Table8[[#This Row],[NASPO Discount]])","v":516},"No"]
["GAR171","GAR171","For Model R544 3 Finger Adapter","GAR171","ACCS","WA",522,0.25,{"$f":"Table8[[#This Row],[GOV List Price]]*(1-Table8[[#This Row],[NASPO Discount]])","v":391.5},"No"]
["GAR173","GAR173","Five Finger Adapter","GAR173","ACCS","WA",891,0.25,{"$f":"Table8[[#This Row],[GOV List Price]]*(1-Table8[[#This Row],[NASPO Discount]])","v":668.25},"No"]
["HW700008006","HW700008006","HD Centering Stud Aluminum Wheels","HW70000800","ACCS","WA",85,0.25,{"$f":"Table8[[#This Row],[GOV List Price]]*(1-Table8[[#This Row],[NASPO Discount]])","v":63.75},"No"]
["HW700008004","HW700008004","Centering Stud Turcks/Buses w/Larger Stud Holes","HW70000800","ACCS","WA",85,0.25,{"$f":"Table8[[#This Row],[GOV List Price]]*(1-Table8[[#This Row],[NASPO Discount]])","v":63.75},"No"]
["HW700008005","HW700008005","Centering Stud Short Flat Head","HW70000800","ACCS","WA",85,0.25,{"$f":"Table8[[#This Row],[GOV List Price]]*(1-Table8[[#This Row],[NASPO Discount]])","v":63.75},"No"]
["GAR266T","GAR266T","For Model R544 3D Wheel Tire Sensor Caliper for Automatic Measure of Rim Width","GAR266T","ACCS","WA",987,0.25,{"$f":"Table8[[#This Row],[GOV List Price]]*(1-Table8[[#This Row],[NASPO Discount]])","v":740.25},"No"]
["HW280400139","HW280400139","ProMax MD 40mm Centering Solutions for All 8 & 10 Lug MD Vehicles","HW28040013","ACCS","WA",4081,0.25,{"$f":"Table8[[#This Row],[GOV List Price]]*(1-Table8[[#This Row],[NASPO Discount]])","v":3060.75},"No"]
["R1080Plus","RWATD3000HPR","Portable 3D Wheel Aligner System","RWATD3000","CHANGER/BAL/ALIGNERS","WS",37124,{"$f":"$H$1","v":0.41},{"$f":"Table8[[#This Row],[GOV List Price]]*(1-Table8[[#This Row],[NASPO Discount]])","v":21903.160000000003},"No"]
["R1070","RWA7080WS","Pro CCD 8-CCD Sensor Wheel Alignment System","RWA7080","CHANGER/BAL/ALIGNERS","WS",24906,0.41,{"$f":"Table8[[#This Row],[GOV List Price]]*(1-Table8[[#This Row],[NASPO Discount]])","v":14694.540000000003},"No"]
["R5000HD","RWA8060TWS","CTA Pro 6-CCD Heavy Duty Commercial Truck Aligner","RWA8060TWS","CHANGER/BAL/ALIGNERS","WS",54671,0.41,{"$f":"Table8[[#This Row],[GOV List Price]]*(1-Table8[[#This Row],[NASPO Discount]])","v":32255.890000000003},"No"]
["STDA29L","STDA29L","Pair of Heavy Duty Turntables","STDA29L","ACCS","WA",2017,0.25,{"$f":"Table8[[#This Row],[GOV List Price]]*(1-Table8[[#This Row],[NASPO Discount]])","v":1512.75},"No"]
["STDA128","STDA128","Battery Set of 2 for Model R1080 Sensors","STDA128","ACCS","WA",842,0.25,{"$f":"Table8[[#This Row],[GOV List Price]]*(1-Table8[[#This Row],[NASPO Discount]])","v":631.5},"No"]
["STDA101","STDA101","Set of 4 Clamping Arms 34\" to 44\"","STDA101","ACCS","WA",534,0.25,{"$f":"Table8[[#This Row],[GOV List Price]]*(1-Table8[[#This Row],[NASPO Discount]])","v":400.5},"No"]
["STDA46EU","STDA46EU","Set of 2 Self Centering 4 Point Clamps With Quick Locking Units and ABS Claws","STDA46EU","ACCS","WA",1673,0.25,{"$f":"Table8[[#This Row],[GOV List Price]]*(1-Table8[[#This Row],[NASPO Discount]])","v":1254.75},"No"]
["STDA35E","STDA35E","Set of 2 Self Centering 3 Point Clamps With Quick Locking Units and ABS Claws","STDA35E","ACCS","WA",3846,0.25,{"$f":"Table8[[#This Row],[GOV List Price]]*(1-Table8[[#This Row],[NASPO Discount]])","v":2884.5},"No"]
["STDA33EU","STDA33EU","Set of 2 Self Centering 4 Point Clamps With Removable Claws Clamps 10\" to 24\" Wheels","STDA33EU","ACCS","WA",803,0.25,{"$f":"Table8[[#This Row],[GOV List Price]]*(1-Table8[[#This Row],[NASPO Discount]])","v":602.25},"No"]
["STDA92","STDA92","Patented Set of 2 Non-Run Out Quick Adapters for Model R5000HD","STDA92","ACCS","WA",6303,0.25,{"$f":"Table8[[#This Row],[GOV List Price]]*(1-Table8[[#This Row],[NASPO Discount]])","v":4727.25},"No"]
["STDA49N","STDA49N","Truck Trailer Alignment Fixture for R5000HD","STDA49N","ACCS","WA",2586,0.25,{"$f":"Table8[[#This Row],[GOV List Price]]*(1-Table8[[#This Row],[NASPO Discount]])","v":1939.5},"No"]
["STDA39","STDA39","8 Tips Cone Style","STDA39","ACCS","WA",62,0.25,{"$f":"Table8[[#This Row],[GOV List Price]]*(1-Table8[[#This Row],[NASPO Discount]])","v":46.5},"No"]
["VS14000AA","VS14000AA","One Standard Depth ABS Claw for 3 Point Quick Clamps","VS14000AA","ACCS","WA",16,0.25,{"$f":"Table8[[#This Row],[GOV List Price]]*(1-Table8[[#This Row],[NASPO Discount]])","v":12},"No"]
["STDA3D/QC","STDA3D/QC","Kit of Two Stands for Model R1080","STDA3D/QC","ACCS","WA",2350,0.25,{"$f":"Table8[[#This Row],[GOV List Price]]*(1-Table8[[#This Row],[NASPO Discount]])","v":1762.5},"No"]
["STDA14","STDA14","CCD Calibration Kit","STDA14","ACCS","WA",3517,0.25,{"$f":"Table8[[#This Row],[GOV List Price]]*(1-Table8[[#This Row],[NASPO Discount]])","v":2637.75},"No"]
["Z100039BK","Z100039BK","Camera Brackets for Rotary YA12 Lift","Z100039BK","ACCS","WA",72,0.25,{"$f":"Table8[[#This Row],[GOV List Price]]*(1-Table8[[#This Row],[NASPO Discount]])","v":54},"No"]
["BP9","BP9113000BL","Symmetric Arms & Columns, Chain Driven 9,000lb Capacity","BP9","FORWARD","FL",8812,{"$f":"$H$1","v":0.41},{"$f":"Table8[[#This Row],[GOV List Price]]*(1-Table8[[#This Row],[NASPO Discount]])","v":5199.0800000000008},"No"]
["I10","I10N500MBL","Three Stage Front Spot-Rite Arms Symmetric Columns 10,000lb Capacity 2 Post Lift","I10","FORWARD","FL",8163,0.41,{"$f":"Table8[[#This Row],[GOV List Price]]*(1-Table8[[#This Row],[NASPO Discount]])","v":4816.170000000001},"No"]
["I12N300","I12N300BL","3 Stage Symmetric Overall Height 166\"","I12T","FORWARD","FL",15222,0.41,{"$f":"Table8[[#This Row],[GOV List Price]]*(1-Table8[[#This Row],[NASPO Discount]])","v":8980.9800000000014},"No"]
["I12N301","I12N301BL","3 Stage Symmetric Overall Height 178\"","I12T","FORWARD","FL",15222,0.41,{"$f":"Table8[[#This Row],[GOV List Price]]*(1-Table8[[#This Row],[NASPO Discount]])","v":8980.9800000000014},"No"]
["I12N302","I12N302BL","3 Stage Symmetric Overall Height 154\"","I12T","FORWARD","FL",15222,0.41,{"$f":"Table8[[#This Row],[GOV List Price]]*(1-Table8[[#This Row],[NASPO Discount]])","v":8980.9800000000014},"No"]
["I12N303","I12N303BL","3 Stage Symmetric Overall Height 143\"","I12T","FORWARD","FL",15222,0.41,{"$f":"Table8[[#This Row],[GOV List Price]]*(1-Table8[[#This Row],[NASPO Discount]])","v":8980.9800000000014},"No"]
["F12N300","F12N300TYBL","2 Stage Symmetric Overall Height 166\"","F12T","FORWARD","FL",12388,0.41,{"$f":"Table8[[#This Row],[GOV List Price]]*(1-Table8[[#This Row],[NASPO Discount]])","v":7308.920000000001},"No"]
["F12N301","F12N301TYBL","2 Stage Symmetric Overall Height 178\"","F12T","FORWARD","FL",12388,0.41,{"$f":"Table8[[#This Row],[GOV List Price]]*(1-Table8[[#This Row],[NASPO Discount]])","v":7308.920000000001},"No"]
["F12N302","F12N302TYBL","2 Stage Symmetric Overall Height 154\"","F12T","FORWARD","FL",12388,0.41,{"$f":"Table8[[#This Row],[GOV List Price]]*(1-Table8[[#This Row],[NASPO Discount]])","v":7308.920000000001},"No"]
["F12N303","F12N303TYBL","2 Stage Symmetric Overall Height 143\"","F12T","FORWARD","FL",12388,0.41,{"$f":"Table8[[#This Row],[GOV List Price]]*(1-Table8[[#This Row],[NASPO Discount]])","v":7308.920000000001},"No"]
["DP15N000","DP15N000BL","Symmetric Screw Type Adjustable Adapters Pads 2 Post Lift 15,000lb Capacity Overall Height 12' 10 3/4\"","DP15","FORWARD","FL",21329,0.41,{"$f":"Table8[[#This Row],[GOV List Price]]*(1-Table8[[#This Row],[NASPO Discount]])","v":12584.110000000002},"No"]
["DP15N001","DP15N001BL","Symmetric Screw Type Adjustable Adapters Pads 2 Post Lift 15,000lb Capacity Overall Height 14' 7\"","DP15","FORWARD","FL",21329,0.41,{"$f":"Table8[[#This Row],[GOV List Price]]*(1-Table8[[#This Row],[NASPO Discount]])","v":12584.110000000002},"No"]
["DP15N002","DP15N002BL","Symmetric Screw Type Adjustable Adapters Pads 2 Post Lift 15,000lb Capacity Overall Height 16' 7\"","DP15","FORWARD","FL",22922,0.41,{"$f":"Table8[[#This Row],[GOV List Price]]*(1-Table8[[#This Row],[NASPO Discount]])","v":13523.980000000001},"No"]
["DP18N000","DP18PN000BL","Symmetric Arms & Columns Screw Type Adjustable Adapter Pads 2 Post Lift 18,000lb Capacity Overall Height 12' 10 3/4\"","DP18","FORWARD","FL",32302,0.41,{"$f":"Table8[[#This Row],[GOV List Price]]*(1-Table8[[#This Row],[NASPO Discount]])","v":19058.180000000004},"No"]
["DP18N001","DP18PN001BL","Symmetric Screw Type Adjustable Adapters Pads 2 Post Lift 15,000lb Capacity Overall Height 14' 7\"","DP18","FORWARD","FL",32302,0.41,{"$f":"Table8[[#This Row],[GOV List Price]]*(1-Table8[[#This Row],[NASPO Discount]])","v":19058.180000000004},"No"]
["DP18N002","DP18PN002BL","Symmetric Screw Type Adjustable Adapters Pads 2 Post Lift 15,000lb Capacity Overall Height 16' 7\"","DP18","FORWARD","FL",33624,0.41,{"$f":"Table8[[#This Row],[GOV List Price]]*(1-Table8[[#This Row],[NASPO Discount]])","v":19838.160000000003},"No"]
["CR14","CR14N201YBL","General Service 4 Post Lift 14,000lb Capacity 182.5\" Wheelbase","CR14T","FORWARD","FL",14166,0.41,{"$f":"Table8[[#This Row],[GOV List Price]]*(1-Table8[[#This Row],[NASPO Discount]])","v":8357.94},"No"]
["CR14 EL","CR14N202YBL","General Service 4 Post Lift 14,000lb Capacity 215\" Wheelbase",0,0,0,16504,0.41,{"$f":"Table8[[#This Row],[GOV List Price]]*(1-Table8[[#This Row],[NASPO Discount]])","v":9737.36},"No"]
["S100136M","S100136MBL","Bolt On Alignment Kit ","S100136MBL","ACC.","AC",6408,0.25,{"$f":"Table8[[#This Row],[GOV List Price]]*(1-Table8[[#This Row],[NASPO Discount]])","v":4806},"No"]
["S100137M","S100137MBL","Bolt On Alignment Kit EL2","S100137MBL","ACC.","AC",7265,0.25,{"$f":"Table8[[#This Row],[GOV List Price]]*(1-Table8[[#This Row],[NASPO Discount]])","v":5448.75},"No"]
["S100183","S100183","Efficiency Kit For CR14/CRO14","S100183","ACC.","AC",11590,0.25,{"$f":"Table8[[#This Row],[GOV List Price]]*(1-Table8[[#This Row],[NASPO Discount]])","v":8692.5},"No"]
["CRA14","CRA14N201YBL","Alignment Rack 4 Post 14,000lb Capacity 182.5\" Wheelbase","CRA14T","FORWARD","FL",30470,{"$f":"$H$1","v":0.41},{"$f":"Table8[[#This Row],[GOV List Price]]*(1-Table8[[#This Row],[NASPO Discount]])","v":17977.300000000003},"No"]
["CRA14 EL","CRA14N202YBL","Alignment Rack 4 Post 14,000lb Capacity 215\" Wheelbase","CRA14T","FORWARD","FL",33240,{"$f":"$H$1","v":0.41},{"$f":"Table8[[#This Row],[GOV List Price]]*(1-Table8[[#This Row],[NASPO Discount]])","v":19611.600000000002},"No"]
["S100138","S100138BL","Bolt On Alignment Kit for CR18","S100138BL","ACC.","AC",10250,0.25,{"$f":"Table8[[#This Row],[GOV List Price]]*(1-Table8[[#This Row],[NASPO Discount]])","v":7687.5},"No"]
["S100139","S100139BL","Bolt On Alignment Kit for CR18-3","S100139BL","ACC.","AC",10771,0.25,{"$f":"Table8[[#This Row],[GOV List Price]]*(1-Table8[[#This Row],[NASPO Discount]])","v":8078.25},"No"]
["S100184","S100184","Efficiency Kit For CR18 Includes (2) Rolling Jacks and Internal Airline Kit","S100184","ACC.","AC",16719,0.25,{"$f":"Table8[[#This Row],[GOV List Price]]*(1-Table8[[#This Row],[NASPO Discount]])","v":12539.25},"No"]
["M140130","M140130RD","Drive On Runway Assembly Includes Airline Kit for use with FCH 25' Length","M140130RD","ACC.","AC",28803,0.25,{"$f":"Table8[[#This Row],[GOV List Price]]*(1-Table8[[#This Row],[NASPO Discount]])","v":21602.25},"No"]
["FCH218","FCH218U200RDYL","Portable (2) Column Lift Battery Operated With Adjustable Forks 36,000lb Capacity","FCH218","MOBILE COLUMN","FM",39134,{"$f":"$H$1","v":0.41},{"$f":"Table8[[#This Row],[GOV List Price]]*(1-Table8[[#This Row],[NASPO Discount]])","v":23089.060000000005},"No"]
["FCH418","FCH418U200RDYL","Portable (4) Column Lift Battery Operated With Adjustable Forks 72,000lb Capacity","FCH418","MOBILE COLUMN","FM",78265,{"$f":"$H$1","v":0.41},{"$f":"Table8[[#This Row],[GOV List Price]]*(1-Table8[[#This Row],[NASPO Discount]])","v":46176.350000000006},"No"]
["FCH618","FCH618U200RDYL","Portable (6) Column Lift Battery Operated With Adjustable Forks 108,000lb Capacity","FCH618","MOBILE COLUMN","FM",117397,{"$f":"$H$1","v":0.41},{"$f":"Table8[[#This Row],[GOV List Price]]*(1-Table8[[#This Row],[NASPO Discount]])","v":69264.23000000001},"No"]
["M140101","M140101KITRD","Drive On Runway Assembly for FCH418","M140101KIT","PARTS","BP",68016,0.25,{"$f":"Table8[[#This Row],[GOV List Price]]*(1-Table8[[#This Row],[NASPO Discount]])","v":51012},"No"]
["M140166","M140166RD","Bolt Down Kit For FCH13","M140166RD","ACC.","AC",768,0.25,{"$f":"Table8[[#This Row],[GOV List Price]]*(1-Table8[[#This Row],[NASPO Discount]])","v":576},"No"]
["M140165","M140165RD","Bolt Down Kit For FCH18","M140165RD","ACC.","AC",768,0.25,{"$f":"Table8[[#This Row],[GOV List Price]]*(1-Table8[[#This Row],[NASPO Discount]])","v":576},"No"]
["M140071","M140071YL","Wheel Adapters","M140071YL","ACC.","AC",2625,0.25,{"$f":"Table8[[#This Row],[GOV List Price]]*(1-Table8[[#This Row],[NASPO Discount]])","v":1968.75},"No"]
["EFP8","EFP8P000MBK","4 Post Enthusiast Lift 8,000lb Capacity","EFP8","FORWARD","FL",9007,{"$f":"$H$1","v":0.41},{"$f":"Table8[[#This Row],[GOV List Price]]*(1-Table8[[#This Row],[NASPO Discount]])","v":5314.130000000001},"No"]
["EFP9","EFP9P000MBK","4 Post Enthusiast Lift 9,000lb Capacity","EFP9","FORWARD","FL",11019,{"$f":"$H$1","v":0.41},{"$f":"Table8[[#This Row],[GOV List Price]]*(1-Table8[[#This Row],[NASPO Discount]])","v":6501.2100000000009},"No"]
["6000MRL","6000MRLFBK","Portable Mid Rise Lift 6,000lb Capacity",0,0,0,5672,{"$f":"$H$1","v":0.41},{"$f":"Table8[[#This Row],[GOV List Price]]*(1-Table8[[#This Row],[NASPO Discount]])","v":3346.4800000000005},"No"]
["BJ10","BJ10BK","Jack For Motorcycle Lift","BJ10BK",0,0,342,{"$f":"$H$1","v":0.41},{"$f":"Table8[[#This Row],[GOV List Price]]*(1-Table8[[#This Row],[NASPO Discount]])","v":201.78000000000003},"No"]
["RRJ70G","RRJ71GFWD","Pneumatic Hydraulic Rolling Bridge Jack 7,000lb Capacity","RRJ71GFWD","ACC.","AC",5359,0.25,{"$f":"Table8[[#This Row],[GOV List Price]]*(1-Table8[[#This Row],[NASPO Discount]])","v":4019.25},"No"]
["RJ901000","RJ901000YBK","Pneumatic Hydraulic Rolling Bridge Jack 9,000lb Capacity","RJ901000Y","ACC.","AC",7924,0.25,{"$f":"Table8[[#This Row],[GOV List Price]]*(1-Table8[[#This Row],[NASPO Discount]])","v":5943},"No"]
["RJ153BK","RJ153BK","Ramp Kits","RJ153BK","ACC.","AC",18464,0.25,{"$f":"Table8[[#This Row],[GOV List Price]]*(1-Table8[[#This Row],[NASPO Discount]])","v":13848},"No"]
["RJ22L","RJ22BK","Pneumatic Hydraulic Rolling Bridge Jack 22,000lb Capacity","RJ22BK","ACC.","AC",25058,0.25,{"$f":"Table8[[#This Row],[GOV List Price]]*(1-Table8[[#This Row],[NASPO Discount]])","v":18793.5},"No"]
["FJ6263","FJ6263","Wide Drop In Adapter for DP10/I10 Lifts With 1 1/4\" Diameter Pilot for Lifting","FJ6263","ACC.","AC",1053,0.25,{"$f":"Table8[[#This Row],[GOV List Price]]*(1-Table8[[#This Row],[NASPO Discount]])","v":789.75},"No"]
["FJ6257KIT","FJ6257KIT","Wide Drop In Adapter for DP10/I10 Lifts With 1 1/2\" Diameter Pilot for Lifting","FJ6257KIT","ACC.","AC",976,0.25,{"$f":"Table8[[#This Row],[GOV List Price]]*(1-Table8[[#This Row],[NASPO Discount]])","v":732},"No"]
["FJ6245KIT","FJ6245Y","Kit of Four Round Adapters Bracket and Hardware","FJ6245Y","ACC.","AC",190,0.25,{"$f":"Table8[[#This Row],[GOV List Price]]*(1-Table8[[#This Row],[NASPO Discount]])","v":142.5},"No"]
[2800929,"2800929BL","24\" Wide 47\" Long Mounted Approach Drive Thru Ramps Set of Two","2800929BL","ACC.","AC",2237,0.25,{"$f":"Table8[[#This Row],[GOV List Price]]*(1-Table8[[#This Row],[NASPO Discount]])","v":1677.75},"No"]
["134K01","134K01BL","24\" Wide 72\" Long Floor Mounted Approach Drive Thru Ramps Set of Two","134K01","ACC.","AC",4020,0.25,{"$f":"Table8[[#This Row],[GOV List Price]]*(1-Table8[[#This Row],[NASPO Discount]])","v":3015},"No"]
["TT1000YKIT","TT1000YKIT","Standard Turning Radius Gauge Kit","TT1000YKIT","ACC.","AC",778,0.25,{"$f":"Table8[[#This Row],[GOV List Price]]*(1-Table8[[#This Row],[NASPO Discount]])","v":583.5},"No"]
["F10","F10N500MBL",null,null,"FORWARD","FL",7560,{"$f":"$H$1","v":0.41},{"$f":"Table8[[#This Row],[GOV List Price]]*(1-Table8[[#This Row],[NASPO Discount]])","v":4460.4000000000005},"No"]
["EFX60","EFX-60-S","Flush stationary scissor, 48” pocket opening, not equipped with adapter kits.",null,0,null,253883,0.41,{"$f":"Table8[[#This Row],[GOV List Price]]*(1-Table8[[#This Row],[NASPO Discount]])","v":149790.97000000003},"Yes"]
["EFX90","EFX-90-S",null,null,0,null,284982,0.41,{"$f":"Table8[[#This Row],[GOV List Price]]*(1-Table8[[#This Row],[NASPO Discount]])","v":168139.38000000003},"Yes"]
["XA12","XA12N000RD","Scissor alignment","XA12","LIGHT DUTY","LL",44062,0.41,{"$f":"Table8[[#This Row],[GOV List Price]]*(1-Table8[[#This Row],[NASPO Discount]])","v":25996.58},"Yes"]
["V44-28 F","VRX44-28LF00RD","4-Leg Flush Mounted Clear Floor Open Base Vertical Rise Lift 44,000lb Capacity With 300\" Max Wheelbase","V44-28 F","HEAVY DUTY","HL",176514,0.41,{"$f":"Table8[[#This Row],[GOV List Price]]*(1-Table8[[#This Row],[NASPO Discount]])","v":104143.26000000001},"Yes"]
["V44-30 F","VRX44-30CF00RD","4-Leg Flush Mounted Clear Floor Open Base Vertical Rise Lift 44,000lb Capacity With 324\" Max Wheelbase","V44-30 F","HEAVY DUTY","HL",181079,0.41,{"$f":"Table8[[#This Row],[GOV List Price]]*(1-Table8[[#This Row],[NASPO Discount]])","v":106836.61000000002},"Yes"]
["V44-32 F","VRX44-32LF00RD","4-Leg Flush Mounted Clear Floor Open Base Vertical Rise Lift 44,000lb Capacity With 348\" Max Wheelbase","V44-32 F","HEAVY DUTY","HL",185388,0.41,{"$f":"Table8[[#This Row],[GOV List Price]]*(1-Table8[[#This Row],[NASPO Discount]])","v":109378.92000000001},"Yes"]
["V44-36 F","VRX44-36CF00RD","4-Leg Flush Mounted Clear Floor Open Base Vertical Rise Lift 44,000lb Capacity With 396\" Max Wheelbase","V44-36 F","HEAVY DUTY","HL",197500,0.41,{"$f":"Table8[[#This Row],[GOV List Price]]*(1-Table8[[#This Row],[NASPO Discount]])","v":116525.00000000001},"Yes"]
["V64-28 F","VRX64-28LF00RD","4-Leg Flush Mounted Clear Floor Open Base Vertical Rise Lift 64,000lb Capacity With 300\" Max Wheelbase","V44-36 F","HEAVY DUTY","HL",181734,0.41,{"$f":"Table8[[#This Row],[GOV List Price]]*(1-Table8[[#This Row],[NASPO Discount]])","v":107223.06000000001},"Yes"]
["V64-30 F","VRX64-30LF00RD","4-Leg Flush Mounted Clear Floor Open Base Vertical Rise Lift 64,000lb Capacity With 324\" Max Wheelbase","V64-28 F","HEAVY DUTY","HL",186300,0.41,{"$f":"Table8[[#This Row],[GOV List Price]]*(1-Table8[[#This Row],[NASPO Discount]])","v":109917.00000000001},"Yes"]
["V64-32 F","VRX64-32LF00RD","4-Leg Flush Mounted Clear Floor Open Base Vertical Rise Lift 64,000lb Capacity With 348\" Max Wheelbase","V64-30 F","HEAVY DUTY","HL",190855,0.41,{"$f":"Table8[[#This Row],[GOV List Price]]*(1-Table8[[#This Row],[NASPO Discount]])","v":112604.45000000001},"Yes"]
["V64-36 F","VRX64-36CF00RD","4-Leg Flush Mounted Clear Floor Open Base Vertical Rise Lift 64,000lb Capacity With 396\" Max Wheelbase","V64-32 F","HEAVY DUTY","HL",203965,0.41,{"$f":"Table8[[#This Row],[GOV List Price]]*(1-Table8[[#This Row],[NASPO Discount]])","v":120339.35000000002},"Yes"]
["V64-48 F","VRX64-48LF00RD","4-Leg Flush Mounted Clear Floor Open Base Vertical Rise Lift 64,000lb Capacity With 540\" Max Wheelbase","V64-36 F","HEAVY DUTY","HL",224135,0.41,{"$f":"Table8[[#This Row],[GOV List Price]]*(1-Table8[[#This Row],[NASPO Discount]])","v":132239.65000000002},"Yes"]
["V80-28 F","VRX80-28LF00RD","4-Leg Flush Mounted Clear Floor Open Base Vertical Rise Lift 80,000lb Capacity With 300\" Max Wheelbase","V64-48 F","HEAVY DUTY","HL",196580,0.41,{"$f":"Table8[[#This Row],[GOV List Price]]*(1-Table8[[#This Row],[NASPO Discount]])","v":115982.20000000001},"Yes"]
["V80-30 F","VRX80-30LF00RD","4-Leg Flush Mounted Clear Floor Open Base Vertical Rise Lift 80,000lb Capacity With 324\" Max Wheelbase","V80-28 F","HEAVY DUTY","HL",198843,0.41,{"$f":"Table8[[#This Row],[GOV List Price]]*(1-Table8[[#This Row],[NASPO Discount]])","v":117317.37000000001},"Yes"]
["V80-32 F","VRX80-32LF00RD","4-Leg Flush Mounted Clear Floor Open Base Vertical Rise Lift 80,000lb Capacity With 348\" Max Wheelbase","V80-30 F","HEAVY DUTY","HL",204919,0.41,{"$f":"Table8[[#This Row],[GOV List Price]]*(1-Table8[[#This Row],[NASPO Discount]])","v":120902.21000000002},"Yes"]
["V80-48 F","VRX80-48LF00RD","4-Leg Flush Mounted Clear Floor Open Base Vertical Rise Lift 80,000lb Capacity With 540\" Max Wheelbase","V80-32 F","HEAVY DUTY","HL",235429,0.41,{"$f":"Table8[[#This Row],[GOV List Price]]*(1-Table8[[#This Row],[NASPO Discount]])","v":138903.11000000002},"Yes"]
["SPO10-TRIO-FA","SPO10N1600BL","2 Post Symmetric Lift With TRIO Flip Up Adapters","V80-48 F","HEAVY DUTY","PS",11684,0.41,{"$f":"Table8[[#This Row],[GOV List Price]]*(1-Table8[[#This Row],[NASPO Discount]])","v":6893.5600000000013},"Yes"]
["SPO10-TRIO-FA EH1","SPO10N1605BL","2 Post Symmetric Lift With TRIO Flip Up Adapters EH1",0,"LIGHT DUTY","PS",12114,0.41,{"$f":"Table8[[#This Row],[GOV List Price]]*(1-Table8[[#This Row],[NASPO Discount]])","v":7147.2600000000011},"Yes"]
["SPO10-TRIO-FA EH2","SPO10N1607BL","2 Post Symmetric Lift With TRIO Flip Up Adapters EH2",0,"LIGHT DUTY","PS",13043,0.41,{"$f":"Table8[[#This Row],[GOV List Price]]*(1-Table8[[#This Row],[NASPO Discount]])","v":7695.3700000000008},"Yes"]